Service Area,Service Division,Expense Type,Expense Code,Detailed Expense Type,Payment Date,Transaction Number,Amount Exc VAT,Supplier Name
Children and Young Peoples Services,Childrens Services Operational Support,Supplies and Services,338026,Services,01/09/2023,4175404-23-24-34,"1,428.00",REDACTED - PAYMENT TO INDIVIDUAL
Children and Young Peoples Services,Head of Early Help Inclusion & Vulnerable Children.,Supplies and Services,384199,Miscellaneous Expenses,01/09/2023,4175460-4100850379,765.00,REDACTED - PAYMENT TO INDIVIDUAL
Children and Young Peoples Services,Head of Education and Skills,Transport,230008,Contract Hire,01/09/2023,4175325-01299,"3,384.00",REDACTED - PAYMENT TO INDIVIDUAL
Children and Young Peoples Services,Head of Childrens Social Care,Supplies and Services,338066,Services,01/09/2023,4175361-4100849820,756.00,REDACTED - PAYMENT TO INDIVIDUAL
Children and Young Peoples Services,Head of Education and Skills,Transport,230010,Contract Hire,01/09/2023,4175399-304,"1,889.32",REDACTED - PAYMENT TO INDIVIDUAL
Children and Young Peoples Services,Head of Education and Skills,Transport,230010,Contract Hire,01/09/2023,4175416-B041JULY23,"2,221.93",REDACTED - PAYMENT TO INDIVIDUAL
Children and Young Peoples Services,Head of Education and Skills,Transport,230008,Contract Hire,01/09/2023,4175417-INV281,"1,400.00",REDACTED - PAYMENT TO INDIVIDUAL
Children and Young Peoples Services,Head of Education and Skills,Transport,230008,Contract Hire,01/09/2023,4175434-A082JUL23,"2,748.00",REDACTED - PAYMENT TO INDIVIDUAL
Children and Young Peoples Services,Head of Education and Skills,Transport,230034,Contract Hire,01/09/2023,4175450-5468JUL23,890.00,REDACTED - PAYMENT TO INDIVIDUAL
Children and Young Peoples Services,Head of Early Help Inclusion & Vulnerable Children.,Supplies and Services,304259,Equipment and Materials,01/09/2023,4175360-241546,896.45,DORSET NURSING SUPPLIES LTD.
Neighbourhoods and Climate Change,Partnerships & Community Engagement Div.,Supplies and Services,384086,Miscellaneous Expenses,01/09/2023,4175365-VOUCHERABLM01-23,530.00,DURHAM GATE RESIDENTS ASSOCIATION.
Children and Young Peoples Services,Head of Education and Skills,Transport,230007,Contract Hire,01/09/2023,4175315-JULY05-2023,"1,200.00",A & P TAXIS.
Children and Young Peoples Services,Head of Education and Skills,Transport,230010,Contract Hire,01/09/2023,4175316-O602,"2,266.52",ABC & OUSTON CABS.
Children and Young Peoples Services,Head of Education and Skills,Transport,230010,Contract Hire,01/09/2023,4175316-O604,"3,088.69",ABC & OUSTON CABS.
Regeneration Economy and Growth,Corporate Property and Land,Premises,108099,Service Repairs and Maintenance,01/09/2023,4175317-IN11295,"9,353.88",ACROL AIR CONDITIONING CO LTD.
Neighbourhoods and Climate Change,Environmental Services,Premises,106080,Centrally Controlled Rep and Maint,01/09/2023,4175319-52980348,"47,770.26",ADT FIRE & SECURITY PLC.
Neighbourhoods and Climate Change,Highways,Supplies and Services,304221,Equipment and Materials,01/09/2023,4175320-34936996,"1,670.12",AGGREGATE INDUSTRIES UK LTD.
Children and Young Peoples Services,Head of Education and Skills,Transport,230007,Contract Hire,01/09/2023,4175321-429,"4,708.79",ALANS TAXIS BARNARD CASTLE.
Neighbourhoods and Climate Change,Partnerships & Community Engagement Div.,Supplies and Services,384086,Miscellaneous Expenses,01/09/2023,4175326-VOUCHERBELC02-23,900.00,ANNFIELD PLAIN CRICKET CLUB.
Neighbourhoods and Climate Change,Highways,Supplies and Services,304358,Equipment and Materials,01/09/2023,4175327-0000038917,"2,340.00",AQUAJET DRAIN CLEANING LTD.
Neighbourhoods and Climate Change,Highways,Third Party Payments,460224,Contract Payments,01/09/2023,4175328-30087,"181,752.09",ARM PIPETEK LTD.
Children and Young Peoples Services,Head of Education and Skills,Supplies and Services,312009,Newspapers books and periodicals E312,01/09/2023,4175331-6916204,502.52,ASKEWS & HOLTS LIBRARY SERVICES LTD.
Neighbourhoods and Climate Change,Highways,Supplies and Services,304358,Equipment and Materials,01/09/2023,4175333-MG08780,"1,342.50",BAILEY CONCRETE PUMPING LTD.
Neighbourhoods and Climate Change,Highways,Supplies and Services,304221,Equipment and Materials,01/09/2023,4175338-207R02881,"1,262.03",BIFFA WASTE SERVICES LTD.
Regeneration Economy and Growth,Culture Sport and Tourism,Premises,145023,Cleaning and Domestic Supplies,01/09/2023,4175340-22SI2292361,"1,695.68",BRENNTAG UK LTD.
Adult and Health Services,Head of Adults,Supplies and Services,338364,Services,01/09/2023,4175344-91566,709.40,CARE ABILITY HEALTHCARE LTD.
Adult and Health Services,Head of Adults,Supplies and Services,338364,Services,01/09/2023,4175344-91567,824.23,CARE ABILITY HEALTHCARE LTD.
Adult and Health Services,Head of Adults,Supplies and Services,338364,Services,01/09/2023,4175344-91568,828.37,CARE ABILITY HEALTHCARE LTD.
Adult and Health Services,Head of Adults,Supplies and Services,338364,Services,01/09/2023,4175344-91569,653.04,CARE ABILITY HEALTHCARE LTD.
Adult and Health Services,Head of Adults,Supplies and Services,338364,Services,01/09/2023,4175344-91570,784.92,CARE ABILITY HEALTHCARE LTD.
Adult and Health Services,Head of Adults,Supplies and Services,338364,Services,01/09/2023,4175344-91571,"1,619.42",CARE ABILITY HEALTHCARE LTD.
Adult and Health Services,Head of Adults,Supplies and Services,338364,Services,01/09/2023,4175344-91572,"1,271.62",CARE ABILITY HEALTHCARE LTD.
Adult and Health Services,Head of Adults,Supplies and Services,338364,Services,01/09/2023,4175344-91573,736.37,CARE ABILITY HEALTHCARE LTD.
Adult and Health Services,Head of Adults,Supplies and Services,338364,Services,01/09/2023,4175344-91574,949.78,CARE ABILITY HEALTHCARE LTD.
Adult and Health Services,Head of Adults,Supplies and Services,338364,Services,01/09/2023,4175344-91755,561.81,CARE ABILITY HEALTHCARE LTD.
Adult and Health Services,Head of Adults,Supplies and Services,338364,Services,01/09/2023,4175344-91756,514.04,CARE ABILITY HEALTHCARE LTD.
Children and Young Peoples Services,Head of Education and Skills,Supplies and Services,384199,Miscellaneous Expenses,01/09/2023,4175345-CW873,"2,010.00",CAREERWAVE LTD.
Children and Young Peoples Services,Head of Education and Skills,Transport,230010,Contract Hire,01/09/2023,4175352-INV002-JUL23,977.71,CONSETT EXECUTIVE CABS.
Non-Service Specific,Insurances,Expenditure 8INSEX,810001,Insurance Expenditure,01/09/2023,4175353-GVPA1000334,"69,197.00",CRAWFORD & COMPANY ADJUSTERS (UK) LTD T/A BROADSPIRE.
Children and Young Peoples Services,Head of Education and Skills,Transport,230006,Contract Hire,01/09/2023,4175354-116299,"4,320.00",CROFT BUSINESS SERVICES LTD T/A CROFT TRAVEL.
Resources BK0010,Legal & Democratic Services,Supplies and Services,338042,Services,01/09/2023,4175358-374844/INVNR299,875.00,DERE STREET BARRISTERS.
Resources BK0010,Legal & Democratic Services,Supplies and Services,338042,Services,01/09/2023,4175358-376152/INVRC142,"2,150.00",DERE STREET BARRISTERS.
Resources BK0010,Legal & Democratic Services,Supplies and Services,338042,Services,01/09/2023,4175358-376156/INVRC143,625.00,DERE STREET BARRISTERS.
Resources BK0010,Legal & Democratic Services,Supplies and Services,338042,Services,01/09/2023,4175358-379430/INVAD0200,"2,150.00",DERE STREET BARRISTERS.
Resources BK0010,Legal & Democratic Services,Supplies and Services,338042,Services,01/09/2023,4175358-379433/INVNR301,875.00,DERE STREET BARRISTERS.
Resources BK0010,Legal & Democratic Services,Supplies and Services,338042,Services,01/09/2023,4175358-382066/INVVK78,"1,400.00",DERE STREET BARRISTERS.
Resources BK0010,Legal & Democratic Services,Supplies and Services,338042,Services,01/09/2023,4175358-383507/INVRC145,725.00,DERE STREET BARRISTERS.
Resources BK0010,Legal & Democratic Services,Supplies and Services,338042,Services,01/09/2023,4175358-386818/INVEI115,725.00,DERE STREET BARRISTERS.
Resources BK0010,Legal & Democratic Services,Supplies and Services,338042,Services,01/09/2023,4175358-388392/INVNR302,775.00,DERE STREET BARRISTERS.
Resources BK0010,Legal & Democratic Services,Supplies and Services,338042,Services,01/09/2023,4175358-388444/INVRC147,625.00,DERE STREET BARRISTERS.
Resources BK0010,Legal & Democratic Services,Supplies and Services,338042,Services,01/09/2023,4175358-388926/INVJAH251,625.00,DERE STREET BARRISTERS.
Resources BK0010,Legal & Democratic Services,Supplies and Services,338042,Services,01/09/2023,4175358-389362/INVRC151,"1,350.00",DERE STREET BARRISTERS.
Children and Young Peoples Services,Head of Education and Skills,Fees,901002,Consultants fees 901002,01/09/2023,4175359-64027472A,"3,608.55",DESCO (DESIGN & CONSULTANCY) LTD.
Neighbourhoods and Climate Change,Community Protection,Supplies and Services,338099,Services,01/09/2023,4175367-HIREJULY23,945.00,DURHAM ST NICHOLAS PCC.
Regeneration Economy and Growth,Business Durham,Premises,120009,Energy Costs,01/09/2023,4175370-000016383866,"5,341.08",EDF ENERGY CUSTOMERS PLC T/A EDF ENERGY.
Regeneration Economy and Growth,Business Durham,Premises,120009,Energy Costs,01/09/2023,4175370-000016385522,"11,758.45",EDF ENERGY CUSTOMERS PLC T/A EDF ENERGY.
Regeneration Economy and Growth,Corporate Property and Land,Supplies and Services,304221,Equipment and Materials,01/09/2023,4175371-059-321956,589.20,EDMUNDSON ELECTRICAL LTD.
Regeneration Economy and Growth,Corporate Property and Land,Supplies and Services,304221,Equipment and Materials,01/09/2023,4175371-059-323401,688.82,EDMUNDSON ELECTRICAL LTD.
Regeneration Economy and Growth,Corporate Property and Land,Supplies and Services,304221,Equipment and Materials,01/09/2023,4175371-059-323447,"1,888.48",EDMUNDSON ELECTRICAL LTD.
Regeneration Economy and Growth,Corporate Property and Land,Supplies and Services,304221,Equipment and Materials,01/09/2023,4175371-059-323449,890.62,EDMUNDSON ELECTRICAL LTD.
Regeneration Economy and Growth,Corporate Property and Land,Supplies and Services,304221,Equipment and Materials,01/09/2023,4175371-059-323467,889.58,EDMUNDSON ELECTRICAL LTD.
Regeneration Economy and Growth,Corporate Property and Land,Supplies and Services,304221,Equipment and Materials,01/09/2023,4175371-059-323472,810.82,EDMUNDSON ELECTRICAL LTD.
Regeneration Economy and Growth,Planning & Housing,Supplies and Services,364501,Grants to Voluntary Organisations,01/09/2023,4175377-IR7782,"1,056.76",FRAMPTON & ROEBUCK LTD.
Regeneration Economy and Growth,Transport and Contracted Services,Third Party Payments,430106,Rendered by Private Contractors,01/09/2023,4175379-82891,"240,249.51",GO GATESHEAD LTD.
Regeneration Economy and Growth,Corporate Property and Land,Premises,108099,Service Repairs and Maintenance,01/09/2023,4175385-7081041562,"1,608.67",HONEYWELL NOVAR SYSTEMS LTD.
Regeneration Economy and Growth,Culture Sport and Tourism,Premises,106082,Centrally Controlled Rep and Maint,01/09/2023,4175385-7081042294,"1,300.86",HONEYWELL NOVAR SYSTEMS LTD.
Adult and Health Services,Head of Adults,Premises,106082,Centrally Controlled Rep and Maint,01/09/2023,4175385-7081043578,"2,380.43",HONEYWELL NOVAR SYSTEMS LTD.
Children and Young Peoples Services,Head of Education and Skills,Transport,230005,Contract Hire,01/09/2023,4175388-1168,564.00,I & R EXECUTIVE TRAVEL.
Neighbourhoods and Climate Change,Highways,Supplies and Services,304221,Equipment and Materials,01/09/2023,4175389-400050146,"29,406.55",ICL UK SALES LTD (CLEVELAND POTASH LTD).
Resources BK0010,Digital Services,Stock A926,926900,Stock in hand-Inventory system,01/09/2023,4175390-2100582750,776.90,INSIGHT DIRECT (UK) LTD.
Resources BK0010,Digital Services,Vehicles Equipment Furniture and Fittings,912701,Computer equipment,01/09/2023,4175390-2100680181,540.40,INSIGHT DIRECT (UK) LTD.
Neighbourhoods and Climate Change,Highways,Stock A926,926900,Stock in hand-Inventory system,01/09/2023,4175391-899950,"2,656.00",INSTARMAC GROUP PLC.
Adult and Health Services,Head of Adults,Transport,230005,Contract Hire,01/09/2023,4175392-0988,"2,967.51",JACKSON`S TAXI.
Children and Young Peoples Services,Head of Education and Skills,Transport,230008,Contract Hire,01/09/2023,4175396-25146,"3,105.00",JD`S PRIVATE HIRE DURHAM.
Adult and Health Services,Head of Adults,Transport,230005,Contract Hire,01/09/2023,4175396-CLS078-1,560.00,JD`S PRIVATE HIRE DURHAM.
Neighbourhoods and Climate Change,Highways,Supplies and Services,304358,Equipment and Materials,01/09/2023,4175398-32435,925.00,JOHN R BUTTERFIELD LTD.
Neighbourhoods and Climate Change,Highways,Supplies and Services,304358,Equipment and Materials,01/09/2023,4175398-32444,562.00,JOHN R BUTTERFIELD LTD.
Neighbourhoods and Climate Change,Highways,Supplies and Services,304358,Equipment and Materials,01/09/2023,4175398-32456,"1,249.50",JOHN R BUTTERFIELD LTD.
Neighbourhoods and Climate Change,Highways,Third Party Payments,430127,Rendered by Private Contractors,01/09/2023,4175402-6618,"8,225.00",JR TIPLADY (AGRICULTURAL CONTRACTOR).
Neighbourhoods and Climate Change,Highways,Stock A926,926900,Stock in hand-Inventory system,01/09/2023,4175403-0113/00050185,"2,524.80",JT DOVE LTD.
Regeneration Economy and Growth,Planning & Housing,Supplies and Services,338045,Services,01/09/2023,4175408-502271/AUGUST23,"1,750.00",KINGS CHAMBERS.
Children and Young Peoples Services,Head of Education and Skills,Transport,230005,Contract Hire,01/09/2023,4175409-4119,720.00,L&D TAXIS NE LTD.
Regeneration Economy and Growth,Corporate Property and Land,Premises,150005,Apportioned Exps of Operational Blds,01/09/2023,4175412-24692,515.27,LOFTHOUSE & PARTNERS LTD.
Regeneration Economy and Growth,Corporate Property and Land,Premises,150005,Apportioned Exps of Operational Blds,01/09/2023,4175412-24693,515.27,LOFTHOUSE & PARTNERS LTD.
Regeneration Economy and Growth,Culture Sport and Tourism,Supplies and Services,332047,Printing Stationery and Gen Off Exps,01/09/2023,4175413-6901740577,798.47,LYRECO UK LTD.
Regeneration Economy and Growth,Transport and Contracted Services,Third Party Payments,430108,Rendered by Private Contractors,01/09/2023,4175421-1800011980386,"49,637.35",NEWCASTLE UPON TYNE CITY COUNCIL.
Neighbourhoods and Climate Change,Community Protection,Supplies and Services,384540,Miscellaneous Expenses,01/09/2023,4175422-43327851,"1,680.77",NEWSQUEST (YORKSHIRE & NORTH EAST) LTD.
Children and Young Peoples Services,Head of Education and Skills,Third Party Payments,440999,Other third party payments E440,01/09/2023,4175425-0000065192,"2,413.17",NORTH EAST AUTISM SOCIETY.
Neighbourhoods and Climate Change,Environmental Services,Supplies and Services,304259,Equipment and Materials,01/09/2023,4175429-OASI0073795,"2,416.50",ORIGIN AMENITY SOLUTIONS LTD.
Neighbourhoods and Climate Change,Environmental Services,Supplies and Services,304221,Equipment and Materials,01/09/2023,4175429-OASI0073798,846.10,ORIGIN AMENITY SOLUTIONS LTD.
Regeneration Economy and Growth,Culture Sport and Tourism,Supplies and Services,384237,Miscellaneous Expenses,01/09/2023,4175430-27343,"3,438.75",PA PROMOTIONS LTD.
Regeneration Economy and Growth,Corporate Property and Land,Supplies and Services,304221,Equipment and Materials,01/09/2023,4175432-DT210916,581.28,PARK ELECTRICAL DISTRIBUTORS LTD.
Regeneration Economy and Growth,Corporate Property and Land,Premises,108099,Service Repairs and Maintenance,01/09/2023,4175437-17083,600.00,PREMIER CELL FIT T/A LIVEWIRE GATES & DOORS.
Neighbourhoods and Climate Change,Environmental Services,Premises,106082,Centrally Controlled Rep and Maint,01/09/2023,4175437-17092,550.00,PREMIER CELL FIT T/A LIVEWIRE GATES & DOORS.
Children and Young Peoples Services,Head of Education and Skills,Transport,230010,Contract Hire,01/09/2023,4175440-SI-2750,"2,005.24",PTL TAXIS LTD.
Regeneration Economy and Growth,Corporate Property and Land,Third Party Payments,430100,Rendered by Private Contractors,01/09/2023,4175442-21077,"2,065.00",RADECAL SIGNS GRAPHICS & ADVERTISING.
Children and Young Peoples Services,Head of Education and Skills,Transport,230008,Contract Hire,01/09/2023,4175443-SI-22168,"2,604.00",RAPID MINIBUSES.
Children and Young Peoples Services,Head of Education and Skills,Transport,230008,Contract Hire,01/09/2023,4175443-SI-22169,"1,830.92",RAPID MINIBUSES.
Adult and Health Services,Head of Adults,Transport,230005,Contract Hire,01/09/2023,4175443-SI-22170,"3,090.69",RAPID MINIBUSES.
Adult and Health Services,Head of Adults,Transport,230005,Contract Hire,01/09/2023,4175443-SI-22173,"1,680.00",RAPID MINIBUSES.
Children and Young Peoples Services,Head of Education and Skills,Transport,230016,Contract Hire,01/09/2023,4175443-SI-22174,597.28,RAPID MINIBUSES.
Adult and Health Services,Head of Adults,Transport,230005,Contract Hire,01/09/2023,4175443-SIK-22172,"1,582.68",RAPID MINIBUSES.
Regeneration Economy and Growth,Corporate Property and Land,Premises,108099,Service Repairs and Maintenance,01/09/2023,4175445-2023-267,"1,460.60",REVINSON FIRE LTD.
Regeneration Economy and Growth,Corporate Property and Land,Premises,108099,Service Repairs and Maintenance,01/09/2023,4175445-2023-268,"3,915.52",REVINSON FIRE LTD.
Children and Young Peoples Services,Head of Education and Skills,Premises,108099,Service Repairs and Maintenance,01/09/2023,4175446-IR0128826,991.94,RIGHTMOVE GROUP LTD.
Resources BK0010,Transactional & Customer Services,Supplies and Services,340001,Postages E340,01/09/2023,4175449-9068170316,"22,001.40",ROYAL MAIL GROUP PLC.
Regeneration Economy and Growth,Culture Sport and Tourism,Supplies and Services,304259,Equipment and Materials,01/09/2023,4175451-17061,"1,824.00",SAFE SECURE LOCKER SERVICES LTD.
Regeneration Economy and Growth,Corporate Property and Land,Supplies and Services,338078,Services,01/09/2023,4175452-18240,"1,284.00",SAFEGUARD SECURITY (NE) LTD.
Regeneration Economy and Growth,Corporate Property and Land,Supplies and Services,338078,Services,01/09/2023,4175452-18241,588.80,SAFEGUARD SECURITY (NE) LTD.
Regeneration Economy and Growth,Corporate Property and Land,Supplies and Services,338078,Services,01/09/2023,4175452-18409,"1,391.00",SAFEGUARD SECURITY (NE) LTD.
Regeneration Economy and Growth,Corporate Property and Land,Supplies and Services,338078,Services,01/09/2023,4175452-18410,768.00,SAFEGUARD SECURITY (NE) LTD.
Regeneration Economy and Growth,Business Durham,Premises,108099,Service Repairs and Maintenance,01/09/2023,4175452-18412,634.80,SAFEGUARD SECURITY (NE) LTD.
Chief Executives Office,Communications Management,Supplies and Services,332029,Printing Stationery and Gen Off Exps,01/09/2023,4175456-150047,715.00,STATEX PRESS (NORTHERN) LTD.
Neighbourhoods and Climate Change,Highways,Supplies and Services,304221,Equipment and Materials,01/09/2023,4175458-41715,542.96,STONEGRAVE AGGREGATES LTD.
Children and Young Peoples Services,Head of Childrens Social Care,Third Party Payments,486044,Service level agreements E486,01/09/2023,4175462-4810022776,"3,199.47",TEES ESK & WEAR VALLEYS NHS FOUNDATION TRUST.
Children and Young Peoples Services,Head of Childrens Social Care,Third Party Payments,486042,Service level agreements E486,01/09/2023,4175464-RINV/00010231,"3,250.00",THE FOSTERING NETWORK.
Neighbourhoods and Climate Change,Environmental Services,Supplies and Services,328041,Clothing uniforms and laundry E328,01/09/2023,4175466-NSIN00098941,560.11,THOMAS OWEN & SONS (NEWCASTLE) LTD.
Neighbourhoods and Climate Change,Highways,Stock A926,926900,Stock in hand-Inventory system,01/09/2023,4175466-NSIN00098946,505.23,THOMAS OWEN & SONS (NEWCASTLE) LTD.
Neighbourhoods and Climate Change,Highways,Third Party Payments,430100,Rendered by Private Contractors,01/09/2023,4175469-TRNE034690,"1,073.50",TOTAL RESOURCES (UK) LTD.
Regeneration Economy and Growth,Corporate Property and Land,Supplies and Services,304221,Equipment and Materials,01/09/2023,4175470-11121546,786.38,TRADECHOICE DISTRIBUTION LTD.
Resources BK0010,Legal & Democratic Services,Supplies and Services,338042,Services,01/09/2023,4175472-305541/INVLS236,"1,000.00",TRINITY CHAMBERS.
Resources BK0010,Legal & Democratic Services,Supplies and Services,338042,Services,01/09/2023,4175472-308732/INVJCT221,"1,040.00",TRINITY CHAMBERS.
Neighbourhoods and Climate Change,Highways,Supplies and Services,304221,Equipment and Materials,01/09/2023,4175476-250026,"6,340.34",TYNEDALE ROADSTONE LTD.
Neighbourhoods and Climate Change,Highways,Supplies and Services,304221,Equipment and Materials,01/09/2023,4175476-250027,921.62,TYNEDALE ROADSTONE LTD.
Neighbourhoods and Climate Change,Highways,Supplies and Services,304221,Equipment and Materials,01/09/2023,4175476-250028,"1,387.90",TYNEDALE ROADSTONE LTD.
Neighbourhoods and Climate Change,Highways,Supplies and Services,304221,Equipment and Materials,01/09/2023,4175476-250029,"1,603.56",TYNEDALE ROADSTONE LTD.
Regeneration Economy and Growth,Corporate Property and Land,Supplies and Services,304221,Equipment and Materials,01/09/2023,4175477-04039101,"4,618.80",UK ELECTRIC LTD.*
Neighbourhoods and Climate Change,Highways,Stock A926,926900,Stock in hand-Inventory system,01/09/2023,4175478-SI07540732,"1,510.09",UK PLUMBING SUPPLIES LTD T/A PLUMBASE.
Children and Young Peoples Services,Head of Childrens Social Care,Supplies and Services,336007,Advertising E336,01/09/2023,4175480-1385,"2,710.00",UNSCRIPTED PHOTOGRAPHY.
Neighbourhoods and Climate Change,Highways,Supplies and Services,304358,Equipment and Materials,01/09/2023,4175481-52002,"4,820.00",W MARLEY AGRICULTURAL CONTRACTORS LTD.
Neighbourhoods and Climate Change,Highways,Supplies and Services,304358,Equipment and Materials,01/09/2023,4175486-9470,550.00,YOULL CONSTRUCTION LTD.
Neighbourhoods and Climate Change,Highways,Supplies and Services,304358,Equipment and Materials,01/09/2023,4175486-9478,894.08,YOULL CONSTRUCTION LTD.
Regeneration Economy and Growth,Culture Sport and Tourism,Supplies and Services,384199,Miscellaneous Expenses,04/09/2023,4175565-INV32879,588.00,IMPACT PRODUCTIONS (MILTON KEYNES) LTD.
Children and Young Peoples Services,Head of Childrens Social Care,Supplies and Services,384500,Miscellaneous Expenses,04/09/2023,4175633-NFRB486,"1,300.00",REDACTED - PAYMENT TO INDIVIDUAL
Children and Young Peoples Services,Head of Childrens Social Care,Supplies and Services,384500,Miscellaneous Expenses,04/09/2023,4175633-NFRB499,"1,090.00",REDACTED - PAYMENT TO INDIVIDUAL
Children and Young Peoples Services,Head of Early Help Inclusion & Vulnerable Children.,Supplies and Services,372009,Subscriptions E372,04/09/2023,4175597-15210,520.00,NATIONAL PORTAGE ASSOCIATION.
Adult and Health Services,Head of Adults,Premises,145009,Cleaning and Domestic Supplies,04/09/2023,4175531-1038,"1,070.00",REDACTED - PAYMENT TO INDIVIDUAL
Regeneration Economy and Growth,Culture Sport and Tourism,Supplies and Services,384199,Miscellaneous Expenses,04/09/2023,4175572-52/23,"3,250.00",REDACTED - PAYMENT TO INDIVIDUAL
Children and Young Peoples Services,Head of Childrens Social Care,Supplies and Services,338045,Services,04/09/2023,4175595-120473,"4,250.00",REDACTED - PAYMENT TO INDIVIDUAL
Adult and Health Services,Head of Adults,Supplies and Services,338089,Services,04/09/2023,4175528-MH-1,500.00,DANTRAIN CONSULTANTS.
Neighbourhoods and Climate Change,Environmental Services,Supplies and Services,338066,Services,04/09/2023,4175625-120823,"4,140.00",R WEARMOUTH LTD.
Neighbourhoods and Climate Change,Environmental Services,Supplies and Services,338066,Services,04/09/2023,4175625-120823B,"2,030.00",R WEARMOUTH LTD.
Neighbourhoods and Climate Change,Environmental Services,Supplies and Services,338066,Services,04/09/2023,4175625-120823C,"1,800.00",R WEARMOUTH LTD.
Neighbourhoods and Climate Change,Highways,Stock A926,926900,Stock in hand-Inventory system,04/09/2023,4175638-IN1915,640.00,SEYMOUR (PLANT & EQUIPMENT) LTD.
Regeneration Economy and Growth,Corporate Property and Land,Supplies and Services,304221,Equipment and Materials,04/09/2023,4175642-1085576773,"1,256.40",STANNAH LIFT SERVICES LTD.
Neighbourhoods and Climate Change,Environmental Services,Supplies and Services,338066,Services,04/09/2023,4175662-263,"9,500.00",VINCENT MACLELLAN.
Adult and Health Services,Public Health CC0450,Third Party Payments,460803,Contract Payments,04/09/2023,4175489-INV-2259,"124,855.75",ABL HEALTH LTD.
Adult and Health Services,Head of Adults,Supplies and Services,342053,Computers and Communications,04/09/2023,4175490-1773496,"5,450.00",ACCESS UK LTD.
Dedicated Schools Grant BG0015,DSG High Needs Block,Central Support and Other Recharges,689988,Unclassified E690,04/09/2023,4175491-RES-09-2023-029,"4,456.00",ACORN CARE & EDUCATION LTD.
Children and Young Peoples Services,Head of Early Help Inclusion & Vulnerable Children.,Premises,108099,Service Repairs and Maintenance,04/09/2023,4175492-52980349,"88,264.29",ADT FIRE & SECURITY PLC.
Neighbourhoods and Climate Change,Environmental Services,Supplies and Services,304259,Equipment and Materials,04/09/2023,4175493-424986842,509.45,AIR PRODUCTS PLC.
Regeneration Economy and Growth,Corporate Property and Land,Third Party Payments,430100,Rendered by Private Contractors,04/09/2023,4175496-SI30101,"4,750.00",AMBIC LTD.
Regeneration Economy and Growth,Corporate Property and Land,Third Party Payments,430100,Rendered by Private Contractors,04/09/2023,4175496-SI30102,800.00,AMBIC LTD.
Regeneration Economy and Growth,Corporate Property and Land,Third Party Payments,430100,Rendered by Private Contractors,04/09/2023,4175498-INV-0107,"6,775.00",ARMIGER TIMBER FRAME LTD.
Neighbourhoods and Climate Change,Environmental Services,Supplies and Services,304259,Equipment and Materials,04/09/2023,4175499-924895,"1,200.49",ARNDALE GROUP OF COMPANIES.
Neighbourhoods and Climate Change,Environmental Services,Third Party Payments,430114,Rendered by Private Contractors,04/09/2023,4175504-509M00490,"115,631.68",BIFFA WASTE SERVICES LTD.
Regeneration Economy and Growth,Culture Sport and Tourism,Supplies and Services,372009,Subscriptions E372,04/09/2023,4175507-INV-13567,"1,004.55",BRAMBLE HUB LTD.
Neighbourhoods and Climate Change,Highways,Supplies and Services,304221,Equipment and Materials,04/09/2023,4175510-0000308552,720.00,BROXAP LTD.
Children and Young Peoples Services,Head of Childrens Social Care,Supplies and Services,364359,Grants to Voluntary Organisations,04/09/2023,4175511-0000172093,"1,212.68",BUSY BEARS (DURHAM) LTD.
Children and Young Peoples Services,Head of Childrens Social Care,Supplies and Services,364359,Grants to Voluntary Organisations,04/09/2023,4175511-JULY-INVOICE-FOR-ERIN,"1,132.23",BUSY BEARS (DURHAM) LTD.
Children and Young Peoples Services,Head of Childrens Social Care,Supplies and Services,364359,Grants to Voluntary Organisations,04/09/2023,4175511-JULYINVOICEFORZAK,916.00,BUSY BEARS (DURHAM) LTD.
Children and Young Peoples Services,Head of Early Help Inclusion & Vulnerable Children.,Supplies and Services,342053,Computers and Communications,04/09/2023,4175512-1148211,608.28,BYTES SOFTWARE SERVICES LTD.
Regeneration Economy and Growth,Corporate Property and Land,Third Party Payments,430100,Rendered by Private Contractors,04/09/2023,4175513-11636,"1,068.38",CATHEDRAL LOCK & SAFE SERVICES LTD.
Neighbourhoods and Climate Change,Highways,Supplies and Services,304221,Equipment and Materials,04/09/2023,4175515-2321,"3,555.00",CIS STREET FURNITURE LTD.
Regeneration Economy and Growth,Culture Sport and Tourism,Premises,145023,Cleaning and Domestic Supplies,04/09/2023,4175516-CN30283291,790.92,CITRON HYGIENE UK LTD.
Resources BK0010,Transactional & Customer Services,Supplies and Services,338066,Services,04/09/2023,4175517-C/BN281827,"9,542.80",CIVICA UK LTD.
Resources BK0010,Transactional & Customer Services,Supplies and Services,338066,Services,04/09/2023,4175517-C/BN281829,"7,700.00",CIVICA UK LTD.
Resources BK0010,Transactional & Customer Services,Supplies and Services,338066,Services,04/09/2023,4175517-C/BN281831,"9,177.71",CIVICA UK LTD.
Neighbourhoods and Climate Change,Environmental Services,Third Party Payments,460305,Contract Payments,04/09/2023,4175518-7499,"4,908.00",CO-WHEELS CAR CLUB CIC.
Neighbourhoods and Climate Change,Environmental Services,Supplies and Services,384199,Miscellaneous Expenses,04/09/2023,4175520-C0837,"7,671.40",CONSERVEFOR.
Resources BK0010,Digital Services,Supplies and Services,342051,Computers and Communications,04/09/2023,4175521-UOTR5130592,"45,789.00",CONVERA UK FINANCIAL LTD.
Resources BK0010,Digital Services,Supplies and Services,342051,Computers and Communications,04/09/2023,4175521-UOTR5130595,"6,002.00",CONVERA UK FINANCIAL LTD.
Resources BK0010,Legal & Democratic Services,Supplies and Services,338042,Services,04/09/2023,4175534-364970/INVBD224,875.00,DERE STREET BARRISTERS.
Resources BK0010,Legal & Democratic Services,Supplies and Services,338042,Services,04/09/2023,4175534-375331/INVTD1045,"1,400.00",DERE STREET BARRISTERS.
Resources BK0010,Legal & Democratic Services,Supplies and Services,338042,Services,04/09/2023,4175534-378390/INVKVR237,775.00,DERE STREET BARRISTERS.
Resources BK0010,Legal & Democratic Services,Supplies and Services,338042,Services,04/09/2023,4175534-383260/INVCF477,525.00,DERE STREET BARRISTERS.
Resources BK0010,Legal & Democratic Services,Supplies and Services,338042,Services,04/09/2023,4175534-385895/INVHT80,"3,375.00",DERE STREET BARRISTERS.
Resources BK0010,Legal & Democratic Services,Supplies and Services,338042,Services,04/09/2023,4175534-388488/INVTD1046,"1,315.00",DERE STREET BARRISTERS.
Resources BK0010,Legal & Democratic Services,Supplies and Services,338042,Services,04/09/2023,4175534-389346/INVHS99,775.00,DERE STREET BARRISTERS.
Resources BK0010,Legal & Democratic Services,Supplies and Services,338042,Services,04/09/2023,4175534-389846/INVLW517,875.00,DERE STREET BARRISTERS.
Chief Executives Office,Communications Management,Supplies and Services,332029,Printing Stationery and Gen Off Exps,04/09/2023,4175535-46696,579.16,DESIGN X PRESS LTD.
Neighbourhoods and Climate Change,Environmental Services,Supplies and Services,384199,Miscellaneous Expenses,04/09/2023,4175537-INV-0538,800.00,DIFFERENT NARRATIVE INTEGRATED MARKETING LTD.
Neighbourhoods and Climate Change,Environmental Services,Third Party Payments,430100,Rendered by Private Contractors,04/09/2023,4175544-INV-696,"1,700.00",ECO ENTERPRISES LTD.
Regeneration Economy and Growth,Business Durham,Premises,120009,Energy Costs,04/09/2023,4175545-000016383859,"4,598.02",EDF ENERGY CUSTOMERS PLC T/A EDF ENERGY.
Regeneration Economy and Growth,Business Durham,Premises,120009,Energy Costs,04/09/2023,4175545-000016385511,"11,223.83",EDF ENERGY CUSTOMERS PLC T/A EDF ENERGY.
Regeneration Economy and Growth,Corporate Property and Land,Supplies and Services,304221,Equipment and Materials,04/09/2023,4175546-059-323587,"1,770.76",EDMUNDSON ELECTRICAL LTD.
Regeneration Economy and Growth,Corporate Property and Land,Supplies and Services,304221,Equipment and Materials,04/09/2023,4175546-059-323593,"1,939.70",EDMUNDSON ELECTRICAL LTD.
Regeneration Economy and Growth,Corporate Property and Land,Supplies and Services,304221,Equipment and Materials,04/09/2023,4175546-059-323616,"1,419.46",EDMUNDSON ELECTRICAL LTD.
Regeneration Economy and Growth,Corporate Property and Land,Supplies and Services,304221,Equipment and Materials,04/09/2023,4175546-059-323646,519.14,EDMUNDSON ELECTRICAL LTD.
Children and Young Peoples Services,Head of Education and Skills,Supplies and Services,384199,Miscellaneous Expenses,04/09/2023,4175548-DW004,"3,168.00",ENDORPHINS GROUP LTD.
Neighbourhoods and Climate Change,Highways,Third Party Payments,430100,Rendered by Private Contractors,04/09/2023,4175550-400300-23,711.00,ESH CONSTRUCTION LTD FORMERLY LUMSDEN & CARROLL CONSTRUCTION LTD.
Children and Young Peoples Services,Head of Early Help Inclusion & Vulnerable Children.,Supplies and Services,384700,Miscellaneous Expenses,04/09/2023,4175553-RES-09-2023-021,"80,919.00",FEEDING FAMILIES.
Regeneration Economy and Growth,Culture Sport and Tourism,Premises,145023,Cleaning and Domestic Supplies,04/09/2023,4175557-06/234539,611.87,GREENHAM TRADING LTD.
Regeneration Economy and Growth,Culture Sport and Tourism,Premises,145023,Cleaning and Domestic Supplies,04/09/2023,4175557-06/235449,"1,371.98",GREENHAM TRADING LTD.
Neighbourhoods and Climate Change,Highways,Supplies and Services,304221,Equipment and Materials,04/09/2023,4175563-400050272,"10,153.85",ICL UK SALES LTD (CLEVELAND POTASH LTD).
Neighbourhoods and Climate Change,Highways,Supplies and Services,304221,Equipment and Materials,04/09/2023,4175563-400050273,"8,914.12",ICL UK SALES LTD (CLEVELAND POTASH LTD).
Resources BK0010,Digital Services,Stock A926,926900,Stock in hand-Inventory system,04/09/2023,4175567-2100681296,887.71,INSIGHT DIRECT (UK) LTD.
Resources BK0010,Digital Services,Stock A926,926900,Stock in hand-Inventory system,04/09/2023,4175567-2100681297,"1,647.95",INSIGHT DIRECT (UK) LTD.
Children and Young Peoples Services,Childrens Services Operational Support,Supplies and Services,342033,Computers and Communications,04/09/2023,4175567-2100682776,551.64,INSIGHT DIRECT (UK) LTD.
Regeneration Economy and Growth,Corporate Property and Land,Supplies and Services,304221,Equipment and Materials,04/09/2023,4175575-0113/00045321,534.49,JT DOVE LTD.
Regeneration Economy and Growth,Corporate Property and Land,Supplies and Services,304221,Equipment and Materials,04/09/2023,4175575-0113/00050239,"1,111.50",JT DOVE LTD.
Regeneration Economy and Growth,Corporate Property and Land,Supplies and Services,304221,Equipment and Materials,04/09/2023,4175575-0213/00985738,580.28,JT DOVE LTD.
Neighbourhoods and Climate Change,Highways,Supplies and Services,304221,Equipment and Materials,04/09/2023,4175583-Z001678005,"7,007.61",MARSHALLS MONO LTD.
Neighbourhoods and Climate Change,Environmental Services,Fees,901001,Internal fees,04/09/2023,4175585-ELMHC-7554,"10,700.97",MER FLEET SERVICES LTD.
Regeneration Economy and Growth,Transport and Contracted Services,Construction work A908,908105,Construction work,04/09/2023,4175601-1800011989584,"23,570.65",NEWCASTLE UPON TYNE CITY COUNCIL.
Neighbourhoods and Climate Change,Highways,Supplies and Services,336005,Advertising E336,04/09/2023,4175602-43329409,561.67,NEWSQUEST (YORKSHIRE & NORTH EAST) LTD.
Regeneration Economy and Growth,Planning & Housing,Supplies and Services,336005,Advertising E336,04/09/2023,4175602-43338098,627.50,NEWSQUEST (YORKSHIRE & NORTH EAST) LTD.
Children and Young Peoples Services,Head of Early Help Inclusion & Vulnerable Children.,Supplies and Services,384409,Miscellaneous Expenses,04/09/2023,4175604-2384,"6,480.00",NMC SPORTS.
Children and Young Peoples Services,Head of Childrens Social Care,Third Party Payments,440046,Other third party payments E440,04/09/2023,4175609-0018,"18,600.00",OIKOS RESIDENTIAL FAMILY CENTRES.
Regeneration Economy and Growth,Corporate Property and Land,Third Party Payments,430100,Rendered by Private Contractors,04/09/2023,4175610-G0759822B,570.18,ORBIS PROTECT LTD.
Regeneration Economy and Growth,Corporate Property and Land,Supplies and Services,304221,Equipment and Materials,04/09/2023,4175612-DT209409,"1,957.08",PARK ELECTRICAL DISTRIBUTORS LTD.
Regeneration Economy and Growth,Corporate Property and Land,Supplies and Services,304221,Equipment and Materials,04/09/2023,4175612-XL305926,621.32,PARK ELECTRICAL DISTRIBUTORS LTD.
Regeneration Economy and Growth,Planning & Housing,Supplies and Services,364501,Grants to Voluntary Organisations,04/09/2023,4175615-2308007,695.00,PETER CLARK PROPERTY SERVICES LTD.
Children and Young Peoples Services,Head of Education and Skills,Supplies and Services,312009,Newspapers books and periodicals E312,04/09/2023,4175616-2012077,"1,606.80",PETERS LTD.
Resources BK0010,Legal & Democratic Services,Supplies and Services,338106,Services,04/09/2023,4175617-11082023,"1,200.00",PHILLIPS & CO COSMETIC DENTISTRY.
Adult and Health Services,Public Health CC0450,Third Party Payments,460803,Contract Payments,04/09/2023,4175619-18458/18,"5,462.92",PIONEERING CARE PARTNERSHIP.
Adult and Health Services,Public Health CC0450,Third Party Payments,460803,Contract Payments,04/09/2023,4175619-18459/18,"7,327.00",PIONEERING CARE PARTNERSHIP.
Children and Young Peoples Services,Head of Education and Skills,Supplies and Services,384199,Miscellaneous Expenses,04/09/2023,4175620-FFL6,"14,044.80",POLICE COMMUNITY CLUBS LTD.
Children and Young Peoples Services,Head of Education and Skills,Supplies and Services,384199,Miscellaneous Expenses,04/09/2023,4175620-FFL7,"5,174.40",POLICE COMMUNITY CLUBS LTD.
Regeneration Economy and Growth,Transport and Contracted Services,Third Party Payments,430100,Rendered by Private Contractors,04/09/2023,4175622-178999,"1,085.00",PREMIER TRAFFIC MANAGEMENT LTD.
Children and Young Peoples Services,Head of Childrens Social Care,Third Party Payments,486020,Service level agreements E486,04/09/2023,4175623-TL3,"2,320.00",PRESTYS HACKNEY & PRIVATE HIRE TAXIS.
Neighbourhoods and Climate Change,Partnerships & Community Engagement Div.,Supplies and Services,384071,Miscellaneous Expenses,04/09/2023,4175626-EVNT60407,"1,620.00",RAMSIDE HALL HOTEL & GOLF CLUB.*
Adult and Health Services,Head of Adults,Supplies and Services,304259,Equipment and Materials,04/09/2023,4175632-174274,558.60,ROMPA LTD.
Children and Young Peoples Services,Head of Education and Skills,Construction work A908,908105,Construction work,04/09/2023,4175634-7624,"29,850.00",SAFE STRIP UK LTD.
Regeneration Economy and Growth,Business Durham,Supplies and Services,338099,Services,04/09/2023,4175636-1651,"1,347.00",SANDERSON WEATHERALL LLP.
Resources BK0010,Digital Services,Supplies and Services,342051,Computers and Communications,04/09/2023,4175640-INVUK968046,"3,332.50",SOFTCAT PLC.
Chief Executives Office,Communications Management,Supplies and Services,332029,Printing Stationery and Gen Off Exps,04/09/2023,4175643-150094,597.00,STATEX PRESS (NORTHERN) LTD.
Neighbourhoods and Climate Change,Highways,Stock A926,926900,Stock in hand-Inventory system,04/09/2023,4175646-9047315532,"1,036.44",TARMAC TRADING LTD.
Regeneration Economy and Growth,Culture Sport and Tourism,Supplies and Services,336005,Advertising E336,04/09/2023,4175647-6903,820.00,THE CRACK LTD.
Dedicated Schools Grant BG0015,DSG High Needs Block,Third Party Payments,440080,Other third party payments E440,04/09/2023,4175648-19716,"25,106.27",THE PERCY HEDLEY FOUNDATION.
Dedicated Schools Grant BG0015,DSG High Needs Block,Third Party Payments,425005,Rendered by Voluntary Organisations,04/09/2023,4175648-19717,"25,161.05",THE PERCY HEDLEY FOUNDATION.
Dedicated Schools Grant BG0015,DSG High Needs Block,Third Party Payments,440080,Other third party payments E440,04/09/2023,4175648-19718,"21,601.28",THE PERCY HEDLEY FOUNDATION.
Dedicated Schools Grant BG0015,DSG High Needs Block,Third Party Payments,425005,Rendered by Voluntary Organisations,04/09/2023,4175648-19719,"15,162.56",THE PERCY HEDLEY FOUNDATION.
Adult and Health Services,Head of Adults,Supplies and Services,328041,Clothing uniforms and laundry E328,04/09/2023,4175649-NSIN00099067,863.40,THOMAS OWEN & SONS (NEWCASTLE) LTD.
Neighbourhoods and Climate Change,Highways,Supplies and Services,304221,Equipment and Materials,04/09/2023,4175652-40237,"9,660.00",TODDS HIGHWAY MAINTENANCE LTD.
Neighbourhoods and Climate Change,Highways,Stock A926,926900,Stock in hand-Inventory system,04/09/2023,4175653-114489,"1,000.00",TOTAL RENTAL SOLUTIONS LTD.
Neighbourhoods and Climate Change,Highways,Stock A926,926900,Stock in hand-Inventory system,04/09/2023,4175653-114490,645.00,TOTAL RENTAL SOLUTIONS LTD.
Neighbourhoods and Climate Change,Highways,Stock A926,926900,Stock in hand-Inventory system,04/09/2023,4175653-114492,550.00,TOTAL RENTAL SOLUTIONS LTD.
Neighbourhoods and Climate Change,Highways,Stock A926,926900,Stock in hand-Inventory system,04/09/2023,4175653-114495,"4,900.00",TOTAL RENTAL SOLUTIONS LTD.
Neighbourhoods and Climate Change,Highways,Stock A926,926900,Stock in hand-Inventory system,04/09/2023,4175653-114497,508.00,TOTAL RENTAL SOLUTIONS LTD.
Neighbourhoods and Climate Change,Highways,Stock A926,926900,Stock in hand-Inventory system,04/09/2023,4175653-114498,"4,422.00",TOTAL RENTAL SOLUTIONS LTD.
Neighbourhoods and Climate Change,Highways,Stock A926,926900,Stock in hand-Inventory system,04/09/2023,4175653-114499,"3,375.00",TOTAL RENTAL SOLUTIONS LTD.
Neighbourhoods and Climate Change,Highways,Stock A926,926900,Stock in hand-Inventory system,04/09/2023,4175653-114500,797.60,TOTAL RENTAL SOLUTIONS LTD.
Neighbourhoods and Climate Change,Highways,Stock A926,926900,Stock in hand-Inventory system,04/09/2023,4175653-114502,516.40,TOTAL RENTAL SOLUTIONS LTD.
Neighbourhoods and Climate Change,Highways,Stock A926,926900,Stock in hand-Inventory system,04/09/2023,4175653-114504,"1,258.50",TOTAL RENTAL SOLUTIONS LTD.
Neighbourhoods and Climate Change,Environmental Services,Premises,106082,Centrally Controlled Rep and Maint,04/09/2023,4175658-DLB19028,"1,214.00",TYCO FIRE & INTEGRATED SOLUTIONS (UK) LTD.
Neighbourhoods and Climate Change,Highways,Supplies and Services,304221,Equipment and Materials,04/09/2023,4175659-250031,"6,527.71",TYNEDALE ROADSTONE LTD.
Neighbourhoods and Climate Change,Highways,Supplies and Services,304221,Equipment and Materials,04/09/2023,4175659-250032,"1,404.38",TYNEDALE ROADSTONE LTD.
Neighbourhoods and Climate Change,Highways,Supplies and Services,304221,Equipment and Materials,04/09/2023,4175659-250033,"2,327.85",TYNEDALE ROADSTONE LTD.
Neighbourhoods and Climate Change,Highways,Supplies and Services,304221,Equipment and Materials,04/09/2023,4175659-250034,"1,603.56",TYNEDALE ROADSTONE LTD.
Neighbourhoods and Climate Change,Highways,Supplies and Services,304221,Equipment and Materials,04/09/2023,4175659-250036,"1,062.41",TYNEDALE ROADSTONE LTD.
Neighbourhoods and Climate Change,Highways,Supplies and Services,304221,Equipment and Materials,04/09/2023,4175659-250037,"3,907.39",TYNEDALE ROADSTONE LTD.
Neighbourhoods and Climate Change,Highways,Supplies and Services,304221,Equipment and Materials,04/09/2023,4175659-250038,"1,049.76",TYNEDALE ROADSTONE LTD.
Neighbourhoods and Climate Change,Highways,Supplies and Services,304221,Equipment and Materials,04/09/2023,4175659-250039,"2,716.90",TYNEDALE ROADSTONE LTD.
Neighbourhoods and Climate Change,Highways,Supplies and Services,304221,Equipment and Materials,04/09/2023,4175659-250040,"1,605.17",TYNEDALE ROADSTONE LTD.
Regeneration Economy and Growth,Corporate Property and Land,Third Party Payments,430105,Rendered by Private Contractors,04/09/2023,4175661-8541262502,"1,526.34",VEOLIA ENVIRONMENTAL SERVICES ES (UK) LTD.
Neighbourhoods and Climate Change,Environmental Services,Third Party Payments,430115,Rendered by Private Contractors,04/09/2023,4175664-28518,"4,238.40",WGR LTD.
Neighbourhoods and Climate Change,Highways,Stock A926,926900,Stock in hand-Inventory system,04/09/2023,4175665-59451,579.00,WILLOWCRETE MANUFACTURING COMPANY LTD (MFG).
Neighbourhoods and Climate Change,Environmental Services,Third Party Payments,430100,Rendered by Private Contractors,04/09/2023,4175665-59471,969.00,WILLOWCRETE MANUFACTURING COMPANY LTD (MFG).
Neighbourhoods and Climate Change,Environmental Services,Transport,215023,Running Costs of Vehicles,04/09/2023,4175669-1003658,620.00,YOUR NRG LTD.
Neighbourhoods and Climate Change,Environmental Services,Transport,215005,Running Costs of Vehicles,04/09/2023,4175669-1194556,"12,096.72",YOUR NRG LTD.
Neighbourhoods and Climate Change,Environmental Services,Transport,215005,Running Costs of Vehicles,04/09/2023,4175670-1002527,"7,824.85",YOUR NRG LTD.
Neighbourhoods and Climate Change,Environmental Services,Transport,215005,Running Costs of Vehicles,04/09/2023,4175670-1010216,"13,083.73",YOUR NRG LTD.
Neighbourhoods and Climate Change,Environmental Services,Transport,215005,Running Costs of Vehicles,04/09/2023,4175670-1011004,"14,432.40",YOUR NRG LTD.
Neighbourhoods and Climate Change,Highways,Supplies and Services,304221,Equipment and Materials,04/09/2023,4175672-145536945,"2,560.00",ZG LIGHTING (UK) LTD.
Adult and Health Services,Head of Adults,Third Party Payments,478101,Purchase of Care,05/09/2023,4176275-047,"1,282.40",REDACTED - PAYMENT TO INDIVIDUAL
Regeneration Economy and Growth,Corporate Property and Land,Third Party Payments,430100,Rendered by Private Contractors,05/09/2023,4176334-DCC296,"1,700.00",REDACTED - PAYMENT TO INDIVIDUAL
Regeneration Economy and Growth,Corporate Property and Land,Third Party Payments,430100,Rendered by Private Contractors,05/09/2023,4176334-DCC297,"1,660.00",REDACTED - PAYMENT TO INDIVIDUAL
Regeneration Economy and Growth,Corporate Property and Land,Third Party Payments,430100,Rendered by Private Contractors,05/09/2023,4176334-DCC298,"1,280.00",REDACTED - PAYMENT TO INDIVIDUAL
Regeneration Economy and Growth,Corporate Property and Land,Third Party Payments,430100,Rendered by Private Contractors,05/09/2023,4176334-DCC299,"1,280.00",REDACTED - PAYMENT TO INDIVIDUAL
Neighbourhoods and Climate Change,Environmental Services,Supplies and Services,338066,Services,05/09/2023,4176382-2023/000021,"1,710.00",REDACTED - PAYMENT TO INDIVIDUAL
Regeneration Economy and Growth,Planning & Housing,Premises,108099,Service Repairs and Maintenance,05/09/2023,4176301-GRNW043SEPT23,"2,875.51",HADRIAN PROPERTY MANAGEMENT COMPANY LTD.
Neighbourhoods and Climate Change,Environmental Services,Supplies and Services,338099,Services,05/09/2023,4176241-AE08II23,"1,500.00",ARCHAEO-ENVIRONMENT LTD.
Regeneration Economy and Growth,Corporate Property and Land,Third Party Payments,430100,Rendered by Private Contractors,05/09/2023,4176243-INV-0096A,"6,179.71",ARMIGER TIMBER FRAME LTD.
Regeneration Economy and Growth,Culture Sport and Tourism,Supplies and Services,312013,Newspapers books and periodicals E312,05/09/2023,4176244-6925320,564.34,ASKEWS & HOLTS LIBRARY SERVICES LTD.
Regeneration Economy and Growth,Culture Sport and Tourism,Supplies and Services,312013,Newspapers books and periodicals E312,05/09/2023,4176244-6925321,804.75,ASKEWS & HOLTS LIBRARY SERVICES LTD.
Regeneration Economy and Growth,Culture Sport and Tourism,Supplies and Services,312013,Newspapers books and periodicals E312,05/09/2023,4176244-6925593,823.30,ASKEWS & HOLTS LIBRARY SERVICES LTD.
Regeneration Economy and Growth,Culture Sport and Tourism,Supplies and Services,312013,Newspapers books and periodicals E312,05/09/2023,4176244-6926348,676.90,ASKEWS & HOLTS LIBRARY SERVICES LTD.
Neighbourhoods and Climate Change,Highways,Supplies and Services,304221,Equipment and Materials,05/09/2023,4176252-207R02895,"1,904.54",BIFFA WASTE SERVICES LTD.
Regeneration Economy and Growth,Culture Sport and Tourism,Supplies and Services,304359,Equipment and Materials,05/09/2023,4176252-305C28648,600.00,BIFFA WASTE SERVICES LTD.
Neighbourhoods and Climate Change,Highways,Third Party Payments,430100,Rendered by Private Contractors,05/09/2023,4176253-4461,"14,375.00",BILLIAN UK LTD T/A ROADMENDER ASPHALT.
Regeneration Economy and Growth,Corporate Property and Land,Supplies and Services,304359,Equipment and Materials,05/09/2023,4176254-BMPR/1268/SKIPS,630.00,BISHOP MIDDLEHAM PLANT & RECYCLING LTD.
Regeneration Economy and Growth,Corporate Property and Land,Supplies and Services,304359,Equipment and Materials,05/09/2023,4176254-BMPR/1271/SKIPS,630.00,BISHOP MIDDLEHAM PLANT & RECYCLING LTD.
Regeneration Economy and Growth,Corporate Property and Land,Supplies and Services,304359,Equipment and Materials,05/09/2023,4176254-BMPR/1278/SKIPS,691.00,BISHOP MIDDLEHAM PLANT & RECYCLING LTD.
Regeneration Economy and Growth,Culture Sport and Tourism,Supplies and Services,312013,Newspapers books and periodicals E312,05/09/2023,4176255-140362,"1,009.57",BOLINDA DIGITAL LTD.
Regeneration Economy and Growth,Culture Sport and Tourism,Supplies and Services,312013,Newspapers books and periodicals E312,05/09/2023,4176255-42041,"2,759.80",BOLINDA DIGITAL LTD.
Neighbourhoods and Climate Change,Highways,Supplies and Services,304221,Equipment and Materials,05/09/2023,4176257-21406331,"1,064.76",BREEDON TRADING LTD.
Neighbourhoods and Climate Change,Highways,Supplies and Services,304221,Equipment and Materials,05/09/2023,4176257-21409005,"1,319.10",BREEDON TRADING LTD.
Neighbourhoods and Climate Change,Highways,Supplies and Services,304221,Equipment and Materials,05/09/2023,4176257-21411649,779.10,BREEDON TRADING LTD.
Neighbourhoods and Climate Change,Highways,Supplies and Services,304221,Equipment and Materials,05/09/2023,4176257-21413701,"11,189.10",BREEDON TRADING LTD.
Neighbourhoods and Climate Change,Environmental Services,Third Party Payments,430100,Rendered by Private Contractors,05/09/2023,4176265-23/07,750.00,CM & JA WADSWORTH (FORESTRY & GARDEN SERVICES).
Regeneration Economy and Growth,Corporate Property and Land,Third Party Payments,430100,Rendered by Private Contractors,05/09/2023,4176273-N525490,545.00,D-DRILL (MASTER DRILLERS) LTD.
Neighbourhoods and Climate Change,Environmental Services,Transport,210057,Repair and Maintenance of Vehicles,05/09/2023,4176278-96445308,548.32,DENNIS EAGLE LTD T/A TERBERG MATEC (UK) LTD.
Regeneration Economy and Growth,Corporate Property and Land,Third Party Payments,430100,Rendered by Private Contractors,05/09/2023,4176282-10928,"2,610.00",DURHAM AIR CONDITIONING LTD.
Regeneration Economy and Growth,Corporate Property and Land,Supplies and Services,304221,Equipment and Materials,05/09/2023,4176284-059-323481,"1,402.50",EDMUNDSON ELECTRICAL LTD.
Neighbourhoods and Climate Change,Highways,Premises,120009,Energy Costs,05/09/2023,4176287-KI-839CBF59-0015,694.72,EON NEXT ENERGY LTD.*
Neighbourhoods and Climate Change,Environmental Services,Third Party Payments,430120,Rendered by Private Contractors,05/09/2023,4176291-CTIN06718133,"8,317.16",FINNING (UK) LTD.
Neighbourhoods and Climate Change,Environmental Services,Transport,210057,Repair and Maintenance of Vehicles,05/09/2023,4176293-442795,675.11,FORD & SLATER LTD.
Regeneration Economy and Growth,Corporate Property and Land,Third Party Payments,430100,Rendered by Private Contractors,05/09/2023,4176310-14674,936.00,INGLEFORD SCAFFOLDING LTD.
Neighbourhoods and Climate Change,Highways,Supplies and Services,304358,Equipment and Materials,05/09/2023,4176315-SI-816,"4,387.50",JOHN DOBSON PLANT HIRE LTD.
Neighbourhoods and Climate Change,Highways,Supplies and Services,304358,Equipment and Materials,05/09/2023,4176315-SI-817,"3,022.50",JOHN DOBSON PLANT HIRE LTD.
Resources BK0010,Digital Services,Supplies and Services,342033,Computers and Communications,05/09/2023,4176328-12659797,"2,046.00",MAINTEL EUROPE LTD.
Resources BK0010,Transactional & Customer Services,Supplies and Services,344132,Telephones,05/09/2023,4176328-12659866,"11,400.00",MAINTEL EUROPE LTD.
Neighbourhoods and Climate Change,Highways,Supplies and Services,304040,Equipment and Materials,05/09/2023,4176337-NPSL1972,"3,370.26",NORDIC PRODUCTS & SERVICES LTD.
Neighbourhoods and Climate Change,Environmental Services,Transport,210057,Repair and Maintenance of Vehicles,05/09/2023,4176341-1925366,594.16,NORTH EAST TRUCK & VAN LTD.
Regeneration Economy and Growth,Corporate Property and Land,Third Party Payments,430100,Rendered by Private Contractors,05/09/2023,4176342-11489-11,"20,000.00",OPUS BUILDING SERVICES LTD.
Neighbourhoods and Climate Change,Highways,Third Party Payments,430100,Rendered by Private Contractors,05/09/2023,4176354-179233,"18,992.00",PREMIER TRAFFIC MANAGEMENT LTD.
Resources BK0010,Digital Services,Supplies and Services,342053,Computers and Communications,05/09/2023,4176361-19477,"3,058.60",SATISNET LTD.
Regeneration Economy and Growth,Culture Sport and Tourism,Supplies and Services,384199,Miscellaneous Expenses,05/09/2023,4176374-19508,"4,014.50",STEADFAST SECURITY SOLUTIONS LTD.
Neighbourhoods and Climate Change,Highways,Supplies and Services,304221,Equipment and Materials,05/09/2023,4176374-19590,"1,395.00",STEADFAST SECURITY SOLUTIONS LTD.
Neighbourhoods and Climate Change,Environmental Services,Transport,230005,Contract Hire,05/09/2023,4176385-26103,"1,375.00",TRASH UK LTD.
Neighbourhoods and Climate Change,Environmental Services,Transport,230005,Contract Hire,05/09/2023,4176385-26112,"1,375.00",TRASH UK LTD.
Neighbourhoods and Climate Change,Environmental Services,Transport,230005,Contract Hire,05/09/2023,4176385-26113,"1,375.00",TRASH UK LTD.
Neighbourhoods and Climate Change,Environmental Services,Transport,230005,Contract Hire,05/09/2023,4176385-26115,"2,200.00",TRASH UK LTD.
Neighbourhoods and Climate Change,Environmental Services,Transport,230005,Contract Hire,05/09/2023,4176385-26146,800.00,TRASH UK LTD.
Neighbourhoods and Climate Change,Environmental Services,Transport,230005,Contract Hire,05/09/2023,4176385-26147,800.00,TRASH UK LTD.
Neighbourhoods and Climate Change,Environmental Services,Transport,230005,Contract Hire,05/09/2023,4176386-26062,"1,375.00",TRASH UK LTD.
Neighbourhoods and Climate Change,Environmental Services,Transport,230005,Contract Hire,05/09/2023,4176386-26063,"1,375.00",TRASH UK LTD.
Neighbourhoods and Climate Change,Environmental Services,Transport,230005,Contract Hire,05/09/2023,4176386-26068,550.00,TRASH UK LTD.
Neighbourhoods and Climate Change,Environmental Services,Transport,230005,Contract Hire,05/09/2023,4176386-26086,"1,375.00",TRASH UK LTD.
Neighbourhoods and Climate Change,Highways,Supplies and Services,304221,Equipment and Materials,05/09/2023,4176388-247473,"1,400.81",TYNEDALE ROADSTONE LTD.
Neighbourhoods and Climate Change,Highways,Supplies and Services,304221,Equipment and Materials,05/09/2023,4176388-248737,935.59,TYNEDALE ROADSTONE LTD.
Neighbourhoods and Climate Change,Highways,Supplies and Services,304221,Equipment and Materials,05/09/2023,4176388-248738,"2,162.00",TYNEDALE ROADSTONE LTD.
Children and Young Peoples Services,Head of Early Help Inclusion & Vulnerable Children.,Supplies and Services,344033,Telephones,05/09/2023,4176389-209611,572.70,UNIFY BUSINESS SOLUTIONS LTD.
Resources BK0010,Digital Services,Supplies and Services,342033,Computers and Communications,05/09/2023,4176390-R-75943,"2,040.00",UPNORTH ENGINEERING SERVICES LTD.
Neighbourhoods and Climate Change,Environmental Services,Supplies and Services,338078,Services,05/09/2023,4176392-INV-59671,"2,860.80",VISTECH SERVICES LTD.
Children and Young Peoples Services,Head of Early Help Inclusion & Vulnerable Children.,Supplies and Services,338078,Services,05/09/2023,4176392-INV-59672,"5,050.08",VISTECH SERVICES LTD.
Neighbourhoods and Climate Change,Environmental Services,Supplies and Services,338078,Services,05/09/2023,4176392-INV-59685,"2,525.55",VISTECH SERVICES LTD.
Neighbourhoods and Climate Change,Environmental Services,Supplies and Services,338078,Services,05/09/2023,4176392-INV-59686,"1,028.10",VISTECH SERVICES LTD.
Neighbourhoods and Climate Change,Environmental Services,Supplies and Services,338078,Services,05/09/2023,4176392-INV-59687,"1,758.20",VISTECH SERVICES LTD.
Regeneration Economy and Growth,Culture Sport and Tourism,Supplies and Services,338047,Services,06/09/2023,4176657-60253658,645.83,STUDIOCANAL LTD.
Adult and Health Services,Head of Adults,Transport,230005,Contract Hire,06/09/2023,4176441-EAS199AUG23,"1,199.00",REDACTED - PAYMENT TO INDIVIDUAL
Adult and Health Services,Head of Adults,Transport,230005,Contract Hire,06/09/2023,4176520-23-AUG23,503.00,REDACTED - PAYMENT TO INDIVIDUAL
Regeneration Economy and Growth,Culture Sport and Tourism,Supplies and Services,338047,Services,06/09/2023,4176552-JT23/MS0014,"1,500.00",REDACTED - PAYMENT TO INDIVIDUAL
Children and Young Peoples Services,Head of Childrens Social Care,Supplies and Services,338066,Services,06/09/2023,4176566-17,"1,977.00",REDACTED - PAYMENT TO INDIVIDUAL
Children and Young Peoples Services,Head of Education and Skills,Transport,230008,Contract Hire,06/09/2023,4176584-KDC-01072023,"1,485.69",REDACTED - PAYMENT TO INDIVIDUAL
Adult and Health Services,Head of Adults,Transport,230005,Contract Hire,06/09/2023,4176590-DW144AUG23,720.00,REDACTED - PAYMENT TO INDIVIDUAL
Neighbourhoods and Climate Change,Highways,Third Party Payments,430127,Rendered by Private Contractors,06/09/2023,4176594-5955,"7,522.50",REDACTED - PAYMENT TO INDIVIDUAL
Neighbourhoods and Climate Change,Highways,Third Party Payments,430127,Rendered by Private Contractors,06/09/2023,4176594-5956,"1,802.50",REDACTED - PAYMENT TO INDIVIDUAL
Neighbourhoods and Climate Change,Highways,Third Party Payments,430128,Rendered by Private Contractors,06/09/2023,4176594-5957,"3,692.50",REDACTED - PAYMENT TO INDIVIDUAL
Neighbourhoods and Climate Change,Highways,Third Party Payments,430128,Rendered by Private Contractors,06/09/2023,4176594-5958,"2,200.00",REDACTED - PAYMENT TO INDIVIDUAL
Adult and Health Services,Head of Adults,Transport,230005,Contract Hire,06/09/2023,4176610-DM221AUG23,"2,332.00",REDACTED - PAYMENT TO INDIVIDUAL
Adult and Health Services,Head of Adults,Transport,230005,Contract Hire,06/09/2023,4176610-SED121AUG23,"1,364.00",REDACTED - PAYMENT TO INDIVIDUAL
Neighbourhoods and Climate Change,Environmental Services,Third Party Payments,430100,Rendered by Private Contractors,06/09/2023,4176495-251629,541.67,EVANS HALSHAW RENAULT DURHAM.
Resources BK0010,Digital Services,Supplies and Services,304303,Equipment and Materials,06/09/2023,4176518-INV0195019,"11,534.48",GVAV LTD T/A AUDIO VISUAL SOLUTIONS.
Dedicated Schools Grant BG0015,DSG High Needs Block,Central Support and Other Recharges,689988,Unclassified E690,06/09/2023,4176405-AUGUST2023TOPUP,"2,735.00",ADVANCE LEARNING PARTNERSHIP.
Dedicated Schools Grant BG0015,DSG Early Years Block,Transfer Payments,510030,School Children,06/09/2023,4176417-37482,739.20,AYCLIFFE DAY NURSERY.
Children and Young Peoples Services,Head of Childrens Social Care,Third Party Payments,425041,Rendered by Voluntary Organisations,06/09/2023,4176422-BARSI011433,"2,958.00",BARNARDO SERVICES LTD.
Regeneration Economy and Growth,Corporate Property and Land,Third Party Payments,430100,Rendered by Private Contractors,06/09/2023,4176424-SI-7227,"1,478.00",BELL CONTROL SOLUTIONS LTD.
Regeneration Economy and Growth,Corporate Property and Land,Fees,901002,Consultants fees 901002,06/09/2023,4176429-SIN045576,"377,607.90",BLOOM PROCUREMENT SERVICES LTD (FORMERLY NEPRO LTD).
Adult and Health Services,Adults Excluded,Supplies and Services,338066,Services,06/09/2023,4176429-SIN045577,"9,020.00",BLOOM PROCUREMENT SERVICES LTD (FORMERLY NEPRO LTD).
Neighbourhoods and Climate Change,Environmental Services,Supplies and Services,338066,Services,06/09/2023,4176430-741,545.00,BLUEJAM CUMBRIA T/A BLUEJAM ARTS.
Neighbourhoods and Climate Change,Partnerships & Community Engagement Div.,Supplies and Services,384086,Miscellaneous Expenses,06/09/2023,4176431-VOUCHERBLAJ04-23,800.00,BOWBURN COMMUNITY ASSOCIATION.
Neighbourhoods and Climate Change,Highways,Supplies and Services,338027,Services,06/09/2023,4176434-52954,"11,129.43",BRIDGEWAY CONSULTING LTD.
Regeneration Economy and Growth,Corporate Property and Land,Third Party Payments,430100,Rendered by Private Contractors,06/09/2023,4176444-CC144684,563.50,CITY CLEAN NORTHERN LTD.
Resources BK0010,Digital Services,Supplies and Services,342051,Computers and Communications,06/09/2023,4176446-C/MD282058,"27,608.00",CIVICA UK LTD.
Children and Young Peoples Services,Head of Education and Skills,Transport,230008,Contract Hire,06/09/2023,4176447-068,911.85,CJ COACHES.
Regeneration Economy and Growth,Business Durham,Premises,120021,Energy Costs,06/09/2023,4176454-17564060-AMENDMENT,"7,690.38",CORONA ENERGY RETAIL 2 LTD.
Dedicated Schools Grant BG0015,DSG High Needs Block,Central Support and Other Recharges,689988,Unclassified E690,06/09/2023,4176463-AUGUST2023TOPUP,"2,867.00",DENE ACADEMY.
Neighbourhoods and Climate Change,Environmental Services,Third Party Payments,430100,Rendered by Private Contractors,06/09/2023,4176466-96442844,941.38,DENNIS EAGLE LTD T/A TERBERG MATEC (UK) LTD.
Neighbourhoods and Climate Change,Environmental Services,Third Party Payments,430100,Rendered by Private Contractors,06/09/2023,4176466-96444239,"1,402.89",DENNIS EAGLE LTD T/A TERBERG MATEC (UK) LTD.
Neighbourhoods and Climate Change,Environmental Services,Third Party Payments,430100,Rendered by Private Contractors,06/09/2023,4176466-96444264,513.07,DENNIS EAGLE LTD T/A TERBERG MATEC (UK) LTD.
Neighbourhoods and Climate Change,Environmental Services,Third Party Payments,430100,Rendered by Private Contractors,06/09/2023,4176466-96445528,631.35,DENNIS EAGLE LTD T/A TERBERG MATEC (UK) LTD.
Resources BK0010,Legal & Democratic Services,Supplies and Services,338042,Services,06/09/2023,4176467-370168/INVSRG288,"1,831.25",DERE STREET BARRISTERS.
Resources BK0010,Legal & Democratic Services,Supplies and Services,338042,Services,06/09/2023,4176467-380662/INVRR205,"9,225.00",DERE STREET BARRISTERS.
Resources BK0010,Legal & Democratic Services,Supplies and Services,338042,Services,06/09/2023,4176467-383260/INVCF474,"3,350.00",DERE STREET BARRISTERS.
Resources BK0010,Legal & Democratic Services,Supplies and Services,338042,Services,06/09/2023,4176467-383260/INVSEB1X339,875.00,DERE STREET BARRISTERS.
Resources BK0010,Legal & Democratic Services,Supplies and Services,338042,Services,06/09/2023,4176467-386160/INVRR203,"3,350.00",DERE STREET BARRISTERS.
Resources BK0010,Legal & Democratic Services,Supplies and Services,338042,Services,06/09/2023,4176467-388634/INVEL209,875.00,DERE STREET BARRISTERS.
Resources BK0010,Legal & Democratic Services,Supplies and Services,338042,Services,06/09/2023,4176467-388966/INVCF476,775.00,DERE STREET BARRISTERS.
Resources BK0010,Legal & Democratic Services,Supplies and Services,338042,Services,06/09/2023,4176467-388981,775.00,DERE STREET BARRISTERS.
Children and Young Peoples Services,Head of Education and Skills,Supplies and Services,384302,Miscellaneous Expenses,06/09/2023,4176486-002,"1,200.00",ELEGANT TOUCH.
Neighbourhoods and Climate Change,Environmental Services,Transport,230005,Contract Hire,06/09/2023,4176491-8202441,530.95,ENTERPRISE FLEX-E-RENT T/A BURNT TREE GROUP LTD.
Neighbourhoods and Climate Change,Environmental Services,Transport,230005,Contract Hire,06/09/2023,4176491-8202451,715.60,ENTERPRISE FLEX-E-RENT T/A BURNT TREE GROUP LTD.
Neighbourhoods and Climate Change,Environmental Services,Transport,230005,Contract Hire,06/09/2023,4176491-8202456,641.70,ENTERPRISE FLEX-E-RENT T/A BURNT TREE GROUP LTD.
Neighbourhoods and Climate Change,Environmental Services,Transport,230005,Contract Hire,06/09/2023,4176491-8202466,872.61,ENTERPRISE FLEX-E-RENT T/A BURNT TREE GROUP LTD.
Neighbourhoods and Climate Change,Environmental Services,Transport,230005,Contract Hire,06/09/2023,4176491-8202473,568.58,ENTERPRISE FLEX-E-RENT T/A BURNT TREE GROUP LTD.
Neighbourhoods and Climate Change,Environmental Services,Transport,230005,Contract Hire,06/09/2023,4176491-8202474,"1,479.44",ENTERPRISE FLEX-E-RENT T/A BURNT TREE GROUP LTD.
Neighbourhoods and Climate Change,Highways,Supplies and Services,304221,Equipment and Materials,06/09/2023,4176493-2308\087,"1,553.92",EPPLETON QUARRY PRODUCTS LTD.
Neighbourhoods and Climate Change,Environmental Services,Supplies and Services,304259,Equipment and Materials,06/09/2023,4176494-02389416,"1,431.99",ERIKS UK HOLDINGS LTD.
Regeneration Economy and Growth,Culture Sport and Tourism,Premises,150005,Apportioned Exps of Operational Blds,06/09/2023,4176497-224-013,"1,200.00",FAT MEDIA LTD.
Regeneration Economy and Growth,Culture Sport and Tourism,Premises,150005,Apportioned Exps of Operational Blds,06/09/2023,4176497-224-015,855.00,FAT MEDIA LTD.
Children and Young Peoples Services,Head of Childrens Social Care,Third Party Payments,425040,Rendered by Voluntary Organisations,06/09/2023,4176498-0000077304,522.10,FIVE RIVERS CHILD CARE LTD.
Children and Young Peoples Services,Head of Childrens Social Care,Supplies and Services,338044,Services,06/09/2023,4176500-105130,570.80,FORENSIC TESTING SERVICE LTD.
Children and Young Peoples Services,Head of Childrens Social Care,Supplies and Services,384500,Miscellaneous Expenses,06/09/2023,4176501-7T,"1,100.00",FSK THERAPY (MINDS MATTER).
Neighbourhoods and Climate Change,Highways,Premises,150015,Apportioned Exps of Operational Blds,06/09/2023,4176502-414249899,"1,035.00",GAP GROUP LTD.
Children and Young Peoples Services,Head of Childrens Social Care,Employees,080025,Agency Staff,06/09/2023,4176504-2474312,"147,111.46",GEOMETRIC RESULTS INTERNATIONAL.
Adult and Health Services,Head of Adults,Transport,230005,Contract Hire,06/09/2023,4176511-105,980.00,GP TAXIS.
Neighbourhoods and Climate Change,Highways,Stock A926,926900,Stock in hand-Inventory system,06/09/2023,4176516-06/224806,"1,037.68",GREENHAM TRADING LTD.
Regeneration Economy and Growth,Corporate Property and Land,Supplies and Services,304221,Equipment and Materials,06/09/2023,4176523-00937757,699.50,HEATSEAM LTD T/A LIKEWISE NORTH EAST.
Neighbourhoods and Climate Change,Highways,Third Party Payments,430100,Rendered by Private Contractors,06/09/2023,4176525-3551,"8,658.00",HIGHWAY CONSTRUCTION SERVICES LTD.
Neighbourhoods and Climate Change,Highways,Third Party Payments,430100,Rendered by Private Contractors,06/09/2023,4176525-3552,"12,000.00",HIGHWAY CONSTRUCTION SERVICES LTD.
Neighbourhoods and Climate Change,Highways,Supplies and Services,304221,Equipment and Materials,06/09/2023,4176527-I00003956,"12,732.00",HOBEN INTERNATIONAL LTD.
Dedicated Schools Grant BG0015,DSG High Needs Block,Third Party Payments,440110,Other third party payments E440,06/09/2023,4176531-RES-09-2023-036,"179,496.00",HOPE WOOD ACADEMY.
Regeneration Economy and Growth,Culture Sport and Tourism,Supplies and Services,384700,Miscellaneous Expenses,06/09/2023,4176533-NEI-HCL-09-2023-001,750.00,HORDEN COLLIERY WELFARE CRICKET CLUB.
Neighbourhoods and Climate Change,Highways,Supplies and Services,304221,Equipment and Materials,06/09/2023,4176534-400050274,"7,962.54",ICL UK SALES LTD (CLEVELAND POTASH LTD).
Neighbourhoods and Climate Change,Environmental Services,Supplies and Services,384199,Miscellaneous Expenses,06/09/2023,4176535-1108/DUCC3949,"1,400.00",IMAGEMAKERS DESIGN & CONSULTANCY LTD.
Regeneration Economy and Growth,Culture Sport and Tourism,Premises,120009,Energy Costs,06/09/2023,4176536-17902,"2,140.09",IMPALA ESTATES LTD.
Children and Young Peoples Services,Head of Education and Skills,Supplies and Services,375001,Private Finance Initiative,06/09/2023,4176539-ISD0418,"716,645.25",INSPIREDSPACES DURHAM (PROJECTCO1) LTD.
Neighbourhoods and Climate Change,Highways,Third Party Payments,430100,Rendered by Private Contractors,06/09/2023,4176557-230378,"75,888.10",KIELY BROS LTD.
Children and Young Peoples Services,Head of Education and Skills,Transport,230007,Contract Hire,06/09/2023,4176558-4006-JUL23-1202,"1,252.95",KINGSWAY CABS LTD.
Children and Young Peoples Services,Head of Education and Skills,Transport,230007,Contract Hire,06/09/2023,4176558-4006-JUL23-1319,"1,340.30",KINGSWAY CABS LTD.
Children and Young Peoples Services,Head of Education and Skills,Transport,230006,Contract Hire,06/09/2023,4176558-4014-JUL23,"1,620.00",KINGSWAY CABS LTD.
Children and Young Peoples Services,Head of Education and Skills,Transport,230006,Contract Hire,06/09/2023,4176558-4018,"1,800.00",KINGSWAY CABS LTD.
Adult and Health Services,Head of Adults,Transport,230005,Contract Hire,06/09/2023,4176558-ABLE2-JUL23,"2,589.09",KINGSWAY CABS LTD.
Neighbourhoods and Climate Change,Highways,Supplies and Services,304221,Equipment and Materials,06/09/2023,4176564-34928,927.50,LOW GRANGE QUARRY LTD.
Resources BK0010,Procurement Sales & Business Services,Supplies and Services,332047,Printing Stationery and Gen Off Exps,06/09/2023,4176567-6901741603,513.32,LYRECO UK LTD.
Neighbourhoods and Climate Change,Environmental Services,Supplies and Services,338066,Services,06/09/2023,4176569-WP002,"2,200.00",MAKE THINGS HAPPEN DESIGN STUDIO LTD.
Neighbourhoods and Climate Change,Partnerships & Community Engagement Div.,Supplies and Services,384086,Miscellaneous Expenses,06/09/2023,4176575-VOUCHERSHIA04-23,500.00,MEDOMSLEY COMMUNITY ACTION.
Dedicated Schools Grant BG0015,DSG High Needs Block,Central Support and Other Recharges,689988,Unclassified E690,06/09/2023,4176587-AUGUST2023TOPUP,"3,134.00",MOWBRAY SCHOOL (NORTH YORKSHIRE COUNTY COUNCIL).
Regeneration Economy and Growth,Culture Sport and Tourism,Supplies and Services,338047,Services,06/09/2023,4176593-INV-01422,850.00,MYCLEARTEXT LTD.
Resources BK0010,Legal & Democratic Services,Supplies and Services,338042,Services,06/09/2023,4176596-370919,"3,000.00",NEW PARK COURT CHAMBERS.
Resources BK0010,HR & Employee Services,Supplies and Services,338064,Services,06/09/2023,4176598-32883,"21,352.00",NORTH EAST REGIONAL EMPLOYERS ORGANISATION (NEREO).
Dedicated Schools Grant BG0015,DSG High Needs Block,Central Support and Other Recharges,689988,Unclassified E690,06/09/2023,4176600-AUGUST2023TOPUP,"5,906.00",NORTHUMBERLAND COUNTY COUNCIL.
Regeneration Economy and Growth,Transport and Contracted Services,Third Party Payments,430100,Rendered by Private Contractors,06/09/2023,4176601-00025473,"38,869.13",NSL LTD.
Regeneration Economy and Growth,Transport and Contracted Services,Third Party Payments,430100,Rendered by Private Contractors,06/09/2023,4176601-00025474,"2,217.21",NSL LTD.
Regeneration Economy and Growth,Transport and Contracted Services,Third Party Payments,430100,Rendered by Private Contractors,06/09/2023,4176601-00025475,"9,365.63",NSL LTD.
Regeneration Economy and Growth,Transport and Contracted Services,Third Party Payments,430100,Rendered by Private Contractors,06/09/2023,4176601-00025478,"60,252.31",NSL LTD.
Regeneration Economy and Growth,Transport and Contracted Services,Third Party Payments,430100,Rendered by Private Contractors,06/09/2023,4176601-00025479,"18,306.85",NSL LTD.
Regeneration Economy and Growth,Transport and Contracted Services,Third Party Payments,430100,Rendered by Private Contractors,06/09/2023,4176601-00025480,"3,103.41",NSL LTD.
Regeneration Economy and Growth,Transport and Contracted Services,Third Party Payments,430100,Rendered by Private Contractors,06/09/2023,4176601-00025481,"3,797.63",NSL LTD.
Regeneration Economy and Growth,Transport and Contracted Services,Third Party Payments,430100,Rendered by Private Contractors,06/09/2023,4176601-00025482,729.84,NSL LTD.
Regeneration Economy and Growth,Transport and Contracted Services,Third Party Payments,430100,Rendered by Private Contractors,06/09/2023,4176601-00025483,"7,014.25",NSL LTD.
Regeneration Economy and Growth,Transport and Contracted Services,Third Party Payments,430100,Rendered by Private Contractors,06/09/2023,4176601-00025485,"23,013.51",NSL LTD.
Regeneration Economy and Growth,Transport and Contracted Services,Third Party Payments,430100,Rendered by Private Contractors,06/09/2023,4176601-00025486,"113,004.00",NSL LTD.
Regeneration Economy and Growth,Corporate Property and Land,Third Party Payments,430100,Rendered by Private Contractors,06/09/2023,4176605-12304-22,"1,158.07",OPUS BUILDING SERVICES LTD.
Regeneration Economy and Growth,Corporate Property and Land,Supplies and Services,304221,Equipment and Materials,06/09/2023,4176608-DT212571,645.45,PARK ELECTRICAL DISTRIBUTORS LTD.
Neighbourhoods and Climate Change,Highways,Stock A926,926900,Stock in hand-Inventory system,06/09/2023,4176608-XL306122,587.50,PARK ELECTRICAL DISTRIBUTORS LTD.
Neighbourhoods and Climate Change,Highways,Stock A926,926900,Stock in hand-Inventory system,06/09/2023,4176608-XL306123,"4,448.70",PARK ELECTRICAL DISTRIBUTORS LTD.
Regeneration Economy and Growth,Culture Sport and Tourism,Supplies and Services,384199,Miscellaneous Expenses,06/09/2023,4176612-INV10996,833.33,PICTUREHOUSE CINEMAS LTD.
Neighbourhoods and Climate Change,Environmental Services,Third Party Payments,430100,Rendered by Private Contractors,06/09/2023,4176614-TYN38046,589.06,PIRTEK TYNE & WEAR.
Adult and Health Services,Head of Adults,Third Party Payments,479102,Purchase of Care,06/09/2023,4176615-INV-0213,"1,032.50",POSITIVE CARE & SUPPORT LTD.
Neighbourhoods and Climate Change,Highways,Third Party Payments,430100,Rendered by Private Contractors,06/09/2023,4176617-15182,612.48,QUANTUM POWER CONNECTIONS LTD.
Regeneration Economy and Growth,Culture Sport and Tourism,Supplies and Services,338047,Services,06/09/2023,4176618-INV-0650,"5,000.00",R & B GROUP.
Neighbourhoods and Climate Change,Highways,Third Party Payments,430100,Rendered by Private Contractors,06/09/2023,4176619-10000/230872,"160,779.98",RAINTON CONSTRUCTION LTD.
Neighbourhoods and Climate Change,Highways,Third Party Payments,430100,Rendered by Private Contractors,06/09/2023,4176619-10000/230873,"66,781.33",RAINTON CONSTRUCTION LTD.
Neighbourhoods and Climate Change,Highways,Third Party Payments,430100,Rendered by Private Contractors,06/09/2023,4176619-10000/230874,"133,195.18",RAINTON CONSTRUCTION LTD.
Neighbourhoods and Climate Change,Highways,Third Party Payments,430100,Rendered by Private Contractors,06/09/2023,4176619-10000/230875,"150,431.07",RAINTON CONSTRUCTION LTD.
Neighbourhoods and Climate Change,Environmental Services,Third Party Payments,430100,Rendered by Private Contractors,06/09/2023,4176621-401149,638.97,RICKERBY LTD.
Neighbourhoods and Climate Change,Environmental Services,Third Party Payments,430100,Rendered by Private Contractors,06/09/2023,4176621-401200,688.27,RICKERBY LTD.
Neighbourhoods and Climate Change,Environmental Services,Supplies and Services,352001,Conference Expenses,06/09/2023,4176626-16851,750.00,ROYAL SOCIETY OF WILDLIFE TRUSTS.
Regeneration Economy and Growth,Culture Sport and Tourism,Supplies and Services,384199,Miscellaneous Expenses,06/09/2023,4176634-SSCINV001-08-23,"1,200.00",SEAHAM SEA CADETS.
Neighbourhoods and Climate Change,Community Protection,Third Party Payments,430100,Rendered by Private Contractors,06/09/2023,4176640-190541,"1,564.29",SHOWSEC INTERNATIONAL LTD.
Neighbourhoods and Climate Change,Community Protection,Third Party Payments,430100,Rendered by Private Contractors,06/09/2023,4176640-193150,"1,190.70",SHOWSEC INTERNATIONAL LTD.
Regeneration Economy and Growth,Culture Sport and Tourism,Third Party Payments,430100,Rendered by Private Contractors,06/09/2023,4176644-4100849229,"3,639.01",SOUTH DURHAM GYMNASTICS CLUB.
Children and Young Peoples Services,Head of Education and Skills,Third Party Payments,440999,Other third party payments E440,06/09/2023,4176646-22-23-COM04,"11,583.00",SPORTSCAPE TRAINING LTD.
Neighbourhoods and Climate Change,Highways,Third Party Payments,430100,Rendered by Private Contractors,06/09/2023,4176651-19634,"1,898.40",STEADFAST SECURITY SOLUTIONS LTD.
Regeneration Economy and Growth,Corporate Property and Land,Supplies and Services,304221,Equipment and Materials,06/09/2023,4176658-1048350,"1,657.41",T CROSSLING & CO LTD.
Regeneration Economy and Growth,Corporate Property and Land,Supplies and Services,304221,Equipment and Materials,06/09/2023,4176658-1048372,605.17,T CROSSLING & CO LTD.
Regeneration Economy and Growth,Corporate Property and Land,Supplies and Services,304221,Equipment and Materials,06/09/2023,4176658-1049912,660.12,T CROSSLING & CO LTD.
Regeneration Economy and Growth,Corporate Property and Land,Supplies and Services,304221,Equipment and Materials,06/09/2023,4176658-1049955,582.64,T CROSSLING & CO LTD.
Regeneration Economy and Growth,Corporate Property and Land,Supplies and Services,304221,Equipment and Materials,06/09/2023,4176658-1049957,953.72,T CROSSLING & CO LTD.
Regeneration Economy and Growth,Corporate Property and Land,Supplies and Services,304221,Equipment and Materials,06/09/2023,4176658-1051063,650.48,T CROSSLING & CO LTD.
Regeneration Economy and Growth,Corporate Property and Land,Supplies and Services,304221,Equipment and Materials,06/09/2023,4176658-1052126,"1,332.74",T CROSSLING & CO LTD.
Regeneration Economy and Growth,Corporate Property and Land,Supplies and Services,304221,Equipment and Materials,06/09/2023,4176658-1052340,"1,517.77",T CROSSLING & CO LTD.
Regeneration Economy and Growth,Culture Sport and Tourism,Supplies and Services,384237,Miscellaneous Expenses,06/09/2023,4176661-985,"5,831.50",TEAMKINETIC LTD.
Regeneration Economy and Growth,Culture Sport and Tourism,Supplies and Services,384302,Miscellaneous Expenses,06/09/2023,4176667-SI-43238,"1,125.00",TIN ARTS LTD.
Adult and Health Services,Head of Adults,Transport,230005,Contract Hire,06/09/2023,4176670-4-AUG23,"2,795.54",TONYS TAXIS (J BIRCH).
Regeneration Economy and Growth,Corporate Property and Land,Supplies and Services,304221,Equipment and Materials,06/09/2023,4176671-11109187,601.38,TRADECHOICE DISTRIBUTION LTD.
Regeneration Economy and Growth,Corporate Property and Land,Supplies and Services,304221,Equipment and Materials,06/09/2023,4176671-11116067,786.58,TRADECHOICE DISTRIBUTION LTD.
Resources BK0010,Legal & Democratic Services,Supplies and Services,338042,Services,06/09/2023,4176672-302122/INVTS804,"2,780.00",TRINITY CHAMBERS.
Resources BK0010,Legal & Democratic Services,Supplies and Services,338042,Services,06/09/2023,4176672-305501/INVLM208,720.00,TRINITY CHAMBERS.
Resources BK0010,Legal & Democratic Services,Supplies and Services,338042,Services,06/09/2023,4176672-305582/INVMA266,"3,810.00",TRINITY CHAMBERS.
Resources BK0010,Legal & Democratic Services,Supplies and Services,338042,Services,06/09/2023,4176672-306100A,665.00,TRINITY CHAMBERS.
Resources BK0010,Legal & Democratic Services,Supplies and Services,338042,Services,06/09/2023,4176672-307224/INVJCT213,750.00,TRINITY CHAMBERS.
Resources BK0010,Legal & Democratic Services,Supplies and Services,338042,Services,06/09/2023,4176672-307568/INVTS793,612.50,TRINITY CHAMBERS.
Resources BK0010,Legal & Democratic Services,Supplies and Services,338042,Services,06/09/2023,4176672-308204/INVEM81,720.00,TRINITY CHAMBERS.
Neighbourhoods and Climate Change,Highways,Supplies and Services,304221,Equipment and Materials,06/09/2023,4176675-250335,"4,719.77",TYNEDALE ROADSTONE LTD.
Neighbourhoods and Climate Change,Highways,Supplies and Services,304221,Equipment and Materials,06/09/2023,4176675-250336,"1,249.42",TYNEDALE ROADSTONE LTD.
Neighbourhoods and Climate Change,Highways,Supplies and Services,304221,Equipment and Materials,06/09/2023,4176675-250337,"1,904.70",TYNEDALE ROADSTONE LTD.
Neighbourhoods and Climate Change,Highways,Supplies and Services,304221,Equipment and Materials,06/09/2023,4176675-250338,"1,593.61",TYNEDALE ROADSTONE LTD.
Children and Young Peoples Services,Head of Early Help Inclusion & Vulnerable Children.,Supplies and Services,344033,Telephones,06/09/2023,4176676-209691,572.70,UNIFY BUSINESS SOLUTIONS LTD.
Regeneration Economy and Growth,Culture Sport and Tourism,Supplies and Services,338047,Services,06/09/2023,4176677-22314579151-1,568.69,UNIVERSAL PICTURES INTERNATIONAL UK & EIRE LTD.
Regeneration Economy and Growth,Culture Sport and Tourism,Supplies and Services,338047,Services,06/09/2023,4176677-22314579184-1,696.67,UNIVERSAL PICTURES INTERNATIONAL UK & EIRE LTD.
Regeneration Economy and Growth,Culture Sport and Tourism,Supplies and Services,338047,Services,06/09/2023,4176684-23157904,"2,233.13",WARNER BROS ENTERTAINMENT UK LTD.
Regeneration Economy and Growth,Culture Sport and Tourism,Supplies and Services,338047,Services,06/09/2023,4176684-23159126,"2,676.67",WARNER BROS ENTERTAINMENT UK LTD.
Regeneration Economy and Growth,Culture Sport and Tourism,Supplies and Services,338047,Services,06/09/2023,4176684-23159348,"1,647.92",WARNER BROS ENTERTAINMENT UK LTD.
Neighbourhoods and Climate Change,Highways,Third Party Payments,430100,Rendered by Private Contractors,06/09/2023,4176687-976,540.00,WHORLTON LAND SURVEYS LTD.
Regeneration Economy and Growth,Culture Sport and Tourism,Supplies and Services,304259,Equipment and Materials,06/09/2023,4176689-SI-2754437,"2,589.98",YORKSHIRE PURCHASING ORGANISATION.
Neighbourhoods and Climate Change,Environmental Services,Transport,215023,Running Costs of Vehicles,06/09/2023,4176690-1005735,520.00,YOUR NRG LTD.
Neighbourhoods and Climate Change,Environmental Services,Transport,215005,Running Costs of Vehicles,06/09/2023,4176690-1011008,"3,645.60",YOUR NRG LTD.
Neighbourhoods and Climate Change,Environmental Services,Transport,215005,Running Costs of Vehicles,06/09/2023,4176690-1012086,"21,835.93",YOUR NRG LTD.
Neighbourhoods and Climate Change,Environmental Services,Transport,215005,Running Costs of Vehicles,06/09/2023,4176690-1012562,"1,529.60",YOUR NRG LTD.
Regeneration Economy and Growth,Culture Sport and Tourism,Supplies and Services,338047,Services,07/09/2023,4176817-MEIK-INVK0603,"2,803.89",MEI THEATRICAL LTD.
Neighbourhoods and Climate Change,Environmental Services,Supplies and Services,384199,Miscellaneous Expenses,07/09/2023,4176701-20230582,"2,600.00",REDACTED - PAYMENT TO INDIVIDUAL
Neighbourhoods and Climate Change,Environmental Services,Supplies and Services,338066,Services,07/09/2023,4176743-148,"1,000.00",REDACTED - PAYMENT TO INDIVIDUAL
Neighbourhoods and Climate Change,Environmental Services,Supplies and Services,338066,Services,07/09/2023,4176803-INV-7950,"2,399.00",REDACTED - PAYMENT TO INDIVIDUAL
Children and Young Peoples Services,Head of Childrens Social Care,Supplies and Services,338066,Services,07/09/2023,4176833-134503,"3,000.00",REDACTED - PAYMENT TO INDIVIDUAL
Adult and Health Services,Head of Adults,Transport,230005,Contract Hire,07/09/2023,4176775-CLS078AUG23,"1,316.56",REDACTED - PAYMENT TO INDIVIDUAL
Adult and Health Services,Head of Adults,Transport,230005,Contract Hire,07/09/2023,4176702-12-23,840.00,REDACTED - PAYMENT TO INDIVIDUAL
Adult and Health Services,Head of Adults,Transport,230005,Contract Hire,07/09/2023,4176727-EAS197/12,506.00,REDACTED - PAYMENT TO INDIVIDUAL
Children and Young Peoples Services,Head of Childrens Social Care,Supplies and Services,338044,Services,07/09/2023,4176745-SI-1764,"3,141.40",REDACTED - PAYMENT TO INDIVIDUAL
Adult and Health Services,Head of Adults,Transport,230005,Contract Hire,07/09/2023,4176763-107,880.00,REDACTED - PAYMENT TO INDIVIDUAL
Adult and Health Services,Head of Adults,Transport,230005,Contract Hire,07/09/2023,4176789-01082023,670.86,REDACTED - PAYMENT TO INDIVIDUAL
Adult and Health Services,Head of Adults,Transport,230005,Contract Hire,07/09/2023,4176823-KDC-02082023,"4,340.00",REDACTED - PAYMENT TO INDIVIDUAL
Adult and Health Services,Head of Adults,Transport,230005,Contract Hire,07/09/2023,4176830-130/2023,708.73,REDACTED - PAYMENT TO INDIVIDUAL
Children and Young Peoples Services,Head of Education and Skills,Transport,230008,Contract Hire,07/09/2023,4176832-124,"1,269.30",REDACTED - PAYMENT TO INDIVIDUAL
Children and Young Peoples Services,Head of Education and Skills,Transport,230035,Contract Hire,07/09/2023,4176832-125,850.95,REDACTED - PAYMENT TO INDIVIDUAL
Adult and Health Services,Head of Adults,Transport,230005,Contract Hire,07/09/2023,4176853-SLD011AUG23,"1,302.30",REDACTED - PAYMENT TO INDIVIDUAL
Regeneration Economy and Growth,Corporate Property and Land,Supplies and Services,304221,Equipment and Materials,07/09/2023,4176866-42431,"4,995.00",REDACTED - PAYMENT TO INDIVIDUAL
Adult and Health Services,Head of Adults,Transport,230005,Contract Hire,07/09/2023,4176893-EAS202AUG23,"1,858.93",REDACTED - PAYMENT TO INDIVIDUAL
Regeneration Economy and Growth,Corporate Property and Land,Third Party Payments,430100,Rendered by Private Contractors,07/09/2023,4176786-3451,500.00,JIGSAW SAFETY & DESIGN LTD.
Children and Young Peoples Services,Head of Education and Skills,Transport,230034,Contract Hire,07/09/2023,4176694-72304,"2,524.45",24/7 TAXI SERVICES (PETERLEE) LTD.
Children and Young Peoples Services,Head of Education and Skills,Transport,230010,Contract Hire,07/09/2023,4176694-72324,545.77,24/7 TAXI SERVICES (PETERLEE) LTD.
Adult and Health Services,Head of Adults,Transport,230005,Contract Hire,07/09/2023,4176695-0823/SK,"2,918.93",AABAT TAXIS.
Children and Young Peoples Services,Head of Education and Skills,Transport,230009,Contract Hire,07/09/2023,4176703-7373JUL23,551.80,ANGIE`S TAXIS.
Children and Young Peoples Services,Head of Education and Skills,Transport,230010,Contract Hire,07/09/2023,4176703-BL047JUL23,954.20,ANGIE`S TAXIS.
Neighbourhoods and Climate Change,Environmental Services,Supplies and Services,304221,Equipment and Materials,07/09/2023,4176707-30086,"14,707.01",ARM PIPETEK LTD.
Regeneration Economy and Growth,Culture Sport and Tourism,Supplies and Services,384999,Miscellaneous Expenses,07/09/2023,4176710-2848000023,"13,571.00",ASSOCIATION OF NORTH EAST COUNCILS (ANEC).
Adult and Health Services,Head of Adults,Transport,230005,Contract Hire,07/09/2023,4176711-DCC13AUG2023,"1,573.66",ATLAS TAXIS BISHOP AUCKLAND.
Children and Young Peoples Services,Head of Education and Skills,Transport,230008,Contract Hire,07/09/2023,4176716-A020JUL23,"3,584.70",BON VOYAGE TAXIS LTD.
Children and Young Peoples Services,Head of Education and Skills,Transport,230008,Contract Hire,07/09/2023,4176716-N029JUL23,"2,838.86",BON VOYAGE TAXIS LTD.
Children and Young Peoples Services,Head of Education and Skills,Transport,230008,Contract Hire,07/09/2023,4176716-N097JUL23,"3,114.94",BON VOYAGE TAXIS LTD.
Children and Young Peoples Services,Head of Education and Skills,Transport,230008,Contract Hire,07/09/2023,4176716-N107JUL23,"2,610.00",BON VOYAGE TAXIS LTD.
Children and Young Peoples Services,Head of Education and Skills,Transport,230008,Contract Hire,07/09/2023,4176716-N324JUL23,"3,000.15",BON VOYAGE TAXIS LTD.
Children and Young Peoples Services,Head of Education and Skills,Transport,230008,Contract Hire,07/09/2023,4176717-A048JUL23,"2,800.00",BON VOYAGE TRANSPORT LTD.
Children and Young Peoples Services,Head of Education and Skills,Transport,230008,Contract Hire,07/09/2023,4176717-N061JUL23,"2,724.68",BON VOYAGE TRANSPORT LTD.
Children and Young Peoples Services,Head of Education and Skills,Transport,230008,Contract Hire,07/09/2023,4176717-W060JUL23,"3,626.00",BON VOYAGE TRANSPORT LTD.
Adult and Health Services,Head of Adults,Transport,230005,Contract Hire,07/09/2023,4176718-BZ00475,748.00,BREZ`S TAXIS.
Neighbourhoods and Climate Change,Highways,Supplies and Services,304221,Equipment and Materials,07/09/2023,4176719-0000308726,"1,786.00",BROXAP LTD.
Regeneration Economy and Growth,Corporate Property and Land,Third Party Payments,430100,Rendered by Private Contractors,07/09/2023,4176724-782,"15,930.70",CEILINGS DIRECT LTD.
Regeneration Economy and Growth,Corporate Property and Land,Third Party Payments,430100,Rendered by Private Contractors,07/09/2023,4176724-783,"13,203.17",CEILINGS DIRECT LTD.
Regeneration Economy and Growth,Corporate Property and Land,Third Party Payments,430100,Rendered by Private Contractors,07/09/2023,4176724-784,"19,085.34",CEILINGS DIRECT LTD.
Regeneration Economy and Growth,Corporate Property and Land,Third Party Payments,430100,Rendered by Private Contractors,07/09/2023,4176724-785,"29,910.86",CEILINGS DIRECT LTD.
Regeneration Economy and Growth,Corporate Property and Land,Third Party Payments,430100,Rendered by Private Contractors,07/09/2023,4176724-786,"3,648.48",CEILINGS DIRECT LTD.
Regeneration Economy and Growth,Corporate Property and Land,Third Party Payments,430100,Rendered by Private Contractors,07/09/2023,4176724-788,"33,733.20",CEILINGS DIRECT LTD.
Regeneration Economy and Growth,Corporate Property and Land,Third Party Payments,430100,Rendered by Private Contractors,07/09/2023,4176724-789,"8,536.00",CEILINGS DIRECT LTD.
Adult and Health Services,Head of Adults,Transport,230005,Contract Hire,07/09/2023,4176738-607,"1,596.00",DA TRAVEL.
Regeneration Economy and Growth,Business Durham,Supplies and Services,352001,Conference Expenses,07/09/2023,4176749-2119,"5,000.00",DURHAM CRICKET EVENTS LTD.
Neighbourhoods and Climate Change,Environmental Services,Supplies and Services,304259,Equipment and Materials,07/09/2023,4176752-39204,526.29,E Z RECT LTD T/A EZR SHELVING.
Neighbourhoods and Climate Change,Environmental Services,Transport,230005,Contract Hire,07/09/2023,4176757-8202479,655.03,ENTERPRISE FLEX-E-RENT T/A BURNT TREE GROUP LTD.
Neighbourhoods and Climate Change,Environmental Services,Transport,230005,Contract Hire,07/09/2023,4176757-8202485,"1,896.00",ENTERPRISE FLEX-E-RENT T/A BURNT TREE GROUP LTD.
Neighbourhoods and Climate Change,Environmental Services,Transport,230005,Contract Hire,07/09/2023,4176757-8202507,926.10,ENTERPRISE FLEX-E-RENT T/A BURNT TREE GROUP LTD.
Neighbourhoods and Climate Change,Environmental Services,Transport,230005,Contract Hire,07/09/2023,4176757-8202512,"1,367.10",ENTERPRISE FLEX-E-RENT T/A BURNT TREE GROUP LTD.
Neighbourhoods and Climate Change,Environmental Services,Transport,230005,Contract Hire,07/09/2023,4176757-8202515,655.03,ENTERPRISE FLEX-E-RENT T/A BURNT TREE GROUP LTD.
Neighbourhoods and Climate Change,Environmental Services,Transport,230005,Contract Hire,07/09/2023,4176757-8202516,663.40,ENTERPRISE FLEX-E-RENT T/A BURNT TREE GROUP LTD.
Neighbourhoods and Climate Change,Environmental Services,Transport,230005,Contract Hire,07/09/2023,4176757-8202517,623.10,ENTERPRISE FLEX-E-RENT T/A BURNT TREE GROUP LTD.
Neighbourhoods and Climate Change,Environmental Services,Transport,230005,Contract Hire,07/09/2023,4176757-8202518,"1,367.10",ENTERPRISE FLEX-E-RENT T/A BURNT TREE GROUP LTD.
Neighbourhoods and Climate Change,Environmental Services,Transport,230005,Contract Hire,07/09/2023,4176757-8202520,941.10,ENTERPRISE FLEX-E-RENT T/A BURNT TREE GROUP LTD.
Neighbourhoods and Climate Change,Environmental Services,Transport,230005,Contract Hire,07/09/2023,4176757-8203041,635.44,ENTERPRISE FLEX-E-RENT T/A BURNT TREE GROUP LTD.
Regeneration Economy and Growth,Culture Sport and Tourism,Premises,145023,Cleaning and Domestic Supplies,07/09/2023,4176766-06/235968,"1,976.99",GREENHAM TRADING LTD.
Adult and Health Services,Head of Adults,Transport,230005,Contract Hire,07/09/2023,4176767-172,"1,251.75",HAMLET TAXIS.
Children and Young Peoples Services,Head of Education and Skills,Third Party Payments,440999,Other third party payments E440,07/09/2023,4176768-DUR150823,"5,143.60",HANDCRAFTED PROJECTS.
Children and Young Peoples Services,Head of Education and Skills,Supplies and Services,384199,Miscellaneous Expenses,07/09/2023,4176768-DURDW150823,"2,534.40",HANDCRAFTED PROJECTS.
Regeneration Economy and Growth,Corporate Property and Land,Supplies and Services,304221,Equipment and Materials,07/09/2023,4176772-A38/0170723,"1,290.19",HOWDENS JOINERY LTD.
Neighbourhoods and Climate Change,Highways,Supplies and Services,304221,Equipment and Materials,07/09/2023,4176777-400050275,"17,562.87",ICL UK SALES LTD (CLEVELAND POTASH LTD).
Regeneration Economy and Growth,Corporate Property and Land,Third Party Payments,430100,Rendered by Private Contractors,07/09/2023,4176778-3811,"1,984.46",INDEPENDENT RESTORATION LTD.
Regeneration Economy and Growth,Corporate Property and Land,Third Party Payments,430100,Rendered by Private Contractors,07/09/2023,4176778-3812,"4,043.60",INDEPENDENT RESTORATION LTD.
Children and Young Peoples Services,Head of Childrens Social Care,Supplies and Services,338045,Services,07/09/2023,4176781-ITL46381,563.86,ITL (NORTH EAST) LTD.
Children and Young Peoples Services,Head of Childrens Social Care,Supplies and Services,338045,Services,07/09/2023,4176781-ITL47212,"1,842.94",ITL (NORTH EAST) LTD.
Neighbourhoods and Climate Change,Highways,Third Party Payments,430100,Rendered by Private Contractors,07/09/2023,4176783-28213,888.79,JACK COUPE & SONS LTD T/A COUPE LINE.
Neighbourhoods and Climate Change,Highways,Construction work A908,908105,Construction work,07/09/2023,4176783-28235,712.90,JACK COUPE & SONS LTD T/A COUPE LINE.
Neighbourhoods and Climate Change,Highways,Third Party Payments,430100,Rendered by Private Contractors,07/09/2023,4176783-28236,"3,972.80",JACK COUPE & SONS LTD T/A COUPE LINE.
Adult and Health Services,Head of Adults,Transport,230005,Contract Hire,07/09/2023,4176784-0990,"3,108.82",JACKSON`S TAXI.
Adult and Health Services,Head of Adults,Transport,230005,Contract Hire,07/09/2023,4176784-0991,868.00,JACKSON`S TAXI.
Adult and Health Services,Head of Adults,Transport,230005,Contract Hire,07/09/2023,4176784-0992,"1,248.14",JACKSON`S TAXI.
Neighbourhoods and Climate Change,Highways,Supplies and Services,304221,Equipment and Materials,07/09/2023,4176794-0113/00050409,922.60,JT DOVE LTD.
Regeneration Economy and Growth,Corporate Property and Land,Supplies and Services,304221,Equipment and Materials,07/09/2023,4176794-0213/00990223,"2,624.44",JT DOVE LTD.
Neighbourhoods and Climate Change,Highways,Supplies and Services,304221,Equipment and Materials,07/09/2023,4176795-396633,"1,502.67",KAEFER LTD.
Neighbourhoods and Climate Change,Highways,Supplies and Services,304221,Equipment and Materials,07/09/2023,4176795-396634,"3,623.04",KAEFER LTD.
Neighbourhoods and Climate Change,Environmental Services,Third Party Payments,430115,Rendered by Private Contractors,07/09/2023,4176797-SI02-0405701,"1,987.50",KILLGERM CHEMICALS LTD.
Children and Young Peoples Services,Head of Education and Skills,Transport,230034,Contract Hire,07/09/2023,4176799-4000-JUN23,"1,350.00",KINGSWAY CABS LTD.
Adult and Health Services,Head of Adults,Transport,230005,Contract Hire,07/09/2023,4176801-1119-23,"2,530.00",L&D TAXIS NE LTD.
Children and Young Peoples Services,Head of Childrens Social Care,Supplies and Services,338044,Services,07/09/2023,4176804-299813,536.00,LEXTOX.
Neighbourhoods and Climate Change,Environmental Services,Supplies and Services,384899,Miscellaneous Expenses,07/09/2023,4176806-RES-09-2023-057,"21,228.50",LIVING HISTORY NORTH EAST.
Regeneration Economy and Growth,Corporate Property and Land,Supplies and Services,304221,Equipment and Materials,07/09/2023,4176808-5855725,944.77,LONDON GENERAL SALES LTD.
Regeneration Economy and Growth,Corporate Property and Land,Supplies and Services,304221,Equipment and Materials,07/09/2023,4176818-ELMHC-7406,"22,250.00",MER FLEET SERVICES LTD.
Regeneration Economy and Growth,Transport and Contracted Services,Supplies and Services,372009,Subscriptions E372,07/09/2023,4176824-1733,"1,332.67",MODESHIFT.
Regeneration Economy and Growth,Corporate Property and Land,Third Party Payments,430100,Rendered by Private Contractors,07/09/2023,4176837-44822,"2,595.00",NE & C WINDOWS & DOORS LTD.
Regeneration Economy and Growth,Corporate Property and Land,Third Party Payments,430100,Rendered by Private Contractors,07/09/2023,4176837-44936,760.50,NE & C WINDOWS & DOORS LTD.
Regeneration Economy and Growth,Corporate Property and Land,Third Party Payments,430100,Rendered by Private Contractors,07/09/2023,4176837-45091,942.00,NE & C WINDOWS & DOORS LTD.
Regeneration Economy and Growth,Corporate Property and Land,Third Party Payments,430100,Rendered by Private Contractors,07/09/2023,4176837-45136,525.00,NE & C WINDOWS & DOORS LTD.
Regeneration Economy and Growth,Corporate Property and Land,Third Party Payments,430100,Rendered by Private Contractors,07/09/2023,4176837-45137,585.00,NE & C WINDOWS & DOORS LTD.
Regeneration Economy and Growth,Corporate Property and Land,Third Party Payments,430100,Rendered by Private Contractors,07/09/2023,4176837-45202,"9,133.49",NE & C WINDOWS & DOORS LTD.
Regeneration Economy and Growth,Corporate Property and Land,Third Party Payments,430100,Rendered by Private Contractors,07/09/2023,4176837-45332,"4,361.40",NE & C WINDOWS & DOORS LTD.
Neighbourhoods and Climate Change,Environmental Services,Supplies and Services,384700,Miscellaneous Expenses,07/09/2023,4176839-RES-09-2023-056,"8,664.00",NENTHEAD MINES CONSERVATION SOCIETY.
Regeneration Economy and Growth,Culture Sport and Tourism,Supplies and Services,332029,Printing Stationery and Gen Off Exps,07/09/2023,4176840-SI-5849,"1,295.00",NEWLANDMEDIA LTD.
Neighbourhoods and Climate Change,Highways,Other expenses A914,914002,Capital - Advertisments,07/09/2023,4176841-43370299,561.67,NEWSQUEST (YORKSHIRE & NORTH EAST) LTD.
Adult and Health Services,Central/Other,Third Party Payments,440150,Other third party payments E440,07/09/2023,4176843-BCF/SEPTEMBER2023,"1,672,011.00",NHS NORTH EAST & NORTH CUMBRIA ICB.
Regeneration Economy and Growth,Corporate Property and Land,Supplies and Services,304221,Equipment and Materials,07/09/2023,4176846-1050088,621.00,NORTHERN TOOLS & ACCESSORIES.
Regeneration Economy and Growth,Corporate Property and Land,Third Party Payments,430100,Rendered by Private Contractors,07/09/2023,4176848-12131-91,"1,145.68",OPUS BUILDING SERVICES LTD.
Regeneration Economy and Growth,Corporate Property and Land,Third Party Payments,430100,Rendered by Private Contractors,07/09/2023,4176848-12304-23,"1,107.22",OPUS BUILDING SERVICES LTD.
Neighbourhoods and Climate Change,Highways,Stock A926,926900,Stock in hand-Inventory system,07/09/2023,4176850-XL306148,"3,223.50",PARK ELECTRICAL DISTRIBUTORS LTD.
Neighbourhoods and Climate Change,Highways,Stock A926,926900,Stock in hand-Inventory system,07/09/2023,4176850-XL306161,"6,230.50",PARK ELECTRICAL DISTRIBUTORS LTD.
Children and Young Peoples Services,Head of Childrens Social Care,Supplies and Services,338044,Services,07/09/2023,4176861-23372/1,"1,394.70",PSYCHREP UK LTD.
Adult and Health Services,Head of Adults,Transport,230005,Contract Hire,07/09/2023,4176862-SI-3027,846.00,PTL TAXIS LTD.
Neighbourhoods and Climate Change,Highways,Third Party Payments,430100,Rendered by Private Contractors,07/09/2023,4176864-15137,951.08,QUANTUM POWER CONNECTIONS LTD.
Neighbourhoods and Climate Change,Highways,Third Party Payments,430100,Rendered by Private Contractors,07/09/2023,4176864-15144,"1,567.08",QUANTUM POWER CONNECTIONS LTD.
Neighbourhoods and Climate Change,Highways,Third Party Payments,430100,Rendered by Private Contractors,07/09/2023,4176864-15190,"12,904.18",QUANTUM POWER CONNECTIONS LTD.
Neighbourhoods and Climate Change,Highways,Third Party Payments,430100,Rendered by Private Contractors,07/09/2023,4176864-15191,"4,922.08",QUANTUM POWER CONNECTIONS LTD.
Neighbourhoods and Climate Change,Highways,Supplies and Services,304221,Equipment and Materials,07/09/2023,4176868-SI233000367,"2,096.42",REDIWELD TRAFFIC PRODUCTS LTD.
Neighbourhoods and Climate Change,Environmental Services,Supplies and Services,304221,Equipment and Materials,07/09/2023,4176870-709231,677.84,RICKERBY LTD.
Resources BK0010,Transactional & Customer Services,Supplies and Services,340001,Postages E340,07/09/2023,4176875-9068225074,"15,636.38",ROYAL MAIL GROUP PLC.
Adult and Health Services,Head of Adults,Transport,230005,Contract Hire,07/09/2023,4176878-SED112/53,"1,911.59",S & S TRAVEL LTD.
Chief Executives Office,Communications Management,Supplies and Services,312010,Newspapers books and periodicals E312,07/09/2023,4176884-57460,"21,499.28",SMART DISTRIBUTION SOLUTIONS LTD.
Neighbourhoods and Climate Change,Highways,Stock A926,926900,Stock in hand-Inventory system,07/09/2023,4176886-1504,"3,408.48",SNAPFAST LTD.
Neighbourhoods and Climate Change,Highways,Stock A926,926900,Stock in hand-Inventory system,07/09/2023,4176886-1505,"3,408.48",SNAPFAST LTD.
Children and Young Peoples Services,Head of Education and Skills,Construction work A908,908105,Construction work,07/09/2023,4176887-5155,"3,385.00",SPECIALIST VENTILATION SERVICES LTD.
Children and Young Peoples Services,Head of Education and Skills,Transport,230010,Contract Hire,07/09/2023,4176890-08312,"2,872.60",STANLEY TRAVEL (NORTH EAST) LTD.
Children and Young Peoples Services,Head of Education and Skills,Transport,230010,Contract Hire,07/09/2023,4176890-08314,"2,290.62",STANLEY TRAVEL (NORTH EAST) LTD.
Adult and Health Services,Head of Adults,Transport,230005,Contract Hire,07/09/2023,4176890-08989,898.80,STANLEY TRAVEL (NORTH EAST) LTD.
Adult and Health Services,Head of Adults,Transport,230005,Contract Hire,07/09/2023,4176890-08991,"1,144.00",STANLEY TRAVEL (NORTH EAST) LTD.
Chief Executives Office,Communications Management,Supplies and Services,332029,Printing Stationery and Gen Off Exps,07/09/2023,4176891-150131,"2,764.00",STATEX PRESS (NORTHERN) LTD.
Regeneration Economy and Growth,Corporate Property and Land,Supplies and Services,304221,Equipment and Materials,07/09/2023,4176896-1038159,"1,179.83",T CROSSLING & CO LTD.
Regeneration Economy and Growth,Corporate Property and Land,Supplies and Services,304221,Equipment and Materials,07/09/2023,4176896-1046817,713.98,T CROSSLING & CO LTD.
Regeneration Economy and Growth,Corporate Property and Land,Supplies and Services,304221,Equipment and Materials,07/09/2023,4176896-1048368,"1,805.17",T CROSSLING & CO LTD.
Regeneration Economy and Growth,Corporate Property and Land,Supplies and Services,304221,Equipment and Materials,07/09/2023,4176896-1052231,989.69,T CROSSLING & CO LTD.
Regeneration Economy and Growth,Corporate Property and Land,Supplies and Services,304221,Equipment and Materials,07/09/2023,4176896-1053033,"1,194.50",T CROSSLING & CO LTD.
Regeneration Economy and Growth,Corporate Property and Land,Supplies and Services,304221,Equipment and Materials,07/09/2023,4176896-1053034,680.96,T CROSSLING & CO LTD.
Regeneration Economy and Growth,Corporate Property and Land,Supplies and Services,304221,Equipment and Materials,07/09/2023,4176896-1053056,934.01,T CROSSLING & CO LTD.
Adult and Health Services,Head of Adults,Transport,230005,Contract Hire,07/09/2023,4176898-DCC/2022/90,"1,496.00",TAYLOR`S TAXIS.
Neighbourhoods and Climate Change,Highways,Supplies and Services,336005,Advertising E336,07/09/2023,4176901-18595,629.20,TEESDALE MERCURY LTD.
Adult and Health Services,Head of Adults,Transport,230005,Contract Hire,07/09/2023,4176905-255,"1,156.00",THE TAXI COMPANY (MURTON) LTD.
Regeneration Economy and Growth,Planning & Housing,Supplies and Services,304245,Equipment and Materials,07/09/2023,4176910-CD970027861,728.00,TUNSTALL HEALTHCARE (UK) LTD.
Regeneration Economy and Growth,Planning & Housing,Supplies and Services,304245,Equipment and Materials,07/09/2023,4176910-CD970027870,728.00,TUNSTALL HEALTHCARE (UK) LTD.
Regeneration Economy and Growth,Corporate Property and Land,Third Party Payments,430100,Rendered by Private Contractors,07/09/2023,4176911-DCC/GT/364,762.80,TYNE VALLEY FLOORING & CARPETS.
Neighbourhoods and Climate Change,Highways,Supplies and Services,304221,Equipment and Materials,07/09/2023,4176912-250339,"6,350.91",TYNEDALE ROADSTONE LTD.
Neighbourhoods and Climate Change,Highways,Supplies and Services,304221,Equipment and Materials,07/09/2023,4176912-250340,"1,388.28",TYNEDALE ROADSTONE LTD.
Neighbourhoods and Climate Change,Highways,Supplies and Services,304221,Equipment and Materials,07/09/2023,4176912-250341,"1,366.99",TYNEDALE ROADSTONE LTD.
Neighbourhoods and Climate Change,Highways,Supplies and Services,304221,Equipment and Materials,07/09/2023,4176912-250342,946.95,TYNEDALE ROADSTONE LTD.
Neighbourhoods and Climate Change,Highways,Supplies and Services,304221,Equipment and Materials,07/09/2023,4176912-250343,"1,831.85",TYNEDALE ROADSTONE LTD.
Neighbourhoods and Climate Change,Highways,Supplies and Services,304221,Equipment and Materials,07/09/2023,4176912-250344,"1,427.11",TYNEDALE ROADSTONE LTD.
Neighbourhoods and Climate Change,Highways,Stock A926,926900,Stock in hand-Inventory system,07/09/2023,4176913-SI07588789,893.53,UK PLUMBING SUPPLIES LTD T/A PLUMBASE.
Neighbourhoods and Climate Change,Environmental Services,Supplies and Services,384899,Miscellaneous Expenses,07/09/2023,4176914-RES-09-2023-055,"13,890.00",UNIVERSITY OF NEWCASTLE UPON TYNE.
Neighbourhoods and Climate Change,Highways,Supplies and Services,304221,Equipment and Materials,07/09/2023,4176915-INV071473,941.20,URBIS SCHREDER LTD.
Regeneration Economy and Growth,Corporate Property and Land,Third Party Payments,430100,Rendered by Private Contractors,07/09/2023,4176926-59364,"1,941.38",WILLOWCRETE MANUFACTURING COMPANY LTD (MFG).
Neighbourhoods and Climate Change,Environmental Services,Supplies and Services,338066,Services,08/09/2023,4176985-INV-2633,"2,000.00",DOUGIE INVINSON SAWMILL LTD.
Neighbourhoods and Climate Change,Environmental Services,Supplies and Services,304221,Equipment and Materials,08/09/2023,4177092-30767,567.75,REDACTED - PAYMENT TO INDIVIDUAL
Neighbourhoods and Climate Change,Environmental Services,Supplies and Services,384199,Miscellaneous Expenses,08/09/2023,4176956-RES-09-2023-020,542.79,BRANDON PRIMARY SCHOOL FUND.
Children and Young Peoples Services,Head of Education and Skills,Supplies and Services,384199,Miscellaneous Expenses,08/09/2023,4176983-DWF0004,"1,198.40",DLG PROPERTY MAINTENANCE LTD.
Regeneration Economy and Growth,Corporate Property and Land,Third Party Payments,430100,Rendered by Private Contractors,08/09/2023,4177042-76497,"3,960.00",HYGIENIK SYSTEMS LTD.
Children and Young Peoples Services,Head of Early Help Inclusion & Vulnerable Children.,Premises,108099,Service Repairs and Maintenance,08/09/2023,4177063-90186948,587.40,KWC DVS LTD.
Neighbourhoods and Climate Change,Environmental Services,Supplies and Services,384199,Miscellaneous Expenses,08/09/2023,4177126-150727,"1,400.00",RE ENACTMENT MERCENARIES.
Adult and Health Services,Head of Adults,Premises,106080,Centrally Controlled Rep and Maint,08/09/2023,4176932-0000014046,625.00,ACCORDIAL LTD.
Children and Young Peoples Services,Head of Early Help Inclusion & Vulnerable Children.,Premises,106080,Centrally Controlled Rep and Maint,08/09/2023,4176932-0000014057,635.00,ACCORDIAL LTD.
Regeneration Economy and Growth,Corporate Property and Land,Premises,106080,Centrally Controlled Rep and Maint,08/09/2023,4176932-0000014058,625.00,ACCORDIAL LTD.
Regeneration Economy and Growth,Business Durham,Premises,106082,Centrally Controlled Rep and Maint,08/09/2023,4176933-453,"16,113.29",ACROL AIR CONDITIONING CO LTD.
Regeneration Economy and Growth,Corporate Property and Land,Premises,108099,Service Repairs and Maintenance,08/09/2023,4176933-IN11063,"2,250.00",ACROL AIR CONDITIONING CO LTD.
Regeneration Economy and Growth,Corporate Property and Land,Supplies and Services,304221,Equipment and Materials,08/09/2023,4176937-178509,"1,055.00",ALBANY OFFICE EQUIPMENT (WHOLESALE) LTD.
Neighbourhoods and Climate Change,Environmental Services,Supplies and Services,308011,Furniture,08/09/2023,4176937-179097,689.00,ALBANY OFFICE EQUIPMENT (WHOLESALE) LTD.
Regeneration Economy and Growth,Corporate Property and Land,Supplies and Services,304221,Equipment and Materials,08/09/2023,4176945-304869,521.65,AVIRE LTD.
Neighbourhoods and Climate Change,Environmental Services,Supplies and Services,304221,Equipment and Materials,08/09/2023,4176947-INV159269,"1,124.52",AZTEC CHEMICALS LTD.
Regeneration Economy and Growth,Culture Sport and Tourism,Premises,145023,Cleaning and Domestic Supplies,08/09/2023,4176957-22SI2293133,"1,610.88",BRENNTAG UK LTD.
Adult and Health Services,Head of Adults,Supplies and Services,338364,Services,08/09/2023,4176959-91657,514.40,CARE ABILITY HEALTHCARE LTD.
Adult and Health Services,Head of Adults,Supplies and Services,338364,Services,08/09/2023,4176959-91763,883.96,CARE ABILITY HEALTHCARE LTD.
Adult and Health Services,Head of Adults,Supplies and Services,338364,Services,08/09/2023,4176959-91764,758.41,CARE ABILITY HEALTHCARE LTD.
Adult and Health Services,Head of Adults,Supplies and Services,338364,Services,08/09/2023,4176959-91912,"1,403.23",CARE ABILITY HEALTHCARE LTD.
Adult and Health Services,Head of Adults,Supplies and Services,338364,Services,08/09/2023,4176959-91991,625.28,CARE ABILITY HEALTHCARE LTD.
Adult and Health Services,Head of Adults,Supplies and Services,338364,Services,08/09/2023,4176959-91992,"1,682.49",CARE ABILITY HEALTHCARE LTD.
Adult and Health Services,Head of Adults,Supplies and Services,338364,Services,08/09/2023,4176959-92004,"1,366.63",CARE ABILITY HEALTHCARE LTD.
Adult and Health Services,Head of Adults,Supplies and Services,338364,Services,08/09/2023,4176959-92005,"1,419.88",CARE ABILITY HEALTHCARE LTD.
Adult and Health Services,Head of Adults,Supplies and Services,338364,Services,08/09/2023,4176960-91655,"2,158.10",CARE ABILITY HEALTHCARE LTD.
Neighbourhoods and Climate Change,Highways,Stock A926,926900,Stock in hand-Inventory system,08/09/2023,4176961-140016022,"5,322.35",CARLISLE CONSTRUCTION MATERIALS LTD.
Children and Young Peoples Services,Head of Education and Skills,Premises,108099,Service Repairs and Maintenance,08/09/2023,4176962-11588,935.03,CATHEDRAL LOCK & SAFE SERVICES LTD.
Regeneration Economy and Growth,Corporate Property and Land,Third Party Payments,430100,Rendered by Private Contractors,08/09/2023,4176962-11594,"3,958.98",CATHEDRAL LOCK & SAFE SERVICES LTD.
Children and Young Peoples Services,Head of Education and Skills,Premises,108099,Service Repairs and Maintenance,08/09/2023,4176962-11616,620.00,CATHEDRAL LOCK & SAFE SERVICES LTD.
Regeneration Economy and Growth,Culture Sport and Tourism,Premises,106082,Centrally Controlled Rep and Maint,08/09/2023,4176962-11637,"1,904.16",CATHEDRAL LOCK & SAFE SERVICES LTD.
Adult and Health Services,Public Health CC0450,Third Party Payments,460803,Contract Payments,08/09/2023,4176974-3910022242,"180,916.00",COUNTY DURHAM & DARLINGTON NHS FOUNDATION TRUST (CDDFT).
Adult and Health Services,Public Health CC0450,Third Party Payments,460803,Contract Payments,08/09/2023,4176974-3910022243,"30,830.00",COUNTY DURHAM & DARLINGTON NHS FOUNDATION TRUST (CDDFT).
Adult and Health Services,Public Health CC0450,Third Party Payments,460803,Contract Payments,08/09/2023,4176974-3910022245,"5,634.00",COUNTY DURHAM & DARLINGTON NHS FOUNDATION TRUST (CDDFT).
Resources BK0010,Digital Services,Stock A926,926900,Stock in hand-Inventory system,08/09/2023,4176976-4155750,811.00,CPC (ELECTRICAL WHOLESALERS).
Regeneration Economy and Growth,Corporate Property and Land,Supplies and Services,304221,Equipment and Materials,08/09/2023,4176995-059-323832,890.55,EDMUNDSON ELECTRICAL LTD.
Regeneration Economy and Growth,Corporate Property and Land,Supplies and Services,304221,Equipment and Materials,08/09/2023,4176995-059-323836,564.95,EDMUNDSON ELECTRICAL LTD.
Regeneration Economy and Growth,Corporate Property and Land,Premises,108099,Service Repairs and Maintenance,08/09/2023,4176999-101621,"5,100.00",EIAT UK LTD (ELECTRICAL INSTALLATION & APPLIANCE TESTING UK).
Regeneration Economy and Growth,Corporate Property and Land,Premises,108099,Service Repairs and Maintenance,08/09/2023,4176999-101962,"1,224.00",EIAT UK LTD (ELECTRICAL INSTALLATION & APPLIANCE TESTING UK).
Regeneration Economy and Growth,Corporate Property and Land,Premises,108099,Service Repairs and Maintenance,08/09/2023,4176999-102009,"6,035.00",EIAT UK LTD (ELECTRICAL INSTALLATION & APPLIANCE TESTING UK).
Regeneration Economy and Growth,Culture Sport and Tourism,Construction work A908,908105,Construction work,08/09/2023,4177000-2567,"104,145.18",ELMWOOD PROJECTS LTD.
Neighbourhoods and Climate Change,Highways,Supplies and Services,304221,Equipment and Materials,08/09/2023,4177001-2308\163,924.16,EPPLETON QUARRY PRODUCTS LTD.
Neighbourhoods and Climate Change,Highways,Supplies and Services,338066,Services,08/09/2023,4177003-23032081,"21,491.37",FAITHFUL & GOULD LTD.*
Regeneration Economy and Growth,Culture Sport and Tourism,Premises,106082,Centrally Controlled Rep and Maint,08/09/2023,4177010-502805,800.00,FT LEISURE LTD.
Regeneration Economy and Growth,Culture Sport and Tourism,Premises,106082,Centrally Controlled Rep and Maint,08/09/2023,4177010-502824,550.00,FT LEISURE LTD.
Regeneration Economy and Growth,Corporate Property and Land,Supplies and Services,304252,Equipment and Materials,08/09/2023,4177013-007138054,523.00,GAP GROUP LTD.
Neighbourhoods and Climate Change,Highways,Supplies and Services,304252,Equipment and Materials,08/09/2023,4177013-414006124,506.00,GAP GROUP LTD.
Neighbourhoods and Climate Change,Highways,Stock A926,926900,Stock in hand-Inventory system,08/09/2023,4177020-06/229037/2023,"1,248.34",GREENHAM TRADING LTD.
Neighbourhoods and Climate Change,Highways,Stock A926,926900,Stock in hand-Inventory system,08/09/2023,4177020-06/231669,"6,409.85",GREENHAM TRADING LTD.
Neighbourhoods and Climate Change,Highways,Stock A926,926900,Stock in hand-Inventory system,08/09/2023,4177020-06/235690,"3,409.62",GREENHAM TRADING LTD.
Regeneration Economy and Growth,Culture Sport and Tourism,Supplies and Services,304259,Equipment and Materials,08/09/2023,4177021-INV-5619,984.73,GYM TECH NORTH EAST.
Regeneration Economy and Growth,Business Durham,Supplies and Services,338027,Services,08/09/2023,4177027-28108,845.75,HICKTON CONSULTANTS LIMITED.
Neighbourhoods and Climate Change,Highways,Supplies and Services,304221,Equipment and Materials,08/09/2023,4177035-100003923,"4,010.00",HOBEN INTERNATIONAL LTD.
Regeneration Economy and Growth,Corporate Property and Land,Premises,108099,Service Repairs and Maintenance,08/09/2023,4177037-7081042943,"28,846.77",HONEYWELL NOVAR SYSTEMS LTD.
Regeneration Economy and Growth,Corporate Property and Land,Premises,108099,Service Repairs and Maintenance,08/09/2023,4177037-7081043580,"1,100.00",HONEYWELL NOVAR SYSTEMS LTD.
Adult and Health Services,Head of Adults,Premises,106082,Centrally Controlled Rep and Maint,08/09/2023,4177037-7081044770,992.67,HONEYWELL NOVAR SYSTEMS LTD.
Neighbourhoods and Climate Change,Highways,Supplies and Services,304221,Equipment and Materials,08/09/2023,4177043-400050372,"5,853.47",ICL UK SALES LTD (CLEVELAND POTASH LTD).
Regeneration Economy and Growth,Planning & Housing,Supplies and Services,342051,Computers and Communications,08/09/2023,4177044-7043624,"1,050.00",IDOX SOFTWARE LTD.
Neighbourhoods and Climate Change,Highways,Third Party Payments,430100,Rendered by Private Contractors,08/09/2023,4177046-INS2646A,900.00,INSPECTORATE LTD T/A ROCH NDT SERVICES.
Neighbourhoods and Climate Change,Highways,Third Party Payments,430100,Rendered by Private Contractors,08/09/2023,4177049-28227,"1,782.10",JACK COUPE & SONS LTD T/A COUPE LINE.
Neighbourhoods and Climate Change,Highways,Third Party Payments,430100,Rendered by Private Contractors,08/09/2023,4177049-28237,"5,511.80",JACK COUPE & SONS LTD T/A COUPE LINE.
Regeneration Economy and Growth,Culture Sport and Tourism,Supplies and Services,384302,Miscellaneous Expenses,08/09/2023,4177050-JDA/DCC/1987,"3,600.00",JACK DRUM ARTS LTD.
Regeneration Economy and Growth,Corporate Property and Land,Supplies and Services,304221,Equipment and Materials,08/09/2023,4177058-0213/00991509,825.10,JT DOVE LTD.
Adult and Health Services,Head of Adults,Third Party Payments,472101,Purchase of Care,08/09/2023,4177061-RES-09-2023-065,"16,787.87",KELLY PARK LTD..
Regeneration Economy and Growth,Corporate Property and Land,Supplies and Services,304221,Equipment and Materials,08/09/2023,4177068-5858748,575.68,LONDON GENERAL SALES LTD.
Regeneration Economy and Growth,Corporate Property and Land,Premises,108099,Service Repairs and Maintenance,08/09/2023,4177071-186330,562.50,LUCION ENVIRONMENTAL LLP LTD.
Regeneration Economy and Growth,Corporate Property and Land,Premises,108099,Service Repairs and Maintenance,08/09/2023,4177071-186640-23,800.00,LUCION ENVIRONMENTAL LLP LTD.
Regeneration Economy and Growth,Corporate Property and Land,Premises,108099,Service Repairs and Maintenance,08/09/2023,4177071-186641,600.00,LUCION ENVIRONMENTAL LLP LTD.
Regeneration Economy and Growth,Corporate Property and Land,Premises,108099,Service Repairs and Maintenance,08/09/2023,4177071-186839,"3,200.00",LUCION ENVIRONMENTAL LLP LTD.
Neighbourhoods and Climate Change,Highways,Stock A926,926900,Stock in hand-Inventory system,08/09/2023,4177072-6901717810,934.70,LYRECO UK LTD.
Neighbourhoods and Climate Change,Highways,Stock A926,926900,Stock in hand-Inventory system,08/09/2023,4177072-6901730379,"1,032.40",LYRECO UK LTD.
Neighbourhoods and Climate Change,Highways,Third Party Payments,460224,Contract Payments,08/09/2023,4177077-INV-34282,500.00,MCCARTHY TAYLOR SYSTEMS LTD.
Neighbourhoods and Climate Change,Environmental Services,Transport,230005,Contract Hire,08/09/2023,4177090-166088,"1,113.24",ND BROWN LTD.
Children and Young Peoples Services,Head of Childrens Social Care,Premises,135005,Water Services,08/09/2023,4177096-359144131227749346,542.46,NORTHUMBRIAN WATER LTD.
Resources BK0010,Digital Services,Supplies and Services,342051,Computers and Communications,08/09/2023,4177102-9004175864,"7,654.40",OPEN TEXT UK LTD.
Regeneration Economy and Growth,Corporate Property and Land,Supplies and Services,304221,Equipment and Materials,08/09/2023,4177108-XL306187,"2,818.96",PARK ELECTRICAL DISTRIBUTORS LTD.
Neighbourhoods and Climate Change,Highways,Stock A926,926900,Stock in hand-Inventory system,08/09/2023,4177108-XL306188,"4,280.28",PARK ELECTRICAL DISTRIBUTORS LTD.
Children and Young Peoples Services,Head of Early Help Inclusion & Vulnerable Children.,Premises,108099,Service Repairs and Maintenance,08/09/2023,4177118-17116,530.00,PREMIER CELL FIT T/A LIVEWIRE GATES & DOORS.
Neighbourhoods and Climate Change,Environmental Services,Premises,106082,Centrally Controlled Rep and Maint,08/09/2023,4177118-17148,600.00,PREMIER CELL FIT T/A LIVEWIRE GATES & DOORS.
Regeneration Economy and Growth,Corporate Property and Land,Premises,108099,Service Repairs and Maintenance,08/09/2023,4177123-OP/I010171,"2,300.00",PROTEC CAMERFIELD LTD.
Regeneration Economy and Growth,Planning & Housing,Supplies and Services,384999,Miscellaneous Expenses,08/09/2023,4177127-TR84697,"1,500.00",READY TO RENT MANAGEMENT LLP.
Regeneration Economy and Growth,Transport and Contracted Services,Supplies and Services,384199,Miscellaneous Expenses,08/09/2023,4177128-1498,"4,166.00",RECYKE Y'BYKE LTD.
Regeneration Economy and Growth,Corporate Property and Land,Premises,108099,Service Repairs and Maintenance,08/09/2023,4177130-2023-287,"2,253.64",REVINSON FIRE LTD.
Regeneration Economy and Growth,Culture Sport and Tourism,Premises,106082,Centrally Controlled Rep and Maint,08/09/2023,4177130-2023-302,"1,270.92",REVINSON FIRE LTD.
Regeneration Economy and Growth,Corporate Property and Land,Supplies and Services,304221,Equipment and Materials,08/09/2023,4177131-0000071467,"2,144.20",RINNAI UK LTD.
Regeneration Economy and Growth,Corporate Property and Land,Premises,108099,Service Repairs and Maintenance,08/09/2023,4177138-7638,"10,615.10",SAFE STRIP UK LTD.
Regeneration Economy and Growth,Corporate Property and Land,Premises,108099,Service Repairs and Maintenance,08/09/2023,4177138-7639,900.00,SAFE STRIP UK LTD.
Regeneration Economy and Growth,Business Durham,Supplies and Services,384199,Miscellaneous Expenses,08/09/2023,4177139-1661,534.00,SANDERSON WEATHERALL LLP.
Regeneration Economy and Growth,Corporate Property and Land,Premises,106082,Centrally Controlled Rep and Maint,08/09/2023,4177139-1728,900.00,SANDERSON WEATHERALL LLP.
Neighbourhoods and Climate Change,Highways,Supplies and Services,304221,Equipment and Materials,08/09/2023,4177147-091422,"1,986.38",SIMMONSIGNS LTD.
Regeneration Economy and Growth,Corporate Property and Land,Premises,108099,Service Repairs and Maintenance,08/09/2023,4177152-22904,"1,580.00",STONE TECHNICAL SERVICES GROUP LTD.
Neighbourhoods and Climate Change,Highways,Third Party Payments,430100,Rendered by Private Contractors,08/09/2023,4177157-INV-0612,532.00,SUPAMOLE DIRECTIONAL DRILLING SPECIALISTS.
Neighbourhoods and Climate Change,Highways,Third Party Payments,430100,Rendered by Private Contractors,08/09/2023,4177157-INV-0613,885.00,SUPAMOLE DIRECTIONAL DRILLING SPECIALISTS.
Neighbourhoods and Climate Change,Highways,Supplies and Services,304221,Equipment and Materials,08/09/2023,4177159-9047340895,"1,631.79",TARMAC TRADING LTD.
Children and Young Peoples Services,Head of Early Help Inclusion & Vulnerable Children.,Employees,080025,Agency Staff,08/09/2023,4177160-0000528925,"1,153.60",TEACHERACTIVE LTD.
Regeneration Economy and Growth,Corporate Property and Land,Supplies and Services,304221,Equipment and Materials,08/09/2023,4177169-39943,"4,511.00",TOTAL PUMP SOLUTIONS LTD.
Regeneration Economy and Growth,Corporate Property and Land,Supplies and Services,304221,Equipment and Materials,08/09/2023,4177172-11128451,553.98,TRADECHOICE DISTRIBUTION LTD.
Resources BK0010,Legal & Democratic Services,Supplies and Services,338042,Services,08/09/2023,4177176-308226/INVGR640,720.00,TRINITY CHAMBERS.
Resources BK0010,Legal & Democratic Services,Supplies and Services,338042,Services,08/09/2023,4177176-308229/INVGR641,"1,030.00",TRINITY CHAMBERS.
Resources BK0010,Legal & Democratic Services,Supplies and Services,338042,Services,08/09/2023,4177176-6D/MAITLAND,750.00,TRINITY CHAMBERS.
Adult and Health Services,Public Health CC0450,Third Party Payments,460803,Contract Payments,08/09/2023,4177177-SI-TPL-00078639,"1,855.00",TURNING POINT (SERVICES) LTD.
Adult and Health Services,Public Health CC0450,Third Party Payments,460803,Contract Payments,08/09/2023,4177177-SI-TPL-0078635,795.00,TURNING POINT (SERVICES) LTD.
Neighbourhoods and Climate Change,Highways,Supplies and Services,304221,Equipment and Materials,08/09/2023,4177178-250346,"1,434.50",TYNEDALE ROADSTONE LTD.
Neighbourhoods and Climate Change,Highways,Supplies and Services,304221,Equipment and Materials,08/09/2023,4177178-250347,"1,588.86",TYNEDALE ROADSTONE LTD.
Neighbourhoods and Climate Change,Highways,Supplies and Services,304221,Equipment and Materials,08/09/2023,4177178-250348,807.55,TYNEDALE ROADSTONE LTD.
Neighbourhoods and Climate Change,Highways,Supplies and Services,304221,Equipment and Materials,08/09/2023,4177178-250349,"6,121.39",TYNEDALE ROADSTONE LTD.
Neighbourhoods and Climate Change,Highways,Supplies and Services,304221,Equipment and Materials,08/09/2023,4177178-250350,"1,142.14",TYNEDALE ROADSTONE LTD.
Neighbourhoods and Climate Change,Highways,Supplies and Services,304221,Equipment and Materials,08/09/2023,4177178-250351,"1,594.05",TYNEDALE ROADSTONE LTD.
Neighbourhoods and Climate Change,Highways,Supplies and Services,304221,Equipment and Materials,08/09/2023,4177178-250352,"1,587.65",TYNEDALE ROADSTONE LTD.
Regeneration Economy and Growth,Corporate Property and Land,Premises,108099,Service Repairs and Maintenance,08/09/2023,4177180-13519,750.00,UK GUTTER MAINTENANCE LTD.
Neighbourhoods and Climate Change,Highways,Third Party Payments,430100,Rendered by Private Contractors,08/09/2023,4177182-302568,"1,050.00",UNIVERSAL SYSTEMS SOLUTIONS (SECURITY) LTD.
Children and Young Peoples Services,Head of Early Help Inclusion & Vulnerable Children.,Premises,108099,Service Repairs and Maintenance,08/09/2023,4177184-2918,890.00,VENTILATION HYGIENE SPECIALISTS (VHS) LTD.
Regeneration Economy and Growth,Corporate Property and Land,Premises,108099,Service Repairs and Maintenance,08/09/2023,4177184-2935,650.00,VENTILATION HYGIENE SPECIALISTS (VHS) LTD.
Regeneration Economy and Growth,Business Durham,Premises,108099,Service Repairs and Maintenance,08/09/2023,4177184-2946,640.00,VENTILATION HYGIENE SPECIALISTS (VHS) LTD.
Resources BK0010,Legal & Democratic Services,Supplies and Services,338099,Services,08/09/2023,4177185-117002,"1,170.00",VIVID RESOURCING.
Regeneration Economy and Growth,Transport and Contracted Services,Supplies and Services,384199,Miscellaneous Expenses,08/09/2023,4177190-64637382,"4,999.00",WSP UK LTD.
Neighbourhoods and Climate Change,Environmental Services,Transport,215005,Running Costs of Vehicles,08/09/2023,4177193-1012244,"1,222.70",YOUR NRG LTD.
Neighbourhoods and Climate Change,Environmental Services,Transport,215005,Running Costs of Vehicles,08/09/2023,4177193-1012246,"1,467.24",YOUR NRG LTD.
Neighbourhoods and Climate Change,Community Protection,Third Party Payments,430100,Rendered by Private Contractors,08/09/2023,4177194-2224,665.00,YOU`RE SECURE NORTHEAST.
Adult and Health Services,Head of Adults,Supplies and Services,338066,Services,11/09/2023,4177282-UC26,542.10,REDACTED - PAYMENT TO INDIVIDUAL
Regeneration Economy and Growth,Planning & Housing,Cap Exp on Grants & Other Financial Assistance (REFCUS),918501,Exp assets not owned by authority,11/09/2023,4177202-RES-09-2023-105,"1,123.39",ADA ELECTRICAL SERVICES.
Children and Young Peoples Services,Head of Education and Skills,Supplies and Services,384199,Miscellaneous Expenses,11/09/2023,4177232-DWF0010,666.88,BLITZED 247.
Dedicated Schools Grant BG0015,DSG Schools Block,Supplies and Services,304259,Equipment and Materials,11/09/2023,4177414-61931,"2,304.00",PLAYLEARN LTD. T/A SENSORY TOY WAREHOUSE.
Regeneration Economy and Growth,Culture Sport and Tourism,Supplies and Services,304259,Equipment and Materials,11/09/2023,4177415-73252,"1,431.16",PMF PRODUCTS LTD T/A LIVE 4 SPORT.
Neighbourhoods and Climate Change,Environmental Services,Supplies and Services,338066,Services,11/09/2023,4177428-AONB-0001,"1,210.00",RADIO.CO UK LTD.
Children and Young Peoples Services,Head of Education and Skills,Supplies and Services,304259,Equipment and Materials,11/09/2023,4177460-2593894850,"3,009.19",SONOVA UK LTD T/A GORDON MORRIS.
Regeneration Economy and Growth,Culture Sport and Tourism,Supplies and Services,384237,Miscellaneous Expenses,11/09/2023,4177478-INV-4483,"4,491.50",THE READING AGENCY LTD.
Neighbourhoods and Climate Change,Highways,Supplies and Services,304221,Equipment and Materials,11/09/2023,4177195-17165,"4,887.18",(IHL GROUP) IAN HOWE LANDSCAPING LTD.
Neighbourhoods and Climate Change,Environmental Services,Supplies and Services,338066,Services,11/09/2023,4177196-665,"1,940.00",4NATURE LTD.
Chief Executives Office,Communications Management,Supplies and Services,336005,Advertising E336,11/09/2023,4177199-00075662,"20,474.53",ACORN WEB OFFSET LTD.
Neighbourhoods and Climate Change,Environmental Services,Supplies and Services,338066,Services,11/09/2023,4177201-INV-0356,"1,230.00",ACTION FOR SWIFTS TRADING LTD.
Neighbourhoods and Climate Change,Environmental Services,Supplies and Services,384199,Miscellaneous Expenses,11/09/2023,4177204-R61/23/92969,"1,337.00",ALAN M RANSON FUNERAL SERVICE.
Children and Young Peoples Services,Head of Early Help Inclusion & Vulnerable Children.,Premises,108251,Service Repairs and Maintenance,11/09/2023,4177213-0000366827,"1,279.79",APEX RADIO SYSTEMS LTD.
Regeneration Economy and Growth,Culture Sport and Tourism,Supplies and Services,312013,Newspapers books and periodicals E312,11/09/2023,4177219-6928238,555.88,ASKEWS & HOLTS LIBRARY SERVICES LTD.
Regeneration Economy and Growth,Culture Sport and Tourism,Supplies and Services,312013,Newspapers books and periodicals E312,11/09/2023,4177219-6928275,655.99,ASKEWS & HOLTS LIBRARY SERVICES LTD.
Regeneration Economy and Growth,Culture Sport and Tourism,Supplies and Services,312013,Newspapers books and periodicals E312,11/09/2023,4177219-6928276,637.22,ASKEWS & HOLTS LIBRARY SERVICES LTD.
Regeneration Economy and Growth,Corporate Property and Land,Supplies and Services,304221,Equipment and Materials,11/09/2023,4177220-SIN538489,520.88,ATF SUPPLIES LTD.
Regeneration Economy and Growth,Corporate Property and Land,Third Party Payments,430100,Rendered by Private Contractors,11/09/2023,4177224-114813,"3,624.16",BAYDALE CONTROL SYSTEMS LTD.
Neighbourhoods and Climate Change,Highways,Supplies and Services,304221,Equipment and Materials,11/09/2023,4177231-207R02913,"1,203.95",BIFFA WASTE SERVICES LTD.
Regeneration Economy and Growth,Culture Sport and Tourism,Supplies and Services,312013,Newspapers books and periodicals E312,11/09/2023,4177233-162638,602.27,BOLINDA DIGITAL LTD.
Regeneration Economy and Growth,Culture Sport and Tourism,Premises,145023,Cleaning and Domestic Supplies,11/09/2023,4177236-22SI2293212,"1,859.24",BRENNTAG UK LTD.
Regeneration Economy and Growth,Corporate Property and Land,Third Party Payments,430100,Rendered by Private Contractors,11/09/2023,4177237-17082023,"3,405.00",BRIAN YOUNGER T/A B & E YOUNGER FLOORING.
Regeneration Economy and Growth,Business Durham,Premises,120009,Energy Costs,11/09/2023,4177238-849633636,768.55,BRITISH GAS BUSINESS.
Children and Young Peoples Services,Head of Education and Skills,Third Party Payments,440999,Other third party payments E440,11/09/2023,4177241-28,"18,205.00",BROADSIDE CREATIVES CIC.
Neighbourhoods and Climate Change,Highways,Third Party Payments,430128,Rendered by Private Contractors,11/09/2023,4177246-1894,"2,222.00",CARRICK CONTRACTORS LTD.
Regeneration Economy and Growth,Corporate Property and Land,Supplies and Services,304221,Equipment and Materials,11/09/2023,4177254-2852ABW157,"4,670.00",CITY PLUMBING SUPPLIES HOLDINGS LTD.
Neighbourhoods and Climate Change,Highways,Stock A926,926900,Stock in hand-Inventory system,11/09/2023,4177256-23000RX23013250,"2,688.72",COLAS LTD.
Regeneration Economy and Growth,Culture Sport and Tourism,Supplies and Services,338047,Services,11/09/2023,4177258-10788,"2,688.75",COMEDY STORE MANAGEMENT T/A THE COMEDY STORE LTD.
Regeneration Economy and Growth,Corporate Property and Land,Third Party Payments,430100,Rendered by Private Contractors,11/09/2023,4177260-3720,"2,849.92",COMPLETE DETECTION SYSTEMS LTD (CDS).
Adult and Health Services,Head of Adults,Third Party Payments,478151,Purchase of Care,11/09/2023,4177273-INV-1622,"7,567.56",DEACONSTAR LTD.
Adult and Health Services,Head of Adults,Third Party Payments,478151,Purchase of Care,11/09/2023,4177273-INV-1623,"2,354.94",DEACONSTAR LTD.
Adult and Health Services,Head of Adults,Third Party Payments,478151,Purchase of Care,11/09/2023,4177273-INV-1624,"2,906.75",DEACONSTAR LTD.
Children and Young Peoples Services,Head of Childrens Social Care,Third Party Payments,425021,Rendered by Voluntary Organisations,11/09/2023,4177275-55051748,"35,490.00",DEVON COUNTY COUNCIL.
Children and Young Peoples Services,Head of Childrens Social Care,Third Party Payments,425028,Rendered by Voluntary Organisations,11/09/2023,4177286-006-2023-24,"10,000.00",DURHAM AREA DISABILITY LEISURE GROUP (DADLG).
Neighbourhoods and Climate Change,Environmental Services,Supplies and Services,304221,Equipment and Materials,11/09/2023,4177290-0000153738,948.10,EARLEY ORNAMENTALS LTD.
Neighbourhoods and Climate Change,Environmental Services,Third Party Payments,430100,Rendered by Private Contractors,11/09/2023,4177302-12-2023,800.00,FOREST INVENTORY.
Neighbourhoods and Climate Change,Highways,Supplies and Services,304357,Equipment and Materials,11/09/2023,4177306-DCC130823,"20,477.40",GAP GROUP LTD.
Neighbourhoods and Climate Change,Highways,Supplies and Services,304357,Equipment and Materials,11/09/2023,4177306-DCC200823,"20,655.36",GAP GROUP LTD.
Regeneration Economy and Growth,Culture Sport and Tourism,Supplies and Services,384199,Miscellaneous Expenses,11/09/2023,4177309-246,"8,527.50",GAZEBOS FOR HIRE LTD.
Neighbourhoods and Climate Change,Highways,Supplies and Services,304358,Equipment and Materials,11/09/2023,4177311-81747,900.00,GEORGE VARDY HAULAGE.
Regeneration Economy and Growth,Culture Sport and Tourism,Premises,145023,Cleaning and Domestic Supplies,11/09/2023,4177316-06/236249,879.57,GREENHAM TRADING LTD.
Regeneration Economy and Growth,Corporate Property and Land,Third Party Payments,430100,Rendered by Private Contractors,11/09/2023,4177317-8283,993.98,GROVE REED JOINERY LTD.
Regeneration Economy and Growth,Culture Sport and Tourism,Supplies and Services,304259,Equipment and Materials,11/09/2023,4177318-INV-5498,510.02,GYM TECH NORTH EAST.
Regeneration Economy and Growth,Culture Sport and Tourism,Supplies and Services,304259,Equipment and Materials,11/09/2023,4177318-INV-5601,828.36,GYM TECH NORTH EAST.
Regeneration Economy and Growth,Corporate Property and Land,Supplies and Services,304221,Equipment and Materials,11/09/2023,4177321-4774982,"2,918.35",HEADLAM (FLOORCOVERING DISTRIBUTORS) LTD.
Regeneration Economy and Growth,Economic Development,Fees,901001,Internal fees,11/09/2023,4177324-RES-09-2023-083,"112,291.50",HORDEN & PETERLEE RUGBY CLUB.
Adult and Health Services,Public Health CC0450,Third Party Payments,460803,Contract Payments,11/09/2023,4177327-SI-HK-001286,"1,760.00",HUMANKIND CHARITY.
Neighbourhoods and Climate Change,Highways,Supplies and Services,304221,Equipment and Materials,11/09/2023,4177328-400050373,"18,451.74",ICL UK SALES LTD (CLEVELAND POTASH LTD).
Neighbourhoods and Climate Change,Highways,Supplies and Services,304221,Equipment and Materials,11/09/2023,4177328-400050374,"22,021.94",ICL UK SALES LTD (CLEVELAND POTASH LTD).
Children and Young Peoples Services,Head of Education and Skills,Third Party Payments,440999,Other third party payments E440,11/09/2023,4177329-SI-1200,"7,997.75",IMPACT NORTH EAST CIC.
Resources BK0010,Digital Services,Stock A926,926900,Stock in hand-Inventory system,11/09/2023,4177330-2100687300,"1,586.50",INSIGHT DIRECT (UK) LTD.
Neighbourhoods and Climate Change,Highways,Supplies and Services,352001,Conference Expenses,11/09/2023,4177331-200002140,"4,220.00",INSTITUTE OF HIGHWAY ENGINEERS (IHE).
Neighbourhoods and Climate Change,Highways,Construction work A908,908105,Construction work,11/09/2023,4177337-27724,"1,190.77",JACK COUPE & SONS LTD T/A COUPE LINE.
Neighbourhoods and Climate Change,Highways,Third Party Payments,430100,Rendered by Private Contractors,11/09/2023,4177337-28234,"3,783.80",JACK COUPE & SONS LTD T/A COUPE LINE.
Regeneration Economy and Growth,Corporate Property and Land,Third Party Payments,430100,Rendered by Private Contractors,11/09/2023,4177340-54460,870.00,JBL SERVICES LTD.
Regeneration Economy and Growth,Corporate Property and Land,Supplies and Services,304221,Equipment and Materials,11/09/2023,4177348-0108/00033282,682.79,JT DOVE LTD.
Neighbourhoods and Climate Change,Highways,Stock A926,926900,Stock in hand-Inventory system,11/09/2023,4177348-0113/00050529,"1,196.80",JT DOVE LTD.
Neighbourhoods and Climate Change,Highways,Stock A926,926900,Stock in hand-Inventory system,11/09/2023,4177348-0113/00050587,"1,262.40",JT DOVE LTD.
Regeneration Economy and Growth,Corporate Property and Land,Supplies and Services,304221,Equipment and Materials,11/09/2023,4177348-0303/00995756,"4,462.50",JT DOVE LTD.
Neighbourhoods and Climate Change,Highways,Supplies and Services,304221,Equipment and Materials,11/09/2023,4177348-0303/00995757,"3,693.76",JT DOVE LTD.
Neighbourhoods and Climate Change,Environmental Services,Transport,210057,Repair and Maintenance of Vehicles,11/09/2023,4177358-8243,"3,499.00",KTD NE LTD.
Children and Young Peoples Services,Head of Childrens Social Care,Supplies and Services,338044,Services,11/09/2023,4177362-300051,873.00,LEXTOX.
Regeneration Economy and Growth,Corporate Property and Land,Supplies and Services,304221,Equipment and Materials,11/09/2023,4177366-5860505,538.20,LONDON GENERAL SALES LTD.
Children and Young Peoples Services,Head of Education and Skills,Third Party Payments,440999,Other third party payments E440,11/09/2023,4177372-AW1120,"22,420.00",MBC ARTS WELLBEING CIC.
Regeneration Economy and Growth,Culture Sport and Tourism,Supplies and Services,332029,Printing Stationery and Gen Off Exps,11/09/2023,4177373-55782,"4,945.00",MHG (SUPPLIES) LTD.
Children and Young Peoples Services,Head of Childrens Social Care,Third Party Payments,486046,Service level agreements E486,11/09/2023,4177382-60431,"5,165.23",NATIONAL YOUTH ADVOCACY SERVICE.
Regeneration Economy and Growth,Economic Development,Supplies and Services,352001,Conference Expenses,11/09/2023,4177383-AAF18347,"1,070.00",NCFE.
Regeneration Economy and Growth,Corporate Property and Land,Supplies and Services,304221,Equipment and Materials,11/09/2023,4177384-45353,643.50,NE & C WINDOWS & DOORS LTD.
Regeneration Economy and Growth,Corporate Property and Land,Third Party Payments,430100,Rendered by Private Contractors,11/09/2023,4177384-45452,"123,500.00",NE & C WINDOWS & DOORS LTD.
Regeneration Economy and Growth,Corporate Property and Land,Third Party Payments,430100,Rendered by Private Contractors,11/09/2023,4177384-45532,"29,200.00",NE & C WINDOWS & DOORS LTD.
Regeneration Economy and Growth,Corporate Property and Land,Third Party Payments,430100,Rendered by Private Contractors,11/09/2023,4177384-45539,533.00,NE & C WINDOWS & DOORS LTD.
Regeneration Economy and Growth,Corporate Property and Land,Third Party Payments,430100,Rendered by Private Contractors,11/09/2023,4177384-45540,972.40,NE & C WINDOWS & DOORS LTD.
Neighbourhoods and Climate Change,Highways,Supplies and Services,372009,Subscriptions E372,11/09/2023,4177387-1325216,"14,411.51",NETWORK RAIL.
Regeneration Economy and Growth,Planning & Housing,Supplies and Services,336005,Advertising E336,11/09/2023,4177389-43381444,890.82,NEWSQUEST (YORKSHIRE & NORTH EAST) LTD.
Regeneration Economy and Growth,Corporate Property and Land,Supplies and Services,304221,Equipment and Materials,11/09/2023,4177393-1055518,600.00,NORTHERN TOOLS & ACCESSORIES.
Regeneration Economy and Growth,Corporate Property and Land,Third Party Payments,430100,Rendered by Private Contractors,11/09/2023,4177397-12226-03,"21,986.77",OPUS BUILDING SERVICES LTD.
Regeneration Economy and Growth,Corporate Property and Land,Third Party Payments,430100,Rendered by Private Contractors,11/09/2023,4177397-12263-02,"17,123.62",OPUS BUILDING SERVICES LTD.
Regeneration Economy and Growth,Corporate Property and Land,Third Party Payments,430100,Rendered by Private Contractors,11/09/2023,4177397-12304-25,"1,158.07",OPUS BUILDING SERVICES LTD.
Regeneration Economy and Growth,Corporate Property and Land,Third Party Payments,430100,Rendered by Private Contractors,11/09/2023,4177397-12304-26,"1,224.42",OPUS BUILDING SERVICES LTD.
Regeneration Economy and Growth,Corporate Property and Land,Third Party Payments,430100,Rendered by Private Contractors,11/09/2023,4177398-5346,"8,125.19",ORA PROPERTY SERVICES LTD.
Neighbourhoods and Climate Change,Environmental Services,Supplies and Services,304221,Equipment and Materials,11/09/2023,4177400-OASI0074929,"2,589.90",ORIGIN AMENITY SOLUTIONS LTD.
Regeneration Economy and Growth,Corporate Property and Land,Third Party Payments,430100,Rendered by Private Contractors,11/09/2023,4177402-3600,"4,300.00",PARAMOUNT CEILINGS & PARTITIONS LTD.
Children and Young Peoples Services,Head of Education and Skills,Supplies and Services,312009,Newspapers books and periodicals E312,11/09/2023,4177409-2013521,"1,373.95",PETERS LTD.
Children and Young Peoples Services,Head of Early Help Inclusion & Vulnerable Children.,Supplies and Services,384199,Miscellaneous Expenses,11/09/2023,4177411-69998263,"4,637.27",PHS GROUP PLC.
Neighbourhoods and Climate Change,Highways,Supplies and Services,304221,Equipment and Materials,11/09/2023,4177425-244946,603.24,PUDSEY DIAMOND ENGINEERING LTD.
Chief Executives Office,Communications Management,Supplies and Services,332029,Printing Stationery and Gen Off Exps,11/09/2023,4177427-21109,680.00,RADECAL SIGNS GRAPHICS & ADVERTISING.
Neighbourhoods and Climate Change,Highways,Supplies and Services,304358,Equipment and Materials,11/09/2023,4177440-3766,"1,254.50",S & R LANDSCAPES.
Neighbourhoods and Climate Change,Highways,Supplies and Services,304358,Equipment and Materials,11/09/2023,4177440-3768,750.50,S & R LANDSCAPES.
Neighbourhoods and Climate Change,Highways,Supplies and Services,304358,Equipment and Materials,11/09/2023,4177440-3771,"1,288.40",S & R LANDSCAPES.
Regeneration Economy and Growth,Corporate Property and Land,Supplies and Services,304358,Equipment and Materials,11/09/2023,4177440-3772,937.25,S & R LANDSCAPES.
Neighbourhoods and Climate Change,Highways,Supplies and Services,304358,Equipment and Materials,11/09/2023,4177440-3773,"1,092.00",S & R LANDSCAPES.
Neighbourhoods and Climate Change,Highways,Supplies and Services,304358,Equipment and Materials,11/09/2023,4177440-3774,"1,220.00",S & R LANDSCAPES.
Neighbourhoods and Climate Change,Highways,Supplies and Services,304221,Equipment and Materials,11/09/2023,4177440-3775,"3,000.00",S & R LANDSCAPES.
Neighbourhoods and Climate Change,Highways,Supplies and Services,304358,Equipment and Materials,11/09/2023,4177440-3776,"1,030.50",S & R LANDSCAPES.
Neighbourhoods and Climate Change,Highways,Supplies and Services,304358,Equipment and Materials,11/09/2023,4177440-3778,996.00,S & R LANDSCAPES.
Neighbourhoods and Climate Change,Highways,Supplies and Services,304358,Equipment and Materials,11/09/2023,4177440-3780,"1,363.20",S & R LANDSCAPES.
Neighbourhoods and Climate Change,Highways,Supplies and Services,304358,Equipment and Materials,11/09/2023,4177440-3781,"1,041.50",S & R LANDSCAPES.
Neighbourhoods and Climate Change,Highways,Supplies and Services,304358,Equipment and Materials,11/09/2023,4177440-3783,755.00,S & R LANDSCAPES.
Children and Young Peoples Services,Head of Early Help Inclusion & Vulnerable Children.,Supplies and Services,384199,Miscellaneous Expenses,11/09/2023,4177451-16992,"2,000.00",SHOW RACISM THE RED CARD.
Regeneration Economy and Growth,Culture Sport and Tourism,Supplies and Services,384199,Miscellaneous Expenses,11/09/2023,4177452-193380,"11,880.88",SHOWSEC INTERNATIONAL LTD.
Neighbourhoods and Climate Change,Environmental Services,Transport,230720,Contract Hire,11/09/2023,4177453-220/23/0040251,836.50,SIEMENS FINANCIAL SERVICES LTD.
Adult and Health Services,Public Health CC0450,Third Party Payments,460803,Contract Payments,11/09/2023,4177461-7910060021,"12,559.00",SOUTH TYNESIDE & SUNDERLAND NHS FOUNDATION TRUST.
Resources BK0010,Digital Services,Supplies and Services,342033,Computers and Communications,11/09/2023,4177467-146095,"156,188.00",SWITCHSHOP LTD.
Regeneration Economy and Growth,Corporate Property and Land,Supplies and Services,304221,Equipment and Materials,11/09/2023,4177468-1054584,"2,122.20",T CROSSLING & CO LTD.
Regeneration Economy and Growth,Corporate Property and Land,Supplies and Services,304221,Equipment and Materials,11/09/2023,4177468-1054585,659.53,T CROSSLING & CO LTD.
Regeneration Economy and Growth,Corporate Property and Land,Supplies and Services,304221,Equipment and Materials,11/09/2023,4177468-1054652,"2,326.05",T CROSSLING & CO LTD.
Regeneration Economy and Growth,Corporate Property and Land,Supplies and Services,304221,Equipment and Materials,11/09/2023,4177468-1054676,"2,550.57",T CROSSLING & CO LTD.
Regeneration Economy and Growth,Transport and Contracted Services,Third Party Payments,430100,Rendered by Private Contractors,11/09/2023,4177469-INV-33961,"2,167.50",T3 SECURITY LTD.
Regeneration Economy and Growth,Culture Sport and Tourism,Supplies and Services,304337,Equipment and Materials,11/09/2023,4177470-0429,"24,686.00",TAG ACTIVE LTD.
Neighbourhoods and Climate Change,Highways,Supplies and Services,304221,Equipment and Materials,11/09/2023,4177472-9047365292,598.15,TARMAC TRADING LTD.
Regeneration Economy and Growth,Culture Sport and Tourism,Supplies and Services,304259,Equipment and Materials,11/09/2023,4177474-2370011543,"1,831.40",TECHNOGYM UK LTD.
Adult and Health Services,Adults Excluded,Supplies and Services,338066,Services,11/09/2023,4177475-DHT08449,"2,177.25",THE DARTINGTON HALL TRUST.
Neighbourhoods and Climate Change,Environmental Services,Supplies and Services,328041,Clothing uniforms and laundry E328,11/09/2023,4177477-72959,"4,644.12",THE OUTDOORS COMPANY UK LIMITED.
Neighbourhoods and Climate Change,Highways,Stock A926,926900,Stock in hand-Inventory system,11/09/2023,4177481-114542,"1,328.64",TOTAL RENTAL SOLUTIONS LTD.
Neighbourhoods and Climate Change,Highways,Stock A926,926900,Stock in hand-Inventory system,11/09/2023,4177481-114543,"3,741.60",TOTAL RENTAL SOLUTIONS LTD.
Neighbourhoods and Climate Change,Highways,Stock A926,926900,Stock in hand-Inventory system,11/09/2023,4177481-114544,"1,600.00",TOTAL RENTAL SOLUTIONS LTD.
Neighbourhoods and Climate Change,Highways,Stock A926,926900,Stock in hand-Inventory system,11/09/2023,4177481-114545,"2,720.00",TOTAL RENTAL SOLUTIONS LTD.
Neighbourhoods and Climate Change,Highways,Supplies and Services,304221,Equipment and Materials,11/09/2023,4177482-143889,572.40,TP ELECTRICAL SUPPLIES & FIXINGS LTD.
Regeneration Economy and Growth,Corporate Property and Land,Third Party Payments,430100,Rendered by Private Contractors,11/09/2023,4177485-DCC/GT/365,554.36,TYNE VALLEY FLOORING & CARPETS.
Regeneration Economy and Growth,Corporate Property and Land,Third Party Payments,430100,Rendered by Private Contractors,11/09/2023,4177485-DCC/GT/366,502.80,TYNE VALLEY FLOORING & CARPETS.
Regeneration Economy and Growth,Corporate Property and Land,Third Party Payments,430100,Rendered by Private Contractors,11/09/2023,4177485-DCC/GT/376,645.60,TYNE VALLEY FLOORING & CARPETS.
Neighbourhoods and Climate Change,Highways,Supplies and Services,304221,Equipment and Materials,11/09/2023,4177486-250354,"7,861.65",TYNEDALE ROADSTONE LTD.
Neighbourhoods and Climate Change,Highways,Supplies and Services,304221,Equipment and Materials,11/09/2023,4177486-250355,"1,623.50",TYNEDALE ROADSTONE LTD.
Neighbourhoods and Climate Change,Highways,Supplies and Services,304221,Equipment and Materials,11/09/2023,4177486-250356,878.41,TYNEDALE ROADSTONE LTD.
Neighbourhoods and Climate Change,Highways,Supplies and Services,304221,Equipment and Materials,11/09/2023,4177486-250357,510.84,TYNEDALE ROADSTONE LTD.
Neighbourhoods and Climate Change,Highways,Supplies and Services,304221,Equipment and Materials,11/09/2023,4177486-250358,903.74,TYNEDALE ROADSTONE LTD.
Neighbourhoods and Climate Change,Highways,Supplies and Services,304221,Equipment and Materials,11/09/2023,4177486-250359,"1,372.40",TYNEDALE ROADSTONE LTD.
Neighbourhoods and Climate Change,Highways,Supplies and Services,304221,Equipment and Materials,11/09/2023,4177486-250360,"1,583.18",TYNEDALE ROADSTONE LTD.
Neighbourhoods and Climate Change,Highways,Supplies and Services,352001,Conference Expenses,11/09/2023,4177490-9000330556,"6,390.00",UNIVERSITY OF NEWCASTLE UPON TYNE.
Neighbourhoods and Climate Change,Highways,Construction work A908,908105,Construction work,11/09/2023,4177500-724940,605.44,WILLIAM SMITH GROUP 1832.
Regeneration Economy and Growth,Corporate Property and Land,Supplies and Services,304221,Equipment and Materials,11/09/2023,4177502-91291287,"1,534.05",WOLSELEY UK LTD.
Neighbourhoods and Climate Change,Environmental Services,Supplies and Services,338045,Services,11/09/2023,4177503-3739741,"3,168.30",WOMBLE BOND DICKINSON (UK) LLP.
Neighbourhoods and Climate Change,Community Protection,Third Party Payments,430100,Rendered by Private Contractors,11/09/2023,4177506-2239,590.00,YOU`RE SECURE NORTHEAST.
Children and Young Peoples Services,Head of Childrens Social Care,Supplies and Services,338044,Services,12/09/2023,4178169-388,"1,593.00",REDACTED - PAYMENT TO INDIVIDUAL
Children and Young Peoples Services,Head of Education and Skills,Supplies and Services,338094,Services,12/09/2023,4178184-32525,600.00,FERRYHILL COMMUNITY PARTNERSHIP CIO.
Neighbourhoods and Climate Change,Partnerships & Community Engagement Div.,Cap Exp on Grants & Other Financial Assistance (REFCUS),918004,Contributions to other bodies 918004,12/09/2023,4178203-VOUCHER21AB-DVLY011,"30,000.00",HAMSTERLEY MILL RESIDENTS ASSOCIATION.
Regeneration Economy and Growth,Corporate Property and Land,Supplies and Services,384956,Miscellaneous Expenses,12/09/2023,4178297-419630,582.00,SEAWARD GROUP LTD.
Adult and Health Services,Head of Adults,Transport,230005,Contract Hire,12/09/2023,4178093-82304,"1,525.20",24/7 TAXI SERVICES (PETERLEE) LTD.
Neighbourhoods and Climate Change,Highways,Supplies and Services,304221,Equipment and Materials,12/09/2023,4178101-34919578,"6,627.16",AGGREGATE INDUSTRIES UK LTD.
Neighbourhoods and Climate Change,Environmental Services,Third Party Payments,430100,Rendered by Private Contractors,12/09/2023,4178103-3385,"3,165.75",AJ GUTHRIE & SON.
Neighbourhoods and Climate Change,Environmental Services,Third Party Payments,430100,Rendered by Private Contractors,12/09/2023,4178103-3386,"2,713.50",AJ GUTHRIE & SON.
Neighbourhoods and Climate Change,Environmental Services,Third Party Payments,430100,Rendered by Private Contractors,12/09/2023,4178103-3388,"3,165.75",AJ GUTHRIE & SON.
Resources BK0010,Digital Services,Supplies and Services,304245,Equipment and Materials,12/09/2023,4178106-6700158145,597.50,ANTALIS LTD.
Adult and Health Services,Central/Other,Supplies and Services,372009,Subscriptions E372,12/09/2023,4178110-8239,"2,807.00",ASSOCIATION OF DIRECTORS OF SOCIAL SERVICES (ADASS).
Regeneration Economy and Growth,Corporate Property and Land,Supplies and Services,304221,Equipment and Materials,12/09/2023,4178111-1/2023,921.00,ASTRAL CONTROL SERVICES LTD.
Regeneration Economy and Growth,Corporate Property and Land,Third Party Payments,430100,Rendered by Private Contractors,12/09/2023,4178111-2/PLOTC,"22,970.33",ASTRAL CONTROL SERVICES LTD.
Adult and Health Services,Head of Adults,Transport,230005,Contract Hire,12/09/2023,4178118-0790,746.02,BIRDS TAXIS LTD.
Adult and Health Services,Head of Adults,Transport,230005,Contract Hire,12/09/2023,4178118-0791,"2,547.94",BIRDS TAXIS LTD.
Adult and Health Services,Head of Adults,Transport,230005,Contract Hire,12/09/2023,4178118-0792,945.12,BIRDS TAXIS LTD.
Adult and Health Services,Head of Adults,Transport,230005,Contract Hire,12/09/2023,4178118-0793,746.02,BIRDS TAXIS LTD.
Adult and Health Services,Head of Adults,Transport,230005,Contract Hire,12/09/2023,4178118-0794,"1,730.52",BIRDS TAXIS LTD.
Adult and Health Services,Head of Adults,Transport,230005,Contract Hire,12/09/2023,4178118-0795,"1,716.00",BIRDS TAXIS LTD.
Adult and Health Services,Head of Adults,Transport,230005,Contract Hire,12/09/2023,4178118-0797/0798,"1,687.24",BIRDS TAXIS LTD.
Dedicated Schools Grant BG0015,DSG Early Years Block,Transfer Payments,510030,School Children,12/09/2023,4178119-37486,"11,152.58",BISHOP HOGARTH CATHOLIC EDUCATION TRUST.
Dedicated Schools Grant BG0015,DSG Early Years Block,Transfer Payments,510030,School Children,12/09/2023,4178120-37492,"2,546.25",BISHOP HOGARTH CATHOLIC EDUCATION TRUST.
Dedicated Schools Grant BG0015,DSG Early Years Block,Transfer Payments,510030,School Children,12/09/2023,4178121-37488,"2,291.63",BISHOP WILKINSON CATHOLIC EDUCATION TRUST.
Dedicated Schools Grant BG0015,DSG Early Years Block,Transfer Payments,510030,School Children,12/09/2023,4178122-37491,"9,226.88",BISHOP WILKINSON CATHOLIC EDUCATION TRUST.
Dedicated Schools Grant BG0015,DSG Early Years Block,Transfer Payments,510030,School Children,12/09/2023,4178123-37487,"26,735.63",BISHOP WILKINSON CATHOLIC EDUCATION TRUST.
Adult and Health Services,Head of Adults,Transport,230005,Contract Hire,12/09/2023,4178124-INV05058,645.00,BLUELINE SOUTH INCORPORATING NAVIGATION TAXIS T/A BLUELINE TAXIS.
Regeneration Economy and Growth,Culture Sport and Tourism,Supplies and Services,312013,Newspapers books and periodicals E312,12/09/2023,4178125-153174,674.52,BOLINDA DIGITAL LTD.
Regeneration Economy and Growth,Culture Sport and Tourism,Supplies and Services,312013,Newspapers books and periodicals E312,12/09/2023,4178125-153746,602.31,BOLINDA DIGITAL LTD.
Regeneration Economy and Growth,Culture Sport and Tourism,Supplies and Services,312013,Newspapers books and periodicals E312,12/09/2023,4178125-156544,599.19,BOLINDA DIGITAL LTD.
Regeneration Economy and Growth,Culture Sport and Tourism,Supplies and Services,312013,Newspapers books and periodicals E312,12/09/2023,4178125-158557,671.66,BOLINDA DIGITAL LTD.
Regeneration Economy and Growth,Culture Sport and Tourism,Supplies and Services,312013,Newspapers books and periodicals E312,12/09/2023,4178125-158568,688.28,BOLINDA DIGITAL LTD.
Children and Young Peoples Services,Head of Education and Skills,Transport,230008,Contract Hire,12/09/2023,4178126-N079JUL23,"3,848.00",BON VOYAGE TAXIS LTD.
Children and Young Peoples Services,Head of Education and Skills,Transport,230008,Contract Hire,12/09/2023,4178126-W141JUL23,"3,000.00",BON VOYAGE TAXIS LTD.
Neighbourhoods and Climate Change,Partnerships & Community Engagement Div.,Cap Exp on Grants & Other Financial Assistance (REFCUS),918004,Contributions to other bodies 918004,12/09/2023,4178127-VOUCHER22NB-MDUR020,"7,135.00",BRANDON & BYSHOTTLES PARISH COUNCIL.
Neighbourhoods and Climate Change,Highways,Supplies and Services,304221,Equipment and Materials,12/09/2023,4178128-21417927,884.93,BREEDON TRADING LTD.
Neighbourhoods and Climate Change,Highways,Supplies and Services,304221,Equipment and Materials,12/09/2023,4178128-21417928,"1,459.92",BREEDON TRADING LTD.
Neighbourhoods and Climate Change,Highways,Supplies and Services,304221,Equipment and Materials,12/09/2023,4178128-21419413,"1,482.12",BREEDON TRADING LTD.
Neighbourhoods and Climate Change,Highways,Supplies and Services,304221,Equipment and Materials,12/09/2023,4178128-21420619,630.92,BREEDON TRADING LTD.
Neighbourhoods and Climate Change,Highways,Supplies and Services,304221,Equipment and Materials,12/09/2023,4178128-21426203,744.87,BREEDON TRADING LTD.
Children and Young Peoples Services,Head of Childrens Social Care,Third Party Payments,440036,Other third party payments E440,12/09/2023,4178134-25478,"1,061.76",CASTLE VIEW GROUP TRAINING.
Children and Young Peoples Services,Head of Childrens Social Care,Third Party Payments,440036,Other third party payments E440,12/09/2023,4178134-25773,995.40,CASTLE VIEW GROUP TRAINING.
Children and Young Peoples Services,Head of Childrens Social Care,Third Party Payments,440036,Other third party payments E440,12/09/2023,4178134-25826,"7,271.95",CASTLE VIEW GROUP TRAINING.
Children and Young Peoples Services,Head of Childrens Social Care,Third Party Payments,440036,Other third party payments E440,12/09/2023,4178134-25879,"2,388.96",CASTLE VIEW GROUP TRAINING.
Children and Young Peoples Services,Head of Childrens Social Care,Third Party Payments,440036,Other third party payments E440,12/09/2023,4178134-25881,530.88,CASTLE VIEW GROUP TRAINING.
Regeneration Economy and Growth,Corporate Property and Land,Third Party Payments,430100,Rendered by Private Contractors,12/09/2023,4178137-790,"9,131.93",CEILINGS DIRECT LTD.
Regeneration Economy and Growth,Corporate Property and Land,Third Party Payments,430100,Rendered by Private Contractors,12/09/2023,4178137-791,"1,406.24",CEILINGS DIRECT LTD.
Neighbourhoods and Climate Change,Highways,Supplies and Services,304358,Equipment and Materials,12/09/2023,4178138-115628,"1,583.13",CG ROBINSON & SONS LTD.
Neighbourhoods and Climate Change,Partnerships & Community Engagement Div.,Cap Exp on Grants & Other Financial Assistance (REFCUS),918004,Contributions to other bodies 918004,12/09/2023,4178142-VOUCHER23NB-4TOG004,"5,987.00",CHILTON JUNIORS FOOTBALL CLUB.
Regeneration Economy and Growth,Culture Sport and Tourism,Supplies and Services,384199,Miscellaneous Expenses,12/09/2023,4178152-UOTR5133790,"13,910.35",CONVERA UK FINANCIAL LTD.
Neighbourhoods and Climate Change,Environmental Services,Stock A926,926004,Stock,12/09/2023,4178165-96445860,"2,181.12",DENNIS EAGLE LTD T/A TERBERG MATEC (UK) LTD.
Resources BK0010,Legal & Democratic Services,Supplies and Services,338101,Services,12/09/2023,4178187-PNCUUM20032023JC,"1,500.00",FORENSIC PATHOLOGY LTD.
Neighbourhoods and Climate Change,Environmental Services,Stock A926,926004,Stock,12/09/2023,4178193-IN269008,530.95,GB LUBRICANTS LTD.
Chief Executives Office,Corporate Policy Planning & Performance,Supplies and Services,338066,Services,12/09/2023,4178200-30175899REPROVIDE,"10,000.00",GRANT THORNTON UK LLP.
Regeneration Economy and Growth,Culture Sport and Tourism,Supplies and Services,384199,Miscellaneous Expenses,12/09/2023,4178201-NEI-HCL-09-2023-002,"15,000.00",GREAT AYCLIFFE TOWN COUNCIL.
Children and Young Peoples Services,Head of Education and Skills,Transport,230004,Contract Hire,12/09/2023,4178205-015-JUL23,"1,014.00",HANNAH`S TAXI.
Adult and Health Services,Public Health CC0450,Third Party Payments,460803,Contract Payments,12/09/2023,4178209-SI-HK-001376,"16,709.88",HUMANKIND CHARITY.
Neighbourhoods and Climate Change,Environmental Services,Third Party Payments,430100,Rendered by Private Contractors,12/09/2023,4178211-3151,"1,421.47",IAN C LIDDLE T/A IC LIDDLE SERVICES.
Neighbourhoods and Climate Change,Environmental Services,Third Party Payments,430100,Rendered by Private Contractors,12/09/2023,4178211-3152,"2,781.77",IAN C LIDDLE T/A IC LIDDLE SERVICES.
Neighbourhoods and Climate Change,Environmental Services,Supplies and Services,304259,Equipment and Materials,12/09/2023,4178211-3153,"3,811.09",IAN C LIDDLE T/A IC LIDDLE SERVICES.
Neighbourhoods and Climate Change,Environmental Services,Supplies and Services,384199,Miscellaneous Expenses,12/09/2023,4178211-3163,"1,050.00",IAN C LIDDLE T/A IC LIDDLE SERVICES.
Neighbourhoods and Climate Change,Highways,Third Party Payments,430127,Rendered by Private Contractors,12/09/2023,4178211-3169,840.00,IAN C LIDDLE T/A IC LIDDLE SERVICES.
Neighbourhoods and Climate Change,Highways,Supplies and Services,304358,Equipment and Materials,12/09/2023,4178215-0778/2023,"3,886.00",J & JG GILL & SONS LTD.
Neighbourhoods and Climate Change,Highways,Supplies and Services,304358,Equipment and Materials,12/09/2023,4178215-0779/2023,686.00,J & JG GILL & SONS LTD.
Neighbourhoods and Climate Change,Highways,Third Party Payments,430128,Rendered by Private Contractors,12/09/2023,4178215-0894/2023,"6,617.50",J & JG GILL & SONS LTD.
Neighbourhoods and Climate Change,Highways,Supplies and Services,304358,Equipment and Materials,12/09/2023,4178217-5306960,759.50,JA GILSON (AGRICULTURAL CONTRACTORS) LTD.
Neighbourhoods and Climate Change,Highways,Supplies and Services,304358,Equipment and Materials,12/09/2023,4178217-5306961,"1,343.11",JA GILSON (AGRICULTURAL CONTRACTORS) LTD.
Neighbourhoods and Climate Change,Highways,Supplies and Services,304358,Equipment and Materials,12/09/2023,4178217-5306962,527.00,JA GILSON (AGRICULTURAL CONTRACTORS) LTD.
Neighbourhoods and Climate Change,Highways,Supplies and Services,304358,Equipment and Materials,12/09/2023,4178217-5306963,"1,162.00",JA GILSON (AGRICULTURAL CONTRACTORS) LTD.
Neighbourhoods and Climate Change,Highways,Supplies and Services,304358,Equipment and Materials,12/09/2023,4178217-5306964,728.00,JA GILSON (AGRICULTURAL CONTRACTORS) LTD.
Neighbourhoods and Climate Change,Environmental Services,Premises,108099,Service Repairs and Maintenance,12/09/2023,4178221-990,757.00,JN KEARTON (DRY STONE WALLING).
Neighbourhoods and Climate Change,Environmental Services,Premises,108099,Service Repairs and Maintenance,12/09/2023,4178221-992,689.80,JN KEARTON (DRY STONE WALLING).
Neighbourhoods and Climate Change,Environmental Services,Supplies and Services,384700,Miscellaneous Expenses,12/09/2023,4178224-RES-09-2023-085,"2,552.80",JT NIXON & SONS LTD.
Children and Young Peoples Services,Head of Education and Skills,Transport,230034,Contract Hire,12/09/2023,4178226-3330-JUL23,"2,400.00",KINGSWAY CABS LTD.
Children and Young Peoples Services,Head of Education and Skills,Transport,230008,Contract Hire,12/09/2023,4178226-3330-JUL23 -M054,"2,270.70",KINGSWAY CABS LTD.
Children and Young Peoples Services,Head of Education and Skills,Transport,230009,Contract Hire,12/09/2023,4178226-3330-JUL23-7396,"1,617.15",KINGSWAY CABS LTD.
Children and Young Peoples Services,Head of Education and Skills,Transport,230008,Contract Hire,12/09/2023,4178226-3330-JUL23-N078,"1,759.80",KINGSWAY CABS LTD.
Children and Young Peoples Services,Head of Education and Skills,Transport,230008,Contract Hire,12/09/2023,4178226-3330-JUL23-N091,"1,650.00",KINGSWAY CABS LTD.
Children and Young Peoples Services,Head of Education and Skills,Transport,230008,Contract Hire,12/09/2023,4178226-3330-JUL23-N095,"1,599.75",KINGSWAY CABS LTD.
Children and Young Peoples Services,Head of Education and Skills,Transport,230008,Contract Hire,12/09/2023,4178226-3330-JUL23-N098,"2,850.00",KINGSWAY CABS LTD.
Children and Young Peoples Services,Head of Education and Skills,Transport,230008,Contract Hire,12/09/2023,4178226-3330-JUL23-N350,"1,425.00",KINGSWAY CABS LTD.
Children and Young Peoples Services,Head of Education and Skills,Transport,230008,Contract Hire,12/09/2023,4178226-3330-JUL23-W003,"2,391.30",KINGSWAY CABS LTD.
Children and Young Peoples Services,Head of Education and Skills,Transport,230008,Contract Hire,12/09/2023,4178226-3330-JUL23-W039,"3,300.00",KINGSWAY CABS LTD.
Children and Young Peoples Services,Head of Education and Skills,Transport,230008,Contract Hire,12/09/2023,4178226-3330-JUL23-W049,"2,506.05",KINGSWAY CABS LTD.
Children and Young Peoples Services,Head of Education and Skills,Transport,230008,Contract Hire,12/09/2023,4178226-3330-JUL23-W175,"2,605.95",KINGSWAY CABS LTD.
Children and Young Peoples Services,Head of Education and Skills,Transport,230009,Contract Hire,12/09/2023,4178226-3344-MAY23,"1,919.01",KINGSWAY CABS LTD.
Children and Young Peoples Services,Head of Childrens Social Care,Third Party Payments,486020,Service level agreements E486,12/09/2023,4178231-2561,512.00,LEADER RECRUITMENT GROUP LTD T/A LEADER EDUCATION LTD.
Children and Young Peoples Services,Head of Childrens Social Care,Third Party Payments,486020,Service level agreements E486,12/09/2023,4178231-2603,512.00,LEADER RECRUITMENT GROUP LTD T/A LEADER EDUCATION LTD.
Children and Young Peoples Services,Head of Childrens Social Care,Third Party Payments,486020,Service level agreements E486,12/09/2023,4178231-2604,512.00,LEADER RECRUITMENT GROUP LTD T/A LEADER EDUCATION LTD.
Children and Young Peoples Services,Head of Childrens Social Care,Third Party Payments,486020,Service level agreements E486,12/09/2023,4178231-2637,517.34,LEADER RECRUITMENT GROUP LTD T/A LEADER EDUCATION LTD.
Children and Young Peoples Services,Head of Early Help Inclusion & Vulnerable Children.,Supplies and Services,384409,Miscellaneous Expenses,12/09/2023,4178233-000179,"1,959.30",LINGOTOT EAST DURHAM.
Resources BK0010,Digital Services,Supplies and Services,372009,Subscriptions E372,12/09/2023,4178238-12660125,"91,800.00",MAINTEL EUROPE LTD.
Children and Young Peoples Services,Head of Childrens Social Care,Third Party Payments,440046,Other third party payments E440,12/09/2023,4178239-187,"1,817.30",MAJOR RECRUITMENT LTD.*
Children and Young Peoples Services,Head of Childrens Social Care,Third Party Payments,440046,Other third party payments E440,12/09/2023,4178239-202,"1,179.67",MAJOR RECRUITMENT LTD.*
Children and Young Peoples Services,Head of Childrens Social Care,Third Party Payments,440046,Other third party payments E440,12/09/2023,4178239-3669,535.50,MAJOR RECRUITMENT LTD.*
Children and Young Peoples Services,Head of Childrens Social Care,Third Party Payments,440036,Other third party payments E440,12/09/2023,4178239-6531,"9,855.38",MAJOR RECRUITMENT LTD.*
Adult and Health Services,Head of Adults,Third Party Payments,474101,Purchase of Care,12/09/2023,4178240-BLOCKBEDS-RNCC-SEP23,"7,532.91",MALHOTRA CARE HOMES LTD.
Adult and Health Services,Head of Adults,Third Party Payments,474101,Purchase of Care,12/09/2023,4178240-BLOCKBEDS-SEP23,"27,515.31",MALHOTRA CARE HOMES LTD.
Adult and Health Services,Commissioning inc Supporting People,Supplies and Services,338370,Services,12/09/2023,4178244-53327,"58,483.92",MEDEQUIP ASSISTIVE TECHNOLOGY LTD.
Regeneration Economy and Growth,Planning & Housing,Construction work A908,908105,Construction work,12/09/2023,4178247-DEMOLITION-SEP23,"11,647.14",MGL DEMOLITION LTD.
Neighbourhoods and Climate Change,Partnerships & Community Engagement Div.,Supplies and Services,384086,Miscellaneous Expenses,12/09/2023,4178256-VOUCHER23NB-STAN012,"3,000.00",NORTH EAST HORTICULTURAL SOCIETY.
Neighbourhoods and Climate Change,Highways,Supplies and Services,304221,Equipment and Materials,12/09/2023,4178257-915519119,902.00,NORTHUMBRIAN WATER LTD.
Children and Young Peoples Services,Head of Childrens Social Care,Supplies and Services,384199,Miscellaneous Expenses,12/09/2023,4178264-131,"1,519.40",PACT NE.
Children and Young Peoples Services,Head of Education and Skills,Transport,230007,Contract Hire,12/09/2023,4178268-58825-55420,"1,379.46",PHOENIX TAXIS T/A PRATT`S TAXIS.
Children and Young Peoples Services,Head of Childrens Social Care,Third Party Payments,440046,Other third party payments E440,12/09/2023,4178273-28041,"3,064.29",PROGRESSIVE CARE LTD.
Children and Young Peoples Services,Head of Childrens Social Care,Third Party Payments,440048,Other third party payments E440,12/09/2023,4178274-2035A,880.00,PROTECTIVE CARE GROUP LTD.
Children and Young Peoples Services,Head of Childrens Social Care,Third Party Payments,440048,Other third party payments E440,12/09/2023,4178274-2036,"63,673.20",PROTECTIVE CARE GROUP LTD.
Children and Young Peoples Services,Head of Childrens Social Care,Third Party Payments,440048,Other third party payments E440,12/09/2023,4178274-2036A,650.00,PROTECTIVE CARE GROUP LTD.
Children and Young Peoples Services,Head of Childrens Social Care,Third Party Payments,440048,Other third party payments E440,12/09/2023,4178274-2037,"81,063.48",PROTECTIVE CARE GROUP LTD.
Children and Young Peoples Services,Head of Childrens Social Care,Third Party Payments,440048,Other third party payments E440,12/09/2023,4178274-2037A,650.00,PROTECTIVE CARE GROUP LTD.
Children and Young Peoples Services,Head of Childrens Social Care,Third Party Payments,440048,Other third party payments E440,12/09/2023,4178274-2045,"141,839.76",PROTECTIVE CARE GROUP LTD.
Children and Young Peoples Services,Head of Childrens Social Care,Third Party Payments,440048,Other third party payments E440,12/09/2023,4178274-2048,"114,925.44",PROTECTIVE CARE GROUP LTD.
Children and Young Peoples Services,Head of Childrens Social Care,Third Party Payments,440048,Other third party payments E440,12/09/2023,4178274-2054,"96,968.34",PROTECTIVE CARE GROUP LTD.
Children and Young Peoples Services,Head of Childrens Social Care,Third Party Payments,440048,Other third party payments E440,12/09/2023,4178274-2054A,650.00,PROTECTIVE CARE GROUP LTD.
Children and Young Peoples Services,Head of Childrens Social Care,Third Party Payments,440048,Other third party payments E440,12/09/2023,4178274-2055,"77,985.12",PROTECTIVE CARE GROUP LTD.
Children and Young Peoples Services,Head of Childrens Social Care,Third Party Payments,440048,Other third party payments E440,12/09/2023,4178274-2058,"70,891.56",PROTECTIVE CARE GROUP LTD.
Children and Young Peoples Services,Head of Childrens Social Care,Third Party Payments,440048,Other third party payments E440,12/09/2023,4178274-2059,"100,298.64",PROTECTIVE CARE GROUP LTD.
Children and Young Peoples Services,Head of Childrens Social Care,Third Party Payments,440048,Other third party payments E440,12/09/2023,4178274-2059A,800.00,PROTECTIVE CARE GROUP LTD.
Children and Young Peoples Services,Head of Childrens Social Care,Third Party Payments,440048,Other third party payments E440,12/09/2023,4178274-2060,"97,063.20",PROTECTIVE CARE GROUP LTD.
Children and Young Peoples Services,Head of Childrens Social Care,Third Party Payments,440048,Other third party payments E440,12/09/2023,4178274-2060A,800.00,PROTECTIVE CARE GROUP LTD.
Children and Young Peoples Services,Head of Childrens Social Care,Third Party Payments,440048,Other third party payments E440,12/09/2023,4178274-2061,"93,052.80",PROTECTIVE CARE GROUP LTD.
Children and Young Peoples Services,Head of Childrens Social Care,Third Party Payments,440048,Other third party payments E440,12/09/2023,4178274-2061A,880.00,PROTECTIVE CARE GROUP LTD.
Children and Young Peoples Services,Head of Childrens Social Care,Third Party Payments,440048,Other third party payments E440,12/09/2023,4178274-2062,"93,052.80",PROTECTIVE CARE GROUP LTD.
Children and Young Peoples Services,Head of Childrens Social Care,Third Party Payments,440048,Other third party payments E440,12/09/2023,4178274-2062A,880.00,PROTECTIVE CARE GROUP LTD.
Children and Young Peoples Services,Head of Childrens Social Care,Third Party Payments,440048,Other third party payments E440,12/09/2023,4178274-2063,"27,591.72",PROTECTIVE CARE GROUP LTD.
Children and Young Peoples Services,Head of Childrens Social Care,Third Party Payments,440048,Other third party payments E440,12/09/2023,4178274-2065,"92,350.80",PROTECTIVE CARE GROUP LTD.
Children and Young Peoples Services,Head of Childrens Social Care,Third Party Payments,440048,Other third party payments E440,12/09/2023,4178274-2065A,650.00,PROTECTIVE CARE GROUP LTD.
Dedicated Schools Grant BG0015,DSG Early Years Block,Transfer Payments,510030,School Children,12/09/2023,4178284-37490,"19,860.75",RIBBON ACADEMY TRUST.
Resources BK0010,Transactional & Customer Services,Supplies and Services,340001,Postages E340,12/09/2023,4178289-9068277874,"21,538.59",ROYAL MAIL GROUP PLC.
Regeneration Economy and Growth,Culture Sport and Tourism,Supplies and Services,338047,Services,12/09/2023,4178296-INV-1329,"7,500.00",SCENIC PANTOMIMES LTD.
Adult and Health Services,Head of Adults,Supplies and Services,338066,Services,12/09/2023,4178299-SHAH427,718.00,SHAH MEDICAL SERVICES LTD.
Adult and Health Services,Head of Adults,Supplies and Services,338066,Services,12/09/2023,4178299-SHAH433,897.50,SHAH MEDICAL SERVICES LTD.
Neighbourhoods and Climate Change,Partnerships & Community Engagement Div.,Cap Exp on Grants & Other Financial Assistance (REFCUS),918004,Contributions to other bodies 918004,12/09/2023,4178300-VOUCHER23NB-BASH007,"9,354.00",SHILDON RAILWAY SPORTS & SOCIAL CLUB.
Children and Young Peoples Services,Head of Early Help Inclusion & Vulnerable Children.,Supplies and Services,384871,Miscellaneous Expenses,12/09/2023,4178304-079,"8,300.00",SKILL MILL PARTNERSHIP LTD.
Neighbourhoods and Climate Change,Partnerships & Community Engagement Div.,Supplies and Services,384086,Miscellaneous Expenses,12/09/2023,4178306-VOUCHERCOCI02-23,500.00,SOUTH HETTON & DISTRICT COMMUNITY ASSOCIATION.
Resources BK0010,Digital Services,Supplies and Services,342033,Computers and Communications,12/09/2023,4178307-INV-24808,"1,721.47",SPECIALIST POWER SYSTEMS LTD.
Regeneration Economy and Growth,Culture Sport and Tourism,Supplies and Services,384199,Miscellaneous Expenses,12/09/2023,4178309-SI007789,"3,373.76",SPEKTRIX LTD.
Children and Young Peoples Services,Head of Childrens Social Care,Third Party Payments,440046,Other third party payments E440,12/09/2023,4178311-04696,"1,855.00",STANDBY HEALTHCARE (NORTH WEST) LTD.
Dedicated Schools Grant BG0015,DSG Early Years Block,Transfer Payments,510032,School Children,12/09/2023,4178312-37483,"4,491.90",STANLEY LEARNING PARTNERSHIP.
Dedicated Schools Grant BG0015,DSG Early Years Block,Transfer Payments,510030,School Children,12/09/2023,4178312-37489,"7,893.38",STANLEY LEARNING PARTNERSHIP.
Adult and Health Services,Head of Adults,Transport,230005,Contract Hire,12/09/2023,4178314-08987,500.00,STANLEY TRAVEL (NORTH EAST) LTD.
Children and Young Peoples Services,Head of Childrens Social Care,Supplies and Services,364359,Grants to Voluntary Organisations,12/09/2023,4178318-18080,846.00,SUNSHINE DAY NURSERY LTD.
Regeneration Economy and Growth,Transport and Contracted Services,Third Party Payments,430100,Rendered by Private Contractors,12/09/2023,4178321-INV-33539,"2,787.72",T3 SECURITY LTD.
Resources BK0010,Legal & Democratic Services,Supplies and Services,338042,Services,12/09/2023,4178333-305172/INVKW731,"1,030.00",TRINITY CHAMBERS.
Children and Young Peoples Services,Head of Childrens Social Care,Third Party Payments,440036,Other third party payments E440,12/09/2023,4178336-INV-1147,"12,721.31",VELOX HEALTHCARE.
Children and Young Peoples Services,Head of Childrens Social Care,Third Party Payments,440036,Other third party payments E440,12/09/2023,4178336-INV-1161,"1,092.27",VELOX HEALTHCARE.
Children and Young Peoples Services,Head of Childrens Social Care,Third Party Payments,440036,Other third party payments E440,12/09/2023,4178336-INV-1162,"8,315.75",VELOX HEALTHCARE.
Regeneration Economy and Growth,Corporate Property and Land,Third Party Payments,430100,Rendered by Private Contractors,12/09/2023,4178337-2932,725.68,VENTILATION HYGIENE SPECIALISTS (VHS) LTD.
Neighbourhoods and Climate Change,Environmental Services,Supplies and Services,338078,Services,12/09/2023,4178340-INV-59803,"2,503.20",VISTECH SERVICES LTD.
Neighbourhoods and Climate Change,Environmental Services,Supplies and Services,338078,Services,12/09/2023,4178340-INV-59805,"1,758.20",VISTECH SERVICES LTD.
Neighbourhoods and Climate Change,Environmental Services,Supplies and Services,338078,Services,12/09/2023,4178340-INV-59808,"1,028.10",VISTECH SERVICES LTD.
Children and Young Peoples Services,Head of Early Help Inclusion & Vulnerable Children.,Supplies and Services,338078,Services,12/09/2023,4178340-INV-59809,"5,050.08",VISTECH SERVICES LTD.
Neighbourhoods and Climate Change,Environmental Services,Supplies and Services,338078,Services,12/09/2023,4178340-INV-59818,"2,510.65",VISTECH SERVICES LTD.
Resources BK0010,Legal & Democratic Services,Supplies and Services,338099,Services,12/09/2023,4178341-116442,"1,170.00",VIVID RESOURCING.
Children and Young Peoples Services,Head of Education and Skills,Transport,230008,Contract Hire,12/09/2023,4178344-1362-JUL23,"1,298.24",WAYNE`S TAXIS.
Dedicated Schools Grant BG0015,DSG High Needs Block,Third Party Payments,486020,Service level agreements E486,12/09/2023,4178345-INV-7630,650.00,WE CARE RECRUITMENT SOLUTIONS LTD.
Dedicated Schools Grant BG0015,DSG High Needs Block,Third Party Payments,486020,Service level agreements E486,12/09/2023,4178345-INV-7710,650.00,WE CARE RECRUITMENT SOLUTIONS LTD.
Dedicated Schools Grant BG0015,DSG High Needs Block,Third Party Payments,486020,Service level agreements E486,12/09/2023,4178345-INV-7738,650.00,WE CARE RECRUITMENT SOLUTIONS LTD.
Neighbourhoods and Climate Change,Environmental Services,Premises,108099,Service Repairs and Maintenance,12/09/2023,4178348-DCCKH,"4,000.00",WOLSINGHAM LOGS.
Regeneration Economy and Growth,Corporate Property and Land,Supplies and Services,304999,Equipment and Materials,12/09/2023,4178350-1010961,"1,223.92",YOUR NRG LTD.
Neighbourhoods and Climate Change,Environmental Services,Supplies and Services,384199,Miscellaneous Expenses,13/09/2023,4178448-RES-09-2023-145,"1,650.00",REDACTED - PAYMENT TO INDIVIDUAL
Neighbourhoods and Climate Change,Environmental Services,Premises,108099,Service Repairs and Maintenance,13/09/2023,319056-4927,"2,687.60",IAN WOOD MEMORIALS LTD.
Children and Young Peoples Services,Head of Early Help Inclusion & Vulnerable Children.,Supplies and Services,304259,Equipment and Materials,13/09/2023,4178417-003,525.00,DOWN`S SYNDROME NORTH EAST (DSNE).
Neighbourhoods and Climate Change,Partnerships & Community Engagement Div.,Supplies and Services,384086,Miscellaneous Expenses,13/09/2023,4178409-VOUCHERSHAK03-23,885.00,DAWDON WELFARE PARK BOWLS CLUB.
Neighbourhoods and Climate Change,Environmental Services,Supplies and Services,384606,Miscellaneous Expenses,13/09/2023,4178495-RES-09-2023-097,"7,500.00",KIRKOSWALD CHURCH INSTITUTE.
Children and Young Peoples Services,Head of Childrens Social Care,Supplies and Services,304259,Equipment and Materials,13/09/2023,4178523-12280,"1,395.00",NEUROBOX LTD.
Dedicated Schools Grant BG0015,DSG High Needs Block,Central Support and Other Recharges,689995,Unclassified E690,13/09/2023,4178354-RES-09-2023-107,"20,113.00",ADVANCE LEARNING PARTNERSHIP.
Dedicated Schools Grant BG0015,DSG High Needs Block,Central Support and Other Recharges,689995,Unclassified E690,13/09/2023,4178355-RES-09-2023-108,"14,689.00",ADVANCE LEARNING PARTNERSHIP.
Neighbourhoods and Climate Change,Environmental Services,Supplies and Services,338066,Services,13/09/2023,4178359-RES-09-2023-118,"2,000.00",ALTOGETHER ARCHAEOLOGY.
Neighbourhoods and Climate Change,Highways,Supplies and Services,304358,Equipment and Materials,13/09/2023,4178362-0000038943,"2,340.00",AQUAJET DRAIN CLEANING LTD.
Regeneration Economy and Growth,Corporate Property and Land,Cap Exp on Grants & Other Financial Assistance (REFCUS),918004,Contributions to other bodies 918004,13/09/2023,4178369-RES-09-2023-138,"80,000.00",BEK DEVELOPMENTS LTD.
Regeneration Economy and Growth,Corporate Property and Land,Cap Exp on Grants & Other Financial Assistance (REFCUS),918004,Contributions to other bodies 918004,13/09/2023,4178369-RES-09-2023-140,"16,494.00",BEK DEVELOPMENTS LTD.
Children and Young Peoples Services,Head of Early Help Inclusion & Vulnerable Children.,Supplies and Services,324117,Provisions E324,13/09/2023,4178371-7141/373883,"1,640.28",BESTWAY WHOLESALE LTD T/A BATLEYS FOODSERVICE.
Neighbourhoods and Climate Change,Environmental Services,Third Party Payments,430114,Rendered by Private Contractors,13/09/2023,4178372-509M00493,"111,436.28",BIFFA WASTE SERVICES LTD.
Adult and Health Services,Head of Adults,Supplies and Services,304516,Equipment and Materials,13/09/2023,4178374-INV-737,"1,663.60",BILL SCOTT TAXIS LTD.
Regeneration Economy and Growth,Corporate Property and Land,Supplies and Services,304359,Equipment and Materials,13/09/2023,4178375-BMPR/1290/SKIPS,630.00,BISHOP MIDDLEHAM PLANT & RECYCLING LTD.
Regeneration Economy and Growth,Corporate Property and Land,Supplies and Services,338066,Services,13/09/2023,4178378-SIN045753,"80,378.12",BLOOM PROCUREMENT SERVICES LTD (FORMERLY NEPRO LTD).
Adult and Health Services,Commissioning inc Supporting People,Third Party Payments,479102,Purchase of Care,13/09/2023,4178382-5613,"5,041.67",CARERS FEDERATION LTD.
Regeneration Economy and Growth,Culture Sport and Tourism,Supplies and Services,384199,Miscellaneous Expenses,13/09/2023,4178387-2375,"5,294.00",CENTRE STAGE ENGINEERING LTD (CSE).
Regeneration Economy and Growth,Planning & Housing,Supplies and Services,342053,Computers and Communications,13/09/2023,4178393-M/HG119082,"2,863.54",CIVICA UK LTD.
Children and Young Peoples Services,Head of Early Help Inclusion & Vulnerable Children.,Supplies and Services,384199,Miscellaneous Expenses,13/09/2023,4178401-THK074,"1,660.00",COUNTY DURHAM FURNITURE HELP SCHEME (CDFHS).
Resources BK0010,Digital Services,Vehicles Equipment Furniture and Fittings,912701,Computer equipment,13/09/2023,4178411-7402943034,"119,400.00",DELL COMPUTER CORPORATION LTD.
Dedicated Schools Grant BG0015,DSG High Needs Block,Supplies and Services,384302,Miscellaneous Expenses,13/09/2023,4178412-202,"3,220.47",DENE ACADEMY.
Resources BK0010,Legal & Democratic Services,Supplies and Services,338042,Services,13/09/2023,4178414-358021/INVSRG292,"2,004.17",DERE STREET BARRISTERS.
Neighbourhoods and Climate Change,Environmental Services,Supplies and Services,384899,Miscellaneous Expenses,13/09/2023,4178422-RES-09-2023-052,"23,567.79",DURHAM WILDLIFE TRUST LTD.
Regeneration Economy and Growth,Corporate Property and Land,Supplies and Services,304221,Equipment and Materials,13/09/2023,4178425-059-324017,544.79,EDMUNDSON ELECTRICAL LTD.
Dedicated Schools Grant BG0015,DSG High Needs Block,Supplies and Services,384302,Miscellaneous Expenses,13/09/2023,4178427-RES-09-2023-120,"58,000.00",EDUCATION PLUS NE LTD.
Neighbourhoods and Climate Change,Highways,Supplies and Services,304221,Equipment and Materials,13/09/2023,4178433-2308\211,960.00,EPPLETON QUARRY PRODUCTS LTD.
Neighbourhoods and Climate Change,Highways,Supplies and Services,304221,Equipment and Materials,13/09/2023,4178433-2308\212,909.76,EPPLETON QUARRY PRODUCTS LTD.
Neighbourhoods and Climate Change,Highways,Supplies and Services,304221,Equipment and Materials,13/09/2023,4178433-2308\213,611.20,EPPLETON QUARRY PRODUCTS LTD.
Children and Young Peoples Services,Head of Education and Skills,Construction work A908,908105,Construction work,13/09/2023,4178435-179330,"382,896.98",ESH CONSTRUCTION LTD FORMERLY LUMSDEN & CARROLL CONSTRUCTION LTD.
Neighbourhoods and Climate Change,Environmental Services,Transport,210057,Repair and Maintenance of Vehicles,13/09/2023,4178438-148001,"1,260.48",FABRIKAT (NOTTINGHAM) LTD.
Children and Young Peoples Services,Head of Childrens Social Care,Supplies and Services,338044,Services,13/09/2023,4178440-2202305/1,"1,565.25",FOCUS MENTAL HEALTH LTD.
Neighbourhoods and Climate Change,Environmental Services,Transport,210057,Repair and Maintenance of Vehicles,13/09/2023,4178441-442966,779.56,FORD & SLATER LTD.
Children and Young Peoples Services,Head of Childrens Social Care,Supplies and Services,338044,Services,13/09/2023,4178442-105433,738.67,FORENSIC TESTING SERVICE LTD.
Regeneration Economy and Growth,Economic Development,Supplies and Services,384437,Miscellaneous Expenses,13/09/2023,4178445-GA0952,"2,645.00",GEMARTS.
Neighbourhoods and Climate Change,Environmental Services,Supplies and Services,338027,Services,13/09/2023,4178446-INV-0117,"5,000.00",GENEE CONSULTING LTD.
Resources BK0010,Legal & Democratic Services,Supplies and Services,338025,Services,13/09/2023,4178452-A/C359212/1190,970.00,GORDON FLETCHER & SONS LTD.
Regeneration Economy and Growth,Culture Sport and Tourism,Premises,145023,Cleaning and Domestic Supplies,13/09/2023,4178454-06/231848,868.62,GREENHAM TRADING LTD.
Neighbourhoods and Climate Change,Environmental Services,Supplies and Services,304221,Equipment and Materials,13/09/2023,4178455-282423,"4,096.40",GREENLAY T/A THOMAS SHERRIFF & CO LTD.
Neighbourhoods and Climate Change,Environmental Services,Transport,210057,Repair and Maintenance of Vehicles,13/09/2023,4178455-282510,"1,038.85",GREENLAY T/A THOMAS SHERRIFF & CO LTD.
Adult and Health Services,Public Health CC0450,Third Party Payments,460803,Contract Payments,13/09/2023,4178457-DCCDA101,"241,570.57",HARBOUR SUPPORT SERVICES.
Neighbourhoods and Climate Change,Environmental Services,Supplies and Services,384899,Miscellaneous Expenses,13/09/2023,4178458-RES-09-2023-053,"33,328.67",HARTLEPOOL BOROUGH COUNCIL.
Neighbourhoods and Climate Change,Highways,Third Party Payments,430100,Rendered by Private Contractors,13/09/2023,4178460-3555,"12,000.00",HIGHWAY CONSTRUCTION SERVICES LTD.
Neighbourhoods and Climate Change,Highways,Third Party Payments,430100,Rendered by Private Contractors,13/09/2023,4178460-3556,"8,436.00",HIGHWAY CONSTRUCTION SERVICES LTD.
Neighbourhoods and Climate Change,Highways,Supplies and Services,304221,Equipment and Materials,13/09/2023,4178462-I00003976,"12,732.00",HOBEN INTERNATIONAL LTD.
Neighbourhoods and Climate Change,Highways,Supplies and Services,304221,Equipment and Materials,13/09/2023,4178467-400050393,"13,710.20",ICL UK SALES LTD (CLEVELAND POTASH LTD).
Neighbourhoods and Climate Change,Environmental Services,Supplies and Services,338066,Services,13/09/2023,4178469-8752,"2,490.60",INGRAM AV LTD T/A INGRAMSOUNDS.
Neighbourhoods and Climate Change,Highways,Supplies and Services,304358,Equipment and Materials,13/09/2023,4178480-32625,"2,941.00",JOHN R BUTTERFIELD LTD.
Neighbourhoods and Climate Change,Highways,Supplies and Services,304358,Equipment and Materials,13/09/2023,4178480-32626,"5,755.00",JOHN R BUTTERFIELD LTD.
Neighbourhoods and Climate Change,Highways,Supplies and Services,304358,Equipment and Materials,13/09/2023,4178480-32629,"10,217.50",JOHN R BUTTERFIELD LTD.
Neighbourhoods and Climate Change,Highways,Supplies and Services,304358,Equipment and Materials,13/09/2023,4178481-0000084328,"1,360.00",JOHN WADE (HAULAGE) LTD.
Neighbourhoods and Climate Change,Highways,Supplies and Services,304221,Equipment and Materials,13/09/2023,4178485-0113/00050673,"3,089.52",JT DOVE LTD.
Regeneration Economy and Growth,Corporate Property and Land,Supplies and Services,304221,Equipment and Materials,13/09/2023,4178485-0123/00995755,807.63,JT DOVE LTD.
Regeneration Economy and Growth,Corporate Property and Land,Supplies and Services,304221,Equipment and Materials,13/09/2023,4178485-0213/00995754,"6,001.04",JT DOVE LTD.
Neighbourhoods and Climate Change,Environmental Services,Supplies and Services,384199,Miscellaneous Expenses,13/09/2023,4178487-1717,"34,425.42",JW BAINBRIDGE CONTRACTORS LTD.
Neighbourhoods and Climate Change,Highways,Supplies and Services,304358,Equipment and Materials,13/09/2023,4178493-4613,"1,440.00",KEVIN SNOWDON GROUNDWORKS LTD.
Neighbourhoods and Climate Change,Highways,Supplies and Services,304358,Equipment and Materials,13/09/2023,4178493-4614,"1,198.75",KEVIN SNOWDON GROUNDWORKS LTD.
Children and Young Peoples Services,Head of Education and Skills,Supplies and Services,338027,Services,13/09/2023,4178496-010323-01,"2,062.80",KNETIC LTD.
Children and Young Peoples Services,Head of Childrens Social Care,Supplies and Services,338044,Services,13/09/2023,4178501-299154,507.28,LEXTOX.
Children and Young Peoples Services,Head of Early Help Inclusion & Vulnerable Children.,Supplies and Services,384409,Miscellaneous Expenses,13/09/2023,4178502-000180,"1,959.30",LINGOTOT EAST DURHAM.
Neighbourhoods and Climate Change,Highways,Supplies and Services,304358,Equipment and Materials,13/09/2023,4178509-MS4486,882.00,M SPENCE SURFACING LTD.
Neighbourhoods and Climate Change,Highways,Supplies and Services,304358,Equipment and Materials,13/09/2023,4178509-MS4487,522.00,M SPENCE SURFACING LTD.
Neighbourhoods and Climate Change,Highways,Supplies and Services,304358,Equipment and Materials,13/09/2023,4178509-MS4488,702.00,M SPENCE SURFACING LTD.
Neighbourhoods and Climate Change,Highways,Supplies and Services,304358,Equipment and Materials,13/09/2023,4178509-MS4489,918.00,M SPENCE SURFACING LTD.
Neighbourhoods and Climate Change,Highways,Supplies and Services,304358,Equipment and Materials,13/09/2023,4178509-MS4491,784.80,M SPENCE SURFACING LTD.
Neighbourhoods and Climate Change,Highways,Supplies and Services,304358,Equipment and Materials,13/09/2023,4178509-MS4500,529.20,M SPENCE SURFACING LTD.
Neighbourhoods and Climate Change,Highways,Supplies and Services,304358,Equipment and Materials,13/09/2023,4178509-MS4506,"1,332.00",M SPENCE SURFACING LTD.
Neighbourhoods and Climate Change,Highways,Supplies and Services,304358,Equipment and Materials,13/09/2023,4178509-MS4507,"1,165.50",M SPENCE SURFACING LTD.
Neighbourhoods and Climate Change,Highways,Supplies and Services,304358,Equipment and Materials,13/09/2023,4178509-MS4508,"1,181.25",M SPENCE SURFACING LTD.
Neighbourhoods and Climate Change,Highways,Supplies and Services,304358,Equipment and Materials,13/09/2023,4178509-MS4509,"1,350.00",M SPENCE SURFACING LTD.
Regeneration Economy and Growth,Business Durham,Supplies and Services,384199,Miscellaneous Expenses,13/09/2023,4178510-INV-1343,"2,670.00",MANTIS MEDIA T/A AYCLIFFE TODAY.
Neighbourhoods and Climate Change,Environmental Services,Third Party Payments,430101,Rendered by Private Contractors,13/09/2023,4178514-HOL08637,788.12,MCCONECHYS TYRE SERVICE LTD.
Neighbourhoods and Climate Change,Environmental Services,Third Party Payments,430101,Rendered by Private Contractors,13/09/2023,4178514-HOL08638,"1,689.30",MCCONECHYS TYRE SERVICE LTD.
Neighbourhoods and Climate Change,Environmental Services,Third Party Payments,430101,Rendered by Private Contractors,13/09/2023,4178514-HOL08639,"1,779.94",MCCONECHYS TYRE SERVICE LTD.
Neighbourhoods and Climate Change,Environmental Services,Third Party Payments,430101,Rendered by Private Contractors,13/09/2023,4178514-HOL08640,"1,282.99",MCCONECHYS TYRE SERVICE LTD.
Neighbourhoods and Climate Change,Environmental Services,Third Party Payments,430101,Rendered by Private Contractors,13/09/2023,4178514-HOL08668,"1,737.12",MCCONECHYS TYRE SERVICE LTD.
Neighbourhoods and Climate Change,Environmental Services,Third Party Payments,430101,Rendered by Private Contractors,13/09/2023,4178514-HOL08670,"2,177.38",MCCONECHYS TYRE SERVICE LTD.
Neighbourhoods and Climate Change,Environmental Services,Third Party Payments,430101,Rendered by Private Contractors,13/09/2023,4178514-HOL08671,"1,438.77",MCCONECHYS TYRE SERVICE LTD.
Neighbourhoods and Climate Change,Highways,Premises,150015,Apportioned Exps of Operational Blds,13/09/2023,4178516-7003018933,770.12,MOBILE MINI UK LTD.
Regeneration Economy and Growth,Culture Sport and Tourism,Supplies and Services,324001,Provisions E324,13/09/2023,4178518-907236248,"1,266.25",MOLSON COORS BREWING COMPANY (UK) LTD.
Regeneration Economy and Growth,Culture Sport and Tourism,Supplies and Services,324001,Provisions E324,13/09/2023,4178518-907247033,708.36,MOLSON COORS BREWING COMPANY (UK) LTD.
Regeneration Economy and Growth,Culture Sport and Tourism,Supplies and Services,324001,Provisions E324,13/09/2023,4178518-907258306,752.18,MOLSON COORS BREWING COMPANY (UK) LTD.
Children and Young Peoples Services,Head of Early Help Inclusion & Vulnerable Children.,Supplies and Services,384199,Miscellaneous Expenses,13/09/2023,4178524-NAS2,900.00,NEWCASTLE 2 DOMICILIARY SPECSAVERS LTD.
Adult and Health Services,Public Health CC0450,Supplies and Services,384155,Miscellaneous Expenses,13/09/2023,4178526-1000078190,"70,216.67",NHS BUSINESS SERVICES AUTHORITY (NHSBSA).
Children and Young Peoples Services,Head of Education and Skills,Third Party Payments,440999,Other third party payments E440,13/09/2023,4178529-4882,"6,685.25",NORTH EAST DANCE CIC.
Regeneration Economy and Growth,Culture Sport and Tourism,Construction work A908,908105,Construction work,13/09/2023,4178537-NEI-EXP-09-2023-042,"1,721.00",OPENREACH LLU.
Regeneration Economy and Growth,Corporate Property and Land,Supplies and Services,384199,Miscellaneous Expenses,13/09/2023,4178541-3601,"10,800.00",PARAMOUNT CEILINGS & PARTITIONS LTD.
Neighbourhoods and Climate Change,Highways,Stock A926,926900,Stock in hand-Inventory system,13/09/2023,4178543-XL306425,640.00,PARK ELECTRICAL DISTRIBUTORS LTD.
Neighbourhoods and Climate Change,Highways,Third Party Payments,430100,Rendered by Private Contractors,13/09/2023,4178547-6567,"5,855.33",PINKNEY BUILDING CONTRACTORS LTD.
Neighbourhoods and Climate Change,Highways,Third Party Payments,430100,Rendered by Private Contractors,13/09/2023,4178547-6568,"6,508.78",PINKNEY BUILDING CONTRACTORS LTD.
Neighbourhoods and Climate Change,Highways,Third Party Payments,430100,Rendered by Private Contractors,13/09/2023,4178547-6574,"3,838.17",PINKNEY BUILDING CONTRACTORS LTD.
Neighbourhoods and Climate Change,Highways,Third Party Payments,430100,Rendered by Private Contractors,13/09/2023,4178547-6575,"6,303.24",PINKNEY BUILDING CONTRACTORS LTD.
Neighbourhoods and Climate Change,Highways,Third Party Payments,430100,Rendered by Private Contractors,13/09/2023,4178547-6578,"3,941.83",PINKNEY BUILDING CONTRACTORS LTD.
Neighbourhoods and Climate Change,Highways,Third Party Payments,430100,Rendered by Private Contractors,13/09/2023,4178547-6579,"4,658.92",PINKNEY BUILDING CONTRACTORS LTD.
Adult and Health Services,Head of Adults,Third Party Payments,479102,Purchase of Care,13/09/2023,4178549-INV-0204,"7,561.08",POSITIVE CARE & SUPPORT LTD.
Adult and Health Services,Head of Adults,Third Party Payments,479102,Purchase of Care,13/09/2023,4178549-INV-0205,"5,438.90",POSITIVE CARE & SUPPORT LTD.
Adult and Health Services,Head of Adults,Third Party Payments,479102,Purchase of Care,13/09/2023,4178549-INV-0214,"7,561.08",POSITIVE CARE & SUPPORT LTD.
Adult and Health Services,Head of Adults,Third Party Payments,479102,Purchase of Care,13/09/2023,4178549-INV-0215,"5,438.90",POSITIVE CARE & SUPPORT LTD.
Adult and Health Services,Head of Adults,Third Party Payments,479102,Purchase of Care,13/09/2023,4178549-INV-0216,"1,032.50",POSITIVE CARE & SUPPORT LTD.
Neighbourhoods and Climate Change,Highways,Third Party Payments,430100,Rendered by Private Contractors,13/09/2023,4178553-15193,"20,946.87",QUANTUM POWER CONNECTIONS LTD.
Neighbourhoods and Climate Change,Highways,Third Party Payments,430100,Rendered by Private Contractors,13/09/2023,4178553-15196,"2,180.56",QUANTUM POWER CONNECTIONS LTD.
Neighbourhoods and Climate Change,Highways,Third Party Payments,430100,Rendered by Private Contractors,13/09/2023,4178553-15198,"4,190.28",QUANTUM POWER CONNECTIONS LTD.
Neighbourhoods and Climate Change,Highways,Third Party Payments,430100,Rendered by Private Contractors,13/09/2023,4178553-15199,522.36,QUANTUM POWER CONNECTIONS LTD.
Neighbourhoods and Climate Change,Highways,Third Party Payments,430100,Rendered by Private Contractors,13/09/2023,4178553-15200,522.36,QUANTUM POWER CONNECTIONS LTD.
Neighbourhoods and Climate Change,Highways,Third Party Payments,430100,Rendered by Private Contractors,13/09/2023,4178553-15201,522.36,QUANTUM POWER CONNECTIONS LTD.
Neighbourhoods and Climate Change,Highways,Third Party Payments,430100,Rendered by Private Contractors,13/09/2023,4178553-15202,522.36,QUANTUM POWER CONNECTIONS LTD.
Neighbourhoods and Climate Change,Highways,Third Party Payments,430100,Rendered by Private Contractors,13/09/2023,4178553-15203,522.36,QUANTUM POWER CONNECTIONS LTD.
Neighbourhoods and Climate Change,Highways,Third Party Payments,430100,Rendered by Private Contractors,13/09/2023,4178553-15204,522.36,QUANTUM POWER CONNECTIONS LTD.
Neighbourhoods and Climate Change,Highways,Third Party Payments,430100,Rendered by Private Contractors,13/09/2023,4178553-15205,533.76,QUANTUM POWER CONNECTIONS LTD.
Chief Executives Office,Communications Management,Supplies and Services,332029,Printing Stationery and Gen Off Exps,13/09/2023,4178555-21115,"3,135.00",RADECAL SIGNS GRAPHICS & ADVERTISING.
Chief Executives Office,Communications Management,Supplies and Services,332029,Printing Stationery and Gen Off Exps,13/09/2023,4178555-21117,"5,000.00",RADECAL SIGNS GRAPHICS & ADVERTISING.
Chief Executives Office,Communications Management,Supplies and Services,332029,Printing Stationery and Gen Off Exps,13/09/2023,4178555-21131,750.00,RADECAL SIGNS GRAPHICS & ADVERTISING.
Neighbourhoods and Climate Change,Highways,Stock A926,926900,Stock in hand-Inventory system,13/09/2023,4178576-SI23008374,650.00,SOLON SECURITY LTD.
Adult and Health Services,Public Health CC0450,Third Party Payments,460803,Contract Payments,13/09/2023,4178577-D0046257,"11,550.59",SOUTH TEES HOSPITALS NHS FOUNDATION TRUST.
Neighbourhoods and Climate Change,Highways,Other expenses A914,914002,Capital - Advertisments,13/09/2023,4178578-24319,658.00,SOUTH WEST DURHAM NEWS CIC.
Children and Young Peoples Services,Head of Education and Skills,Third Party Payments,440999,Other third party payments E440,13/09/2023,4178580-22-23-INV11,"4,425.68",SPORTSCAPE TRAINING LTD.
Regeneration Economy and Growth,Corporate Property and Land,Third Party Payments,430100,Rendered by Private Contractors,13/09/2023,4178581-8701,"1,624.00",ST ASTIER LTD.
Regeneration Economy and Growth,Corporate Property and Land,Third Party Payments,430100,Rendered by Private Contractors,13/09/2023,4178581-8702,"3,188.00",ST ASTIER LTD.
Chief Executives Office,Communications Management,Supplies and Services,332029,Printing Stationery and Gen Off Exps,13/09/2023,4178585-150218,599.00,STATEX PRESS (NORTHERN) LTD.
Regeneration Economy and Growth,Transport and Contracted Services,Third Party Payments,430106,Rendered by Private Contractors,13/09/2023,4178587-12484,"6,576.30",SUPPORTIVE SRC LTD.
Adult and Health Services,Commissioning inc Supporting People,Transport,240045,Car allowances E240,13/09/2023,4178587-12485,"2,503.36",SUPPORTIVE SRC LTD.
Regeneration Economy and Growth,Business Durham,Premises,108125,Service Repairs and Maintenance,13/09/2023,4178588-INV-0969,816.67,SWINBURNE HORTICULTURAL SERVICES LTD.
Resources BK0010,Digital Services,Supplies and Services,304303,Equipment and Materials,13/09/2023,4178589-146116,"1,316.42",SWITCHSHOP LTD.
Resources BK0010,Digital Services,Supplies and Services,304303,Equipment and Materials,13/09/2023,4178589-146117,714.70,SWITCHSHOP LTD.
Children and Young Peoples Services,Head of Early Help Inclusion & Vulnerable Children.,Supplies and Services,342033,Computers and Communications,13/09/2023,4178589-146119,"1,552.68",SWITCHSHOP LTD.
Regeneration Economy and Growth,Corporate Property and Land,Supplies and Services,304221,Equipment and Materials,13/09/2023,4178591-1056020,719.28,T CROSSLING & CO LTD.
Regeneration Economy and Growth,Corporate Property and Land,Supplies and Services,304221,Equipment and Materials,13/09/2023,4178591-1056070,590.10,T CROSSLING & CO LTD.
Neighbourhoods and Climate Change,Highways,Supplies and Services,304221,Equipment and Materials,13/09/2023,4178592-9047375081,"3,922.59",TARMAC TRADING LTD.
Neighbourhoods and Climate Change,Highways,Supplies and Services,304221,Equipment and Materials,13/09/2023,4178592-9047381251,886.13,TARMAC TRADING LTD.
Neighbourhoods and Climate Change,Environmental Services,Supplies and Services,352001,Conference Expenses,13/09/2023,4178596-INV/361,"1,575.00",THE NATIONAL ASSOCIATION FOR AONBS.
Neighbourhoods and Climate Change,Highways,Stock A926,926900,Stock in hand-Inventory system,13/09/2023,4178601-NSIN00099475,"8,652.08",THOMAS OWEN & SONS (NEWCASTLE) LTD.
Resources BK0010,Digital Services,Supplies and Services,304303,Equipment and Materials,13/09/2023,4178605-143899,"1,320.38",TP ELECTRICAL SUPPLIES & FIXINGS LTD.
Regeneration Economy and Growth,Culture Sport and Tourism,Supplies and Services,384199,Miscellaneous Expenses,13/09/2023,4178606-TRAV44822,"2,195.00",TRAVMEDIA (UK) LTD.
Neighbourhoods and Climate Change,Environmental Services,Supplies and Services,304221,Equipment and Materials,13/09/2023,4178607-IN0270374,725.46,TUDOR (UK) LTD T/A TUDOR ENVIRONMENTAL.
Regeneration Economy and Growth,Corporate Property and Land,Third Party Payments,430100,Rendered by Private Contractors,13/09/2023,4178609-DCC/GT/373,"1,079.00",TYNE VALLEY FLOORING & CARPETS.
Neighbourhoods and Climate Change,Partnerships & Community Engagement Div.,Supplies and Services,384086,Miscellaneous Expenses,13/09/2023,4178610-VOUCHERCHAP01-23,700.00,USHAW MOOR ACTION GROUP.
Resources BK0010,Digital Services,Supplies and Services,342051,Computers and Communications,13/09/2023,4178615-SIN-02906,"22,873.42",VIZST TECHNOLOGY LTD.
Neighbourhoods and Climate Change,Highways,Supplies and Services,304358,Equipment and Materials,13/09/2023,4178616-52351,"5,570.00",W MARLEY AGRICULTURAL CONTRACTORS LTD.
Regeneration Economy and Growth,Corporate Property and Land,Premises,150015,Apportioned Exps of Operational Blds,13/09/2023,4178620-230094453,609.10,WERNICK HIRE LTD.
Regeneration Economy and Growth,Corporate Property and Land,Premises,150015,Apportioned Exps of Operational Blds,13/09/2023,4178620-230094457,717.60,WERNICK HIRE LTD.
Regeneration Economy and Growth,Corporate Property and Land,Premises,150015,Apportioned Exps of Operational Blds,13/09/2023,4178620-230094468,717.60,WERNICK HIRE LTD.
Regeneration Economy and Growth,Corporate Property and Land,Premises,150015,Apportioned Exps of Operational Blds,13/09/2023,4178620-230094471,717.60,WERNICK HIRE LTD.
Regeneration Economy and Growth,Corporate Property and Land,Premises,150015,Apportioned Exps of Operational Blds,13/09/2023,4178620-230094473,717.60,WERNICK HIRE LTD.
Regeneration Economy and Growth,Transport and Contracted Services,Supplies and Services,338027,Services,13/09/2023,4178622-64641033,"4,100.00",WSP UK LTD.
Regeneration Economy and Growth,Transport and Contracted Services,Supplies and Services,338027,Services,13/09/2023,4178622-64641037,"12,300.00",WSP UK LTD.
